Workbook

Sheet Реестр-схема
A1: УТВЕРЖДЕН постановлением Администрации городского округа Чехов от ___________________________N ____________________
A2: Реестр мест (площадок) накопления твердых коммунальных отходов на территории городского округа Чехов
A4: № п/п | B4: Адрес контейнерной площадки | C4: Собственник площадки | D4: ОГРН | E4: Категория | F4: Статус принадлежности КП | G4: Примечание | H4: координаты | J4: ID места накопления (уникальный идентификатор, соответствующий идентификатору в учетной системе регионального оператора | K4: Адрес многоквартирного дома, привязанного к данной контейнерной площадке | L4: Площадь МКД (жилая), м2 | M4: Годовой объем накопления ТКО и КГО МКД | P4: Наименование юридического лица, привязанного к данной контейнерной площадке (в том числе СНТ, ГСК и пр.) | Q4: ИНН юридического лица | R4: Показатель | S4: Годовой объем накопления ТКО юридического лица | T4: Количество индивидуальных жилых строений, привязанных к данной КП | U4: Наименование населенного пункта | V4: Показатель (м2) | W4: Годовой объем накопления ТКО и КГО населенного пункта | Z4: Годовой объем накопления ТКО и КГО на контейнерной площадке, м3 | AC4: Вывоз ТКО (график) | AD4: Ежедневный объем накопления ТКО на КП, м3 | AE4: Необходимое кол-во баков по 0,8 на КП | AG4: Вывоз РСО (график) | AH4: Необходимое кол-во баков по 1,1, м3 | AI4: Вывоз бункеров (график) | AJ4: Ежедневный объем накопления КГО на КП, м3 | AK4: Необходимое кол-во бункеровпо 8 м3 на КП | AN4: Примечание
M5: всего (ТКО и КГО) | N5: ТКО | O5: КГО | W5: всего (ТКО и КГО) | X5: ТКО | Y5: КГО | Z5: всего (ТКО и КГО) | AA5: ТКО | AB5: КГО | AE5: всего по нормативу | AF5: серые | AH5: синие | AK5: Всего по нормативу | AL5: бункер под ТКО | AM5: бункер под КГО | AQ5: ИЖС (ТКО)
A6: 1 | B6: Московская обл, Городской округ Чехов, д.Костомарово, ЖК Морозовка | C6: УПРАВДОМ - СЕРВИС ООО | F6: закрытые | P6: УПРАВДОМ - СЕРВИС ООО | Q6: 5036168817 | V6: 615.2 | W6: 70.2 | X6: 52.907 | Y6: 17.328 | Z6: 70.2 | AA6: 52.907 | AB6: 17.3 | AC6: по заявке | AD6: 0.145 | AE6: 4 | AF6: 4 | AI6: по заявке | AJ6: 0.047 | AK6: 3 | AL6: 3 | AU6: 8.047620274
A7: 2 | B7: Московская обл, г.о. городской округ Чехов, г Чехов, п Нерастанное, 2й контрольно-пропускной пункт д.№40 (ФГКУ В/Ч 51952) | C7: В/Ч 51952 ФГКУ | E7: МКД | F7: закрытые | L7: 2339.3 | M7: 266.7 | N7: =L7*Норматив!C7 -> 201.1798 | O7: =L7*Норматив!D7 -> 65.5004 | Z7: =SUM($M$7:$M$7)+SUM($S$7:$S$7)+SUM($W$7:$W$7) -> 266.7 | AA7: =Z7-AB7 -> 201.1996 | AB7: =SUM($O$7:$O$7)+SUM($Y$7:$Y$7) -> 65.5004 | AC7: ежедневно | AD7: =AA7/365 -> 0.5512317808 | AE7: =AU7/0.8 -> 0.009417808219 | AG7: через день | AH7: 1 | AJ7: =AB7/365 -> 0.1794531507 | AU7: 0.007534246575
A8: 3 | B8: Московская обл, г.о. городской округ Чехов, г Чехов, п Нерастанное, 6 контрольно-пропускной пункт д.№30 (ФГКУ В/Ч 51952).. | C8: В/Ч 51952 ФГКУ | E8: МКД | F8: закрытые | L8: 4606.7 | M8: 525.2 | N8: =L8*Норматив!C8 -> 396.1762 | O8: =L8*Норматив!D8 -> 128.9876 | Z8: =SUM($M$8:$M$8)+SUM($S$8:$S$8)+SUM($W$8:$W$8) -> 525.2 | AA8: 396.2124 | AB8: =SUM($O$8:$O$8)+SUM($Y$8:$Y$8) -> 128.9876 | AC8: ежедневно | AD8: 1.085513425 | AE8: 0.6851027397 | AG8: через день | AH8: 1 | AJ8: 0.3533906849 | AU8: 0.5480821918
A9: 4 | B9: Московская обл, городской округ Чехов, Нерастанное п, д. №7, д.№8 (ФГКУ В/Ч 51952) | C9: В/Ч 51952 ФГКУ | E9: МКД | F9: закрытые | L9: 9519.8 | M9: 1085.3 | N9: =L9*Норматив!C9 -> 818.7028 | O9: =L9*Норматив!D9 -> 266.5544 | Z9: =SUM($M$9:$M$9)+SUM($S$9:$S$9)+SUM($W$9:$W$9) -> 1085.3 | AA9: 818.7456 | AB9: =SUM($O$9:$O$9)+SUM($Y$9:$Y$9) -> 266.5544 | AC9: ежедневно | AD9: 2.24313863 | AE9: 2.149143836 | AG9: через день | AH9: 1 | AJ9: 0.7302860274 | AU9: 1.719315068
A10: 5 | B10: Московская обл, городской округ Чехов, Нерастанное п, д.№32 корп. 1,2,3,4,5 (ФГКУ В/Ч 51952) | C10: В/Ч 51952 ФГКУ | E10: МКД | F10: закрытые | L10: 10248.3 | M10: 1168.3 | N10: =L10*Норматив!C10 -> 881.3538 | O10: =L10*Норматив!D10 -> 286.9524 | Z10: =SUM($M$10:$M$10)+SUM($S$10:$S$10)+SUM($W$10:$W$10) -> 1168.3 | AA10: 881.3476 | AB10: =SUM($O$10:$O$10)+SUM($Y$10:$Y$10) -> 286.9524 | AC10: ежедневно | AD10: 2.414650959 | AE10: 2.365924658 | AG10: через день | AH10: 1 | AJ10: 0.7861709589 | AU10: 1.892739726
A11: 6 | B11: Московская обл, Городской округ Чехов, Шарапово с, дом № 1 (ликвидирована) | E11: МКД | AU11: 0
A12: 7 | B12: 142360, Московская обл, г.о. городской округ Чехов, п Мещерское, д. 6А (ликвидирована) | E12: МКД | AU12: 0
A13: 8 | B13: Московская обл, г. о. Чехов,д.Алачково, Чехов-2, ул.Южная, д.8 | C13: В/Ч 52583 ФКУ | E13: МКД | F13: закрытые | L13: 26928.8 | M13: 3069.88 | N13: =L13*Норматив!C13 -> 2315.8768 | O13: =L13*Норматив!D13 -> 754.0064 | Z13: =SUM($M$13:$M$13)+SUM($S$13:$S$13)+SUM($W$13:$W$13) -> 3069.88 | AA13: 2315.8736 | AB13: =SUM($O$13:$O$13)+SUM($Y$13:$Y$13) -> 754.0064 | AC13: ежедневно | AD13: 6.344859178 | AE13: 7.335787671 | AG13: через день | AH13: 1 | AJ13: 2.065770959 | AU13: 5.868630137
A14: 9 | B14: Московская обл, г. о. Чехов,д.Алачково, Чехов-2, ул.Спортивная, д.9 | C14: В/Ч 52583 ФКУ | E14: МКД | F14: закрытые | L14: 17802 | M14: 2029.43 | N14: =L14*Норматив!C14 -> 1530.972 | O14: =L14*Норматив!D14 -> 498.456 | Z14: =SUM($M$14:$M$14)+SUM($S$14:$S$14)+SUM($W$14:$W$14) -> 2029.43 | AA14: 1530.974 | AB14: =SUM($O$14:$O$14)+SUM($Y$14:$Y$14) -> 498.456 | AC14: ежедневно | AD14: 4.194449315 | AE14: 4.616541096 | AG14: через день | AH14: 1 | AJ14: 1.365632877 | AU14: 3.693232877
A15: 10 | B15: Московская обл, г. о. Чехов,д.Алачково, Чехов-2, ул.Лесная, д.32, д.33 | C15: В/Ч 52583 ФКУ | E15: МКД | F15: закрытые | L15: 3119.7 | M15: 355.65 | N15: =L15*Норматив!C15 -> 268.2942 | O15: =L15*Норматив!D15 -> 87.3516 | Z15: =SUM($M$15:$M$15)+SUM($S$15:$S$15)+SUM($W$15:$W$15) -> 355.65 | AA15: 268.2984 | AB15: =SUM($O$15:$O$15)+SUM($Y$15:$Y$15) -> 87.3516 | AC15: ежедневно | AD15: 0.7350641096 | AE15: 0.2420205479 | AG15: через день | AH15: 1 | AJ15: 0.2393194521 | AU15: 0.1936164384
A16: 11 | B16: Московская обл, г. о. Чехов, д.Алачково, Чехов-2, ул.Южная, д.38 | C16: В/Ч 52583 ФКУ | E16: МКД | F16: закрытые | L16: 17202.5 | M16: 1961.09 | N16: =L16*Норматив!C16 -> 1479.415 | O16: =L16*Норматив!D16 -> 481.67 | Z16: =SUM($M$16:$M$16)+SUM($S$16:$S$16)+SUM($W$16:$W$16) -> 1961.09 | AA16: 1479.42 | AB16: =SUM($O$16:$O$16)+SUM($Y$16:$Y$16) -> 481.67 | AC16: ежедневно | AD16: 4.053205479 | AE16: 4.437910959 | AG16: через день | AH16: 1 | AJ16: 1.319643836 | AU16: 3.550328767
A17: 12 | B17: Московская обл, г. о. Чехов, д.Алачково, Чехов-2, ул.Южная, д.34-36 | C17: В/Ч 52583 ФКУ | E17: МКД | F17: закрытые | L17: 9247.7 | M17: 1054.2 | N17: =L17*Норматив!C17 -> 795.3022 | O17: =L17*Норматив!D17 -> 258.9356 | Z17: =SUM($M$17:$M$17)+SUM($S$17:$S$17)+SUM($W$17:$W$17) -> 1054.2 | AA17: 795.2644 | AB17: =SUM($O$17:$O$17)+SUM($Y$17:$Y$17) -> 258.9356 | AC17: ежедневно | AD17: 2.178806575 | AE17: 2.067636986 | AG17: через день | AH17: 1 | AJ17: 0.7094126027 | AU17: 1.654109589
A18: 13 | B18: Московская обл, г. о. Чехов, д.Алачково, Чехов-2, ул.Южная, д,25 | C18: В/Ч 52583 ФКУ | E18: МКД | F18: закрытые | L18: 14727.6 | M18: 1678.9464 | N18: =L18*Норматив!C18 -> 1266.5736 | O18: =L18*Норматив!D18 -> 412.3728 | Z18: =SUM($M$18:$M$18)+SUM($S$18:$S$18)+SUM($W$18:$W$18) -> 1678.9464 | AA18: 1266.5736 | AB18: =SUM($O$18:$O$18)+SUM($Y$18:$Y$18) -> 412.3728 | AC18: ежедневно | AD18: 3.470064658 | AE18: 4.907071395 | AG18: через день | AH18: 1 | AJ18: 1.129788493 | AU18: 3.925657116
A19: 14 | B19: Московская обл, г. о. Чехов, д.Алачково, Чехов-2, ул.Спортивная, д.17 | C19: В/Ч 52583 ФКУ | E19: МКД | F19: закрытые | L19: 4454.8 | M19: 507.8472 | N19: =L19*Норматив!C19 -> 383.1128 | O19: =L19*Норматив!D19 -> 124.7344 | Z19: =SUM($M$19:$M$19)+SUM($S$19:$S$19)+SUM($W$19:$W$19) -> 507.8472 | AA19: 383.1128 | AB19: =SUM($O$19:$O$19)+SUM($Y$19:$Y$19) -> 124.7344 | AC19: ежедневно | AD19: 1.04962411 | AE19: 1.004744266 | AG19: через день | AH19: 1 | AJ19: 0.3417380822 | AU19: 0.8037954126
A20: 15 | B20: Московская обл, г. о. Чехов, д.Алачково, Чехов-2, ул.Спортивная, д.10 | C20: В/Ч 52583 ФКУ | E20: МКД | F20: закрытые | L20: 14783.5 | M20: 1685.319 | N20: =L20*Норматив!C20 -> 1271.381 | O20: =L20*Норматив!D20 -> 413.938 | Z20: =SUM($M$20:$M$20)+SUM($S$20:$S$20)+SUM($W$20:$W$20) -> 1685.319 | AA20: 1271.381 | AB20: =SUM($O$20:$O$20)+SUM($Y$20:$Y$20) -> 413.938 | AC20: ежедневно | AD20: 3.483235616 | AE20: 4.92830612 | AG20: через день | AH20: 1 | AJ20: 1.134076712 | AU20: 3.942644896
A21: 16 | B21: Московская обл, г. о. Чехов, д.Алачково, Чехов-2, ул.Северная, д.36 | C21: В/Ч 52583 ФКУ | E21: МКД | F21: закрытые | L21: 1563.3 | M21: 178.2162 | N21: =L21*Норматив!C21 -> 134.4438 | O21: =L21*Норматив!D21 -> 43.7724 | Z21: =SUM($M$21:$M$21)+SUM($S$21:$S$21)+SUM($W$21:$W$21) -> 178.2162 | AA21: 134.4438 | AB21: =SUM($O$21:$O$21)+SUM($Y$21:$Y$21) -> 43.7724 | AC21: ежедневно | AD21: 0.3683391781 | AE21: -0.09364944315 | AG21: через день | AH21: 1 | AJ21: 0.1199243836 | AU21: -0.07491955452
A22: 17 | B22: Московская обл, г. о. Чехов, д.Алачково, Чехов-2, ул.Октябрьская, д.38 | C22: В/Ч 52583 ФКУ | E22: МКД | F22: закрытые | L22: 8996.3 | M22: 1025.5782 | N22: =L22*Норматив!C22 -> 773.6818 | O22: =L22*Норматив!D22 -> 251.8964 | Z22: =SUM($M$22:$M$22)+SUM($S$22:$S$22)+SUM($W$22:$W$22) -> 1025.5782 | AA22: 773.6818 | AB22: =SUM($O$22:$O$22)+SUM($Y$22:$Y$22) -> 251.8964 | AC22: ежедневно | AD22: 2.119676164 | AE22: 2.729923249 | AG22: через день | AH22: 1 | AJ22: 0.6901271233 | AU22: 2.183938599
A23: 18 | B23: Московская обл, г. о. Чехов, д.Алачково, Чехов-2, ул.Западная, д.7 | C23: В/Ч 52583 ФКУ | E23: МКД | F23: закрытые | L23: 11370.5 | M23: 1296.237 | N23: =L23*Норматив!C23 -> 977.863 | O23: =L23*Норматив!D23 -> 318.374 | Z23: =SUM($M$23:$M$23)+SUM($S$23:$S$23)+SUM($W$23:$W$23) -> 1296.237 | AA23: 977.863 | AB23: =SUM($O$23:$O$23)+SUM($Y$23:$Y$23) -> 318.374 | AC23: ежедневно | AD23: 2.679076712 | AE23: 3.631810277 | AG23: через день | AH23: 1 | AJ23: 0.8722575342 | AU23: 2.905448222
A24: 19 | B24: Московская обл, г. о. Чехов, д.Алачково, Чехов-2, ул.Западная, д.3 | C24: В/Ч 52583 ФКУ | E24: МКД | F24: закрытые | L24: 26294.1 | M24: 2997.5274 | N24: =L24*Норматив!C24 -> 2261.2926 | O24: =L24*Норматив!D24 -> 736.2348 | Z24: =SUM($M$24:$M$24)+SUM($S$24:$S$24)+SUM($W$24:$W$24) -> 2997.5274 | AA24: 2261.2926 | AB24: =SUM($O$24:$O$24)+SUM($Y$24:$Y$24) -> 736.2348 | AC24: ежедневно | AD24: 6.195322192 | AE24: 9.300836165 | AG24: через день | AH24: 1 | AJ24: 2.017081644 | AU24: 7.440668932
A25: 20 | B25: Московская обл, г. о. Чехов, д.Алачково, Чехов-2, ул.Западная, д.1 | C25: В/Ч 52583 ФКУ | E25: МКД | F25: закрытые | L25: 1914 | M25: 218.196 | N25: =L25*Норматив!C25 -> 164.604 | O25: =L25*Норматив!D25 -> 53.592 | Z25: =SUM($M$25:$M$25)+SUM($S$25:$S$25)+SUM($W$25:$W$25) -> 218.196 | AA25: 164.604 | AB25: =SUM($O$25:$O$25)+SUM($Y$25:$Y$25) -> 53.592 | AC25: ежедневно | AD25: 0.450969863 | AE25: 0.03957091781 | AG25: через день | AH25: 1 | AJ25: 0.1468273973 | AU25: 0.03165673425
A26: 21 | B26: 142302, Московская обл, г.о. Чехов, г Чехов-2, территория батальона | C26: В/Ч 52583 ФКУ | E26: МКД | F26: закрытые | L26: 2479.4 | M26: 282.6516 | N26: =L26*Норматив!C26 -> 213.2284 | O26: =L26*Норматив!D26 -> 69.4232 | Z26: =SUM($M$26:$M$26)+SUM($S$26:$S$26)+SUM($W$26:$W$26) -> 282.6516 | AA26: 213.2284 | AB26: =SUM($O$26:$O$26)+SUM($Y$26:$Y$26) -> 69.4232 | AC26: ежедневно | AD26: 0.5841873973 | AE26: 0.2543493384 | AG26: через день | AH26: 1 | AJ26: 0.1902005479 | AU26: 0.2034794707
A27: 22 | B27: Московская обл, г. о. Чехов, д.Алачково, Чехов-2, ул. Южная, д.23 | C27: В/Ч 52583 ФКУ | E27: МКД | F27: закрытые | L27: 14526.3 | M27: 1655.9982 | N27: =L27*Норматив!C27 -> 1249.2618 | O27: =L27*Норматив!D27 -> 406.7364 | Z27: =SUM($M$27:$M$27)+SUM($S$27:$S$27)+SUM($W$27:$W$27) -> 1655.9982 | AA27: 1249.2618 | AB27: =SUM($O$27:$O$27)+SUM($Y$27:$Y$27) -> 406.7364 | AC27: ежедневно | AD27: 3.422635068 | AE27: 4.830603591 | AG27: через день | AH27: 1 | AJ27: 1.114346301 | AU27: 3.864482873
A28: 23 | B28: 142325, Московская обл, г.о. Чехов, г Чехов, п Нерастанное, территория в/ч д.29, д.33, д.34 | C28: В/Ч 52583 ФКУ | E28: МКД | F28: закрытые | L28: 14220.1 | M28: 1621.0914 | N28: =L28*Норматив!C28 -> 1222.9286 | O28: =L28*Норматив!D28 -> 398.1628 | Z28: =SUM($M$28:$M$28)+SUM($S$28:$S$28)+SUM($W$28:$W$28) -> 1621.0914 | AA28: 1222.9286 | AB28: =SUM($O$28:$O$28)+SUM($Y$28:$Y$28) -> 398.1628 | AC28: ежедневно | AD28: 3.350489315 | AE28: 4.714287439 | AG28: через день | AH28: 1 | AJ28: 1.090856986 | AU28: 3.771429951
A29: 24 | B29: 142322, Московская обл, г Чехов, с Новый Быт, ул Новая, д. 7 (ликвидирована) | E29: МКД | AU29: 0
A30: 25 | B30: 142306, Московская обл, городской округ Чехов, Чехов г, Московская ул, дом 102 (ликвидирована) | E30: МКД | AU30: 0
A31: 26 | B31: 142300, Московская обл, городской округ Чехов, Весенняя ул, дом № 32 | C31: УК Старт строй + | AC31: ежедневно | AE31: 0 | AG31: через день | AH31: 1 | AJ31: 0 | AU31: 0
A32: 27 | B32: 142300, Московская обл, городской округ Чехов, Весенняя ул, дом № 31 | C32: УК Старт строй + | AC32: ежедневно | AE32: 0 | AG32: через день | AH32: 1 | AJ32: 0 | AU32: 0
A33: 28 | B33: Московская обл, г. о. Чехов,д.Алачково, Чехов-2, ул. Лесная, д.10 | C33: В/Ч 52583 ФКУ | E33: МКД | F33: закрытые | L33: 5235.2 | M33: 596.8128 | N33: 450.2272 | O33: 16.1139456 | Z33: =SUM($M$33:$M$33)+SUM($S$33:$S$33)+SUM($W$33:$W$33) -> 596.8128 | AA33: 580.6988544 | AB33: =SUM($O$33:$O$33)+SUM($Y$33:$Y$33) -> 16.1139456 | AC33: ежедневно | AD33: 1.590955765 | AE33: 1.301194707 | AG33: через день | AH33: 1 | AJ33: 0.04414779616 | AU33: 1.040955765
A34: 29 | B34: 142305, Московская обл, городской округ Чехов, Чехов г, Гарнаева ул, дом 20 | AU34: 0
A35: 30 | B35: 142305, Московская обл, Городской округ Чехов, 8-е Марта ул, дом № 11 | C35: ОМСУ | D35: 1025006396040 | E35: МКД | F35: бюджет | H35: 55.158017 | I35: 37.434594 | J35: 47442 | K35: г. Чехов ул. 8 Марта д.11 | L35: 862 | M35: 98.268 | N35: 74.132 | O35: 24.136 | T35: 28 | U35: ул. Болотникова, ул. Открытая, | V35: 4119.5 | W35: 469.623 | X35: 354.277 | Y35: 115.346 | Z35: =SUM($M$35:$M$36)+SUM($S$35:$S$36)+SUM($W$35:$W$36) -> 567.891 | AA35: =Z35-AB35 -> 428.409 | AB35: =SUM($O$35:$O$36)+SUM($Y$35:$Y$36) -> 139.482 | AC35: ежедневно | AD35: =AA35/365 -> 1.173723288 | AE35: 0.7796541096 | AF35: 1 | AG35: Раз в два дня | AH35: 1 | AJ35: =AB35/AO35 -> 0.3821424658 | AK35: =AJ35/AS35 -> 0.04776780822 | AM35: 1 | AN35: место накопления КГМ: ул. Солнышевская, 26 | AO35: 365 | AP35: 0.8 | AQ35: 0.087 | AR35: 0.027 | AS35: 8 | AU35: 0.6237232877
M36: 0 | N36: 0 | AO36: 365 | AP36: 0.8 | AQ36: 0.087 | AR36: 0.027 | AS36: 8 | AU36: 0
A37: 31 | B37: 142305, Московская обл, Городской округ Чехов, 8-е Марта ул, дом № 1 | C37: ОМСУ | D37: 1025006396040 | E37: МКД | F37: бюджет | H37: 55.158561 | I37: 37.431571 | J37: 47443 | K37: г. Чехов ул. 8 Марта д.10 | L37: 718.7 | M37: 81.9318 | N37: 61.8082 | O37: 20.1236 | T37: 26 | U37: ул. 8 марта, ул. Прудная, ул. Джона рида | V37: 6863.4 | W37: 782.4276 | X37: 590.2524 | Y37: 192.1752 | Z37: =SUM($M$37:$M$39)+SUM($S$37:$S$39)+SUM($W$37:$W$39) -> 919.2174 | AA37: 706.9186 | AB37: =SUM($O$37:$O$39)+SUM($Y$37:$Y$39) -> 212.2988 | AC37: ежедневно | AD37: 1.936763288 | AE37: 1.73345411 | AF37: 1 | AG37: Раз в два дня | AH37: 1 | AJ37: =AB37/AO37 -> 0.5816405479 | AK37: =AJ37/AS37 -> 0.07270506849 | AN37: место накопления КГМ: ул. Солнышевская, 26 | AO37: 365 | AP37: 0.8 | AQ37: 0.087 | AR37: 0.027 | AS37: 8 | AU37: 1.386763288
M38: 0 | N38: 0 | P38: ООО "ОКН" | Q38: 7810917359 | R38: 6 | S38: 9.6 | AO38: 365 | AP38: 0.8 | AQ38: 0.087 | AR38: 0.027 | AS38: 8 | AU38: 0
M39: 0 | N39: 0 | P39: ООО "Аметист" | Q39: 5048012476 | R39: 39.7 | S39: 45.258 | AO39: 365 | AP39: 0.8 | AQ39: 0.087 | AR39: 0.027 | AS39: 8 | AU39: 0
A40: 32 | B40: 142301, Московская обл, городской округ Чехов, Береговая ул, дом № 36А | C40: ОМСУ | D40: 1025006396040 | E40: МКД | F40: бюджет | H40: 55.148267 | I40: 37.469018 | J40: 47444 | K40: г. Чехов, ул. Береговая д. 36А | L40: 1256.4 | M40: 143.2296 | N40: 108.0504 | O40: 35.1792 | Z40: =SUM($M$40:$M$50)+SUM($S$40:$S$50)+SUM($W$40:$W$50) -> 1305.5734 | AA40: 1017.1818 | AB40: =SUM($O$40:$O$50)+SUM($Y$40:$Y$50) -> 288.3916 | AC40: ежедневно | AD40: 2.786799452 | AE40: 2.795999315 | AF40: 2 | AG40: Раз в два дня | AH40: 1 | AJ40: =AB40/AO40 -> 0.7901139726 | AK40: =AJ40/AS40 -> 0.09876424658 | AN40: место накопления КГМ: ул. Солнышевская, 26 | AO40: 365 | AP40: 0.8 | AQ40: 0.087 | AR40: 0.027 | AS40: 8 | AU40: 2.236799452
K41: г. Чехов, ул. Береговая д. 34 | L41: 4073.7 | M41: 464.4018 | N41: 350.3382 | O41: 114.0636 | AO41: 365 | AP41: 0.8 | AQ41: 0.087 | AR41: 0.027 | AS41: 8 | AU41: 0
K42: г. Чехов, ул. Береговая д. 35 | L42: 3712.6 | M42: 423.2364 | N42: 319.2836 | O42: 103.9528 | AO42: 365 | AP42: 0.8 | AQ42: 0.087 | AR42: 0.027 | AS42: 8 | AU42: 0
K43: г. Чехов, ул. Береговая д. 36 | L43: 1257 | M43: 143.298 | N43: 108.102 | O43: 35.196 | AO43: 365 | AP43: 0.8 | AQ43: 0.087 | AR43: 0.027 | AS43: 8 | AU43: 0
M44: 0 | N44: 0 | P44: ИП Щепочкин Константин Юрьевич | Q44: 504809997767 | R44: 1 | S44: 0.87 | AO44: 365 | AP44: 0.8 | AQ44: 0.087 | AR44: 0.027 | AS44: 8 | AU44: 0
M45: 0 | N45: 0 | P45: Ип Савин Андрей Владимирович | Q45: 502504425715 | R45: 18 | S45: 15.66 | AS45: 8 | AU45: 0
M46: 0 | N46: 0 | P46: ООО "ЛТК Трейд" | Q46: 504805849408 | R46: 3.44 | S46: 2.6144 | AU46: 0
M47: 0 | N47: 0 | P47: ИП Солосовский Вячеслав Александрович | Q47: 681201109078 | R47: 3 | S47: 2.61 | AU47: 0
M48: 0 | N48: 0 | P48: ИП Щепочкин Константин Юрьевич | Q48: 504809997767 | R48: 1 | S48: 0.87 | AU48: 0
M49: 0 | N49: 0 | P49: ИП Лернер Илья Александрович | Q49: 504802067160 | R49: 30.92 | S49: 23.4992 | AU49: 0
M50: 0 | N50: 0 | P50: ИП Доронин Дмитрий Валерьевич | Q50: 504805849408 | R50: 41.2 | S50: 85.284 | AO50: 365 | AP50: 0.8 | AQ50: 0.087 | AR50: 0.027 | AS50: 8 | AU50: 0
A51: 33 | B51: 142301, Московская обл, городской округ Чехов, Береговая ул, дом № 42 | C51: ОМСУ | D51: 1025006396040 | E51: МКД | F51: бюджет | H51: 55.149213 | I51: 37.471514 | J51: 47445 | K51: г. Чехов, ул. Береговая д. 41 | L51: 1781.6 | M51: 203.1024 | N51: 153.2176 | O51: 49.8848 | Z51: =SUM($M$51:$M$63)+SUM($S$51:$S$63)+SUM($W$51:$W$63) -> 4191.3669 | AA51: 3198.7725 | AB51: =SUM($O$51:$O$63)+SUM($Y$51:$Y$63) -> 992.5944 | AC51: ежедневно | AD51: 8.763760274 | AE51: 10.26720034 | AF51: 6 | AG51: Раз в два дня | AH51: 1 | AJ51: =AB51/AO51 -> 2.719436712 | AK51: =AJ51/AS51 -> 0.339929589 | AM51: 1 | AN51: место накопления КГМ: ул. Солнышевская, 26 | AO51: 365 | AP51: 0.8 | AQ51: 0.087 | AR51: 0.027 | AS51: 8 | AU51: 8.213760274
K52: г. Чехов, ул. Береговая д. 42 | L52: 1808.2 | M52: 206.1348 | N52: 155.5052 | O52: 50.6296 | AO52: 365 | AP52: 0.8 | AQ52: 0.087 | AR52: 0.027 | AS52: 8 | AU52: 0
K53: г. Чехов, ул. Береговая д. 43 | L53: 1625.9 | M53: 185.3526 | N53: 139.8274 | O53: 45.5252 | AO53: 365 | AP53: 0.8 | AQ53: 0.087 | AR53: 0.027 | AS53: 8 | AU53: 0
K54: г. Чехов, ул. Береговая д. 38 | L54: 4098.7 | M54: 467.2518 | N54: 352.4882 | O54: 114.7636 | AO54: 365 | AP54: 0.8 | AQ54: 0.087 | AR54: 0.027 | AS54: 8 | AU54: 0
K55: г. Чехов, ул. Береговая д. 39 | L55: 3697.2 | M55: 421.4808 | N55: 317.9592 | O55: 103.5216 | AO55: 365 | AP55: 0.8 | AQ55: 0.087 | AR55: 0.027 | AS55: 8 | AU55: 0
K56: г. Чехов, ул. Береговая д. 40 | L56: 2562.7 | M56: 292.1478 | N56: 220.3922 | O56: 71.7556 | AO56: 365 | AP56: 0.8 | AQ56: 0.087 | AR56: 0.027 | AS56: 8 | AU56: 0
P57: ИП Набоева Роза Отаровна | Q57: 770876606620 | R57: 24 | S57: 49.68 | AO57: 365 | AP57: 0.8 | AQ57: 0.087 | AR57: 0.027 | AS57: 8 | AU57: 0
P58: ООО "АСП+" | Q58: 5048037150 | R58: 2 | S58: 1.74 | AO58: 365 | AP58: 0.8 | AQ58: 0.087 | AR58: 0.027 | AS58: 8 | AU58: 0
P59: Качаева Валентина Григорьевна | R59: 101.33 | S59: 9.1197 | AU59: 0
P60: ООО "Спецоблопт" | Q60: 5048037463 | R60: 3 | S60: 2.61 | AO60: 365 | AP60: 0.8 | AQ60: 0.087 | AR60: 0.027 | AS60: 8 | AU60: 0
P61: ООО "МИСТ" (КОНДРАШОВ А.) | Q61: 5048054606 | R61: 20 | S61: 41.4 | AO61: 365 | AP61: 0.8 | AQ61: 0.087 | AR61: 0.027 | AS61: 8 | AU61: 0
P62: ИП Володькин Владимир Николаевич | Q62: 132802786257 | R62: 22 | S62: 45.54 | AO62: 365 | AP62: 0.8 | AQ62: 0.087 | AR62: 0.027 | AS62: 8 | AU62: 0
T63: 142 | U63: г. Чехов, ул. Береговая, ул. Юбилейная, ул. Новая | V63: 19875.5 | W63: 2265.807 | X63: 1709.293 | Y63: 556.514 | AO63: 365 | AP63: 0.8 | AQ63: 0.087 | AR63: 0.027 | AS63: 8 | AU63: 0
A64: 34 | B64: 142300, Московская обл, городской округ Чехов, Весенняя ул, дом № 15 | C64: ОМСУ | D64: 1025006396040 | E64: МКД | F64: бюджет | H64: 55.153138 | I64: 37.479003 | J64: 47447 | K64: г. Чехов, ул. Весенняя д. 2 | L64: 3092.1 | M64: 352.4994 | N64: 265.9206 | O64: 86.5788 | Z64: =SUM($M$64:$M$76)+SUM($S$64:$S$76)+SUM($W$64:$W$76) -> 3035.7434 | AA64: =Z64-AB64 -> 2371.2894 | AB64: =SUM($O$64:$O$76)+SUM($Y$64:$Y$76) -> 664.454 | AC64: ежедневно | AD64: 6.496683288 | AE64: 7.43335411 | AF64: 6 | AG64: Раз в два дня | AH64: 1 | AJ64: 1.820421918 | AK64: 0.2275527397 | AM64: 1 | AN64: место накопления КГМ: ул. Солнышевская, 26 | AO64: 365 | AP64: 0.8 | AQ64: 0.087 | AR64: 0.027 | AS64: 8 | AU64: 5.946683288
K65: г. Чехов, ул. Весенняя д. 4 | L65: 4569.2 | M65: 520.8888 | N65: 392.9512 | O65: 127.9376 | AO65: 365 | AP65: 0.8 | AQ65: 0.087 | AR65: 0.027 | AS65: 8 | AU65: 0
K66: г. Чехов, ул. Весенняя д. 13 | L66: 3977.4 | M66: 453.4236 | N66: 342.0564 | O66: 111.3672 | AO66: 365 | AP66: 0.8 | AQ66: 0.087 | AR66: 0.027 | AS66: 8 | AU66: 0
K67: г. Чехов, ул. Весенняя д. 15 | L67: 7274.2 | M67: 829.2588 | N67: 625.5812 | O67: 203.6776 | AO67: 365 | AP67: 0.8 | AQ67: 0.087 | AR67: 0.027 | AS67: 8 | AU67: 0
K68: г. Чехов, ул. Весенняя д. 9 | L68: 4817.6 | M68: 549.2064 | N68: 414.3136 | O68: 134.8928 | AO68: 365 | AP68: 0.8 | AQ68: 0.087 | AR68: 0.027 | AS68: 8 | AU68: 0
P69: МБДОУ д/с № 21 | Q69: 5048052422 | R69: 158 | S69: 62 | AO69: 365 | AP69: 0.8 | AQ69: 0.087 | AR69: 0.027 | AS69: 8 | AU69: 0
P70: ООО "Белый парус" | Q70: 5048012525 | R70: 3 | S70: 2.61 | AO70: 365 | AP70: 0.8 | AQ70: 0.087 | AR70: 0.027 | AS70: 8 | AU70: 0
P71: ИП Погосян Мери Владимировна | Q71: 773474363764 | R71: 10 | S71: 11.4 | AO71: 365 | AP71: 0.8 | AQ71: 0.087 | AR71: 0.027 | AS71: 8 | AU71: 0
P72: ИП Александрова Екатерина Владимировна | Q72: 595300761239 | R72: 48 | S72: 29.7 | AO72: 365 | AP72: 0.8 | AQ72: 0.087 | AR72: 0.027 | AS72: 8 | AU72: 0
P73: ИП Мнацаканян Смбат Сукиасович | Q73: 504810852607 | R73: 28 | S73: 17.36 | AO73: 365 | AP73: 0.8 | AQ73: 0.087 | AR73: 0.027 | AS73: 8 | AU73: 0
P74: ООО "Атлант" | Q74: 7730208886 | R74: 244.89 | S74: 186.1164 | AU74: 0
P75: ИП Корольков Сергей Федорович | Q75: 504805905109 | R75: 12 | S75: 13.68 | AO75: 365 | AP75: 0.8 | AQ75: 0.087 | AR75: 0.027 | AS75: 8 | AU75: 0
P76: ИП Ишутина Татьяна Николаевна | Q76: 504801747500 | R76: 10 | S76: 7.6 | AO76: 365 | AP76: 0.8 | AQ76: 0.087 | AR76: 0.027 | AS76: 8 | AU76: 0
A77: 35 | B77: 142300, Московская обл, городской округ Чехов, Весенняя ул, дом № 18 | C77: ОМСУ | D77: 1025006396040 | E77: МКД | F77: бюджет | H77: 55.157057 | I77: 37.476712 | J77: 47448 | K77: г. Чехов, ул. Полиграфистов д.11А | L77: 3132.1 | M77: 357.0594 | N77: 269.3606 | O77: 87.6988 | Z77: =SUM($M$77:$M$89)+SUM($S$77:$S$89)+SUM($W$77:$W$89) -> 2839.85262 | AA77: 2169.73338 | AB77: =SUM($O$77:$O$89)+SUM($Y$77:$Y$89) -> 670.11924 | AC77: ежедневно | AD77: =AA77/365 -> 5.944475014 | AE77: =AU77/0.8 -> 6.743093767 | AF77: 6 | AG77: Раз в два дня | AH77: 1 | AJ77: 1.835943123 | AK77: 0.2294928904 | AN77: место накопления КГМ: ул. Солнышевская, 26 | AO77: 365 | AP77: 0.8 | AQ77: 0.087 | AR77: 0.027 | AS77: 8 | AU77: 5.394475014
K78: г. Чехов, ул. Полиграфистов д.11Б | L78: 3236.42 | M78: 368.95188 | N78: 278.33212 | O78: 90.61976 | AO78: 365 | AP78: 0.8 | AQ78: 0.087 | AR78: 0.027 | AS78: 8 | AU78: 0
K79: г. Чехов, ул. Полиграфистов д.11В | L79: 3813.91 | M79: 434.78574 | N79: 327.99626 | O79: 106.78948 | AO79: 365 | AP79: 0.8 | AQ79: 0.087 | AR79: 0.027 | AS79: 8 | AU79: 0
K80: г. Чехов, ул. Весенняя д. 18 | L80: 4886 | M80: 557.004 | N80: 420.196 | O80: 136.808 | AO80: 365 | AP80: 0.8 | AQ80: 0.087 | AR80: 0.027 | AS80: 8 | AU80: 0
K81: г. Чехов, ул. Весенняя д. 26 | L81: 8864.4 | M81: 1010.5416 | N81: 762.3384 | O81: 248.2032 | AO81: 365 | AP81: 0.8 | AQ81: 0.087 | AR81: 0.027 | AS81: 8 | AU81: 0
P82: МБУК «Централизованная библиотечная сеть городского округа Чехов» МБУК ЦБС ГО Чехов | Q82: 5048053539 | R82: 3 | S82: 0.276 | AO82: 365 | AP82: 0.8 | AQ82: 0.087 | AR82: 0.027 | AS82: 8 | AU82: 0
P83: ИП Мисюркеева Екатерина Александровна | Q83: 504816421205 | R83: 55 | S83: 41.8 | AS83: 8 | AU83: 0
P84: ИП Диденко Максим Игоревич | Q84: 504814790253 | R84: 16 | S84: 29.64 | AO84: 365 | AP84: 0.8 | AQ84: 0.087 | AR84: 0.027 | AS84: 8 | AU84: 0
P85: ИП Боку Надежда Ивановна | Q85: 504803541826 | R85: 4 | S85: 3.2 | AO85: 365 | AP85: 0.8 | AQ85: 0.087 | AR85: 0.027 | AS85: 8 | AU85: 0
P86: ООО "Сторч-с" | Q86: 5048030281 | R86: 1 | S86: 0.87 | AU86: 0
P87: ИП Неижпапа Алексей Леонидович | Q87: 504800634720 | R87: 4 | S87: 4.8 | AO87: 365 | AP87: 0.8 | AQ87: 0.087 | AR87: 0.027 | AS87: 8 | AU87: 0
P88: ИП Деменкова Татьяна Евгеньевна | Q88: 504805944669 | R88: 5 | S88: 8.004 | AO88: 365 | AP88: 0.8 | AQ88: 0.087 | AR88: 0.027 | AS88: 8 | AU88: 0
P89: ИП Александрова Бэлла Вячеславовна | Q89: 504810317871 | R89: 38.2 | S89: 22.92 | AO89: 365 | AP89: 0.8 | AQ89: 0.087 | AR89: 0.027 | AS89: 8 | AU89: 0
A90: 36 | B90: 142300, Московская обл, городской округ Чехов, Весенняя ул, дом № 22 | C90: ОМСУ | D90: 1025006396040 | E90: МКД | F90: бюджет | H90: 55.158403 | I90: 37.476694 | J90: 47449 | K90: г. Чехов, ул. Весенняя д. 20 | L90: 4962.7 | M90: 565.7478 | N90: 426.7922 | O90: 138.9556 | Z90: =SUM($M$90:$M$95)+SUM($S$90:$S$95)+SUM($W$90:$W$95) -> 2656.1486 | AA90: 2037.9114 | AB90: =SUM($O$90:$O$95)+SUM($Y$90:$Y$95) -> 618.2372 | AC90: ежедневно | AD90: 5.583318904 | AE90: 6.29164863 | AF90: 6 | AG90: Раз в два дня | AH90: 1 | AJ90: 1.693800548 | AK90: 0.2117250685 | AN90: место накопления КГМ: ул. Солнышевская, 26 | AO90: 365 | AP90: 0.8 | AQ90: 0.087 | AR90: 0.027 | AS90: 8 | AU90: 5.033318904
K91: г. Чехов, ул. Весенняя д. 22/1 | L91: 6348.3 | M91: 723.7062 | N91: 545.9538 | O91: 177.7524 | AU91: 0
K92: г. Чехов, ул. Весенняя д. 22/2 | L92: 4132 | M92: 471.048 | N92: 355.352 | O92: 115.696 | AO92: 365 | AP92: 0.8 | AQ92: 0.087 | AR92: 0.027 | AS92: 8 | AU92: 0
K93: г. Чехов, ул. Весенняя д. 28 | L93: 6636.9 | M93: 756.6066 | N93: 570.7734 | O93: 185.8332 | AO93: 365 | AP93: 0.8 | AQ93: 0.087 | AR93: 0.027 | AS93: 8 | AU93: 0
P94: ОМВД России по г.о. Чехов | Q94: 5048051901 | R94: 3 | S94: 2.64 | AO94: 365 | AP94: 0.8 | AQ94: 0.087 | AR94: 0.027 | AS94: 8 | AU94: 0
P95: ООО "Атлант" | Q95: 7730208886 | S95: 136.4 | AO95: 365 | AP95: 0.8 | AQ95: 0.087 | AR95: 0.027 | AS95: 8 | AU95: 0
A96: 37 | B96: 142300, Московская обл, городской округ Чехов, Весенняя ул, дом № 30 | C96: ОМСУ | D96: 1025006396040 | E96: МКД | F96: бюджет | H96: 55.158876 | I96: 37.474198 | J96: 47450 | K96: г. Чехов ул. Весеняя д. 30 | L96: 6542.6 | M96: 745.8564 | N96: 562.6636 | O96: 183.1928 | Z96: =SUM($M$96:$M$98)+SUM($S$96:$S$98)+SUM($W$96:$W$98) -> 1749.2898 | AA96: 1321.9902 | AB96: =SUM($O$96:$O$98)+SUM($Y$96:$Y$98) -> 427.2996 | AC96: ежедневно | AD96: 3.621890959 | AE96: 3.839863699 | AF96: 4 | AG96: Раз в два дня | AH96: 1 | AJ96: 1.170683836 | AK96: 0.1463354795 | AN96: место накопления КГМ: ул. Солнышевская, 26 | AO96: 365 | AP96: 0.8 | AQ96: 0.087 | AR96: 0.027 | AS96: 8 | AU96: 3.071890959
K97: г. Чехов ул. Весенняя, д.32 | L97: 8718.1 | M97: 993.8634 | N97: 749.7566 | O97: 244.1068 | AO97: 365 | AP97: 0.8 | AQ97: 0.087 | AR97: 0.027 | AS97: 8 | AU97: 0
P98: ООО "Дина-Мед" | Q98: 5048027144 | R98: 11 | S98: 9.57 | AO98: 365 | AP98: 0.8 | AQ98: 0.087 | AR98: 0.027 | AS98: 8 | AU98: 0
A99: 38 | B99: 142300, Московская обл, городской округ Чехов, Весенняя ул, дом № 27 | C99: ООО "УК СтартСтрой+" | D99: 1135048002979 | E99: МКД | F99: бюджет | H99: 55.15893 | I99: 37.479304 | J99: 47451 | K99: г. Чехов ул.Весенняя д. 27 | L99: 14209 | M99: 1619.826 | N99: 1221.974 | O99: 397.852 | Z99: =SUM($M$99:$M$109)+SUM($S$99:$S$109)+SUM($W$99:$W$109) -> 6129.0692 | AA99: 4679.4308 | AB99: =SUM($O$99:$O$109)+SUM($Y$99:$Y$109) -> 1449.6384 | AC99: 2 раза в день | AD99: 12.82035836 | AE99: 15.33794795 | AF99: 7 | AG99: Раз в два дня | AH99: 1 | AI99: 1 раз в 2 дня | AJ99: 3.971612055 | AK99: 0.4964515068 | AO99: 365 | AP99: 0.8 | AQ99: 0.087 | AR99: 0.027 | AS99: 8 | AU99: 12.27035836
K100: г. Чехов ул.Весенняя д. 29 | L100: 17439.1 | M100: 1988.0574 | N100: 1499.7626 | O100: 488.2948 | AO100: 365 | AP100: 0.8 | AQ100: 0.087 | AR100: 0.027 | AS100: 8 | AU100: 0
K101: г. Чехов ул. Весенняя, д. 26 А | L101: 8864.4 | M101: 1010.5416 | N101: 762.3384 | O101: 248.2032 | AO101: 365 | AP101: 0.8 | AQ101: 0.087 | AR101: 0.027 | AS101: 8 | AU101: 0
K102: г. Чехов ул.Весенняя д. 31 | L102: 11260.3 | M102: 1283.6742 | N102: 968.3858 | O102: 315.2884 | AO102: 365 | AP102: 0.8 | AQ102: 0.087 | AR102: 0.027 | AS102: 8 | AU102: 0
P103: ООО "РУСБИЗНЕСГРУПП" | Q103: 7706589983 | R103: 1 | S103: 0.87 | AO103: 365 | AP103: 0.8 | AQ103: 0.087 | AR103: 0.027 | AS103: 8 | AU103: 0
P104: ООО "Советская Аптека-Чехов" | Q104: 5048054300 | R104: 36.4 | S104: 41.496 | AO104: 365 | AP104: 0.8 | AQ104: 0.087 | AR104: 0.027 | AS104: 8 | AU104: 0
P105: ООО "Чароит" | Q105: 5048000921 | R105: 2 | S105: 3.2 | AO105: 365 | AP105: 0.8 | AQ105: 0.087 | AR105: 0.027 | AS105: 8 | AU105: 0
P106: ООО "Чароит" | Q106: 5048000921 | R106: 25 | S106: 19.83 | AO106: 365 | AP106: 0.8 | AQ106: 0.087 | AR106: 0.027 | AS106: 8 | AU106: 0
P107: ООО фирма "Недр" | Q107: 5048006419 | R107: 61.2 | S107: 69.768 | AO107: 365 | AP107: 0.8 | AQ107: 0.087 | AR107: 0.027 | AS107: 8 | AU107: 0
P108: ИП Аракелян Давит Мгерович | Q108: 504812419212 | R108: 5 | S108: 3 | AO108: 365 | AP108: 0.8 | AQ108: 0.087 | AR108: 0.027 | AS108: 8 | AU108: 0
P109: ИП Аракелян Давит Мгерович | Q109: 504812419212 | R109: 77.9 | S109: 88.806 | AO109: 365 | AP109: 0.8 | AQ109: 0.087 | AR109: 0.027 | AS109: 8 | AU109: 0
A110: 39 | B110: 142301, Московская обл, городской округ Чехов, Вишневая ул, дом № 3 | C110: ООО "УК Порядок" | D110: 1135048002693 | E110: МКД | F110: бюджет | H110: 55.144236 | I110: 37.480634 | J110: 47452 | K110: г. Чехов ул. Вишневая д. 5 | L110: 8201 | M110: 934.914 | N110: 705.286 | O110: 229.628 | Z110: =SUM($M$110:$M$118)+SUM($S$110:$S$118)+SUM($W$110:$W$118) -> 2063.1102 | AA110: 1590.9098 | AB110: =SUM($O$110:$O$118)+SUM($Y$110:$Y$118) -> 472.2004 | AC110: ежедневно | AD110: 4.358656986 | AE110: 4.760821233 | AF110: 4 | AG110: Раз в два дня | AH110: 1 | AI110: 1 раз в 3 дня | AJ110: 1.293699726 | AK110: 0.1617124658 | AO110: 365 | AP110: 0.8 | AQ110: 0.087 | AR110: 0.027 | AS110: 8 | AU110: 3.808656986
K111: г. Чехов ул. Вишневая, д.2 | L111: 7815.2 | M111: 890.9328 | N111: 672.1072 | O111: 218.8256 | AO111: 365 | AP111: 0.8 | AQ111: 0.087 | AR111: 0.027 | AS111: 8 | AU111: 0
P112: ООО "АСБ" | Q112: 5048017562 | R112: 7 | S112: 6.09 | AO112: 365 | AP112: 0.8 | AQ112: 0.087 | AR112: 0.027 | AS112: 8 | AU112: 0
P113: ООО "РРТ-системы" | Q113: 5048032200 | R113: 6 | S113: 5.22 | AO113: 365 | AP113: 0.8 | AQ113: 0.087 | AR113: 0.027 | AS113: 8 | AU113: 0
P114: ИП Фадеева Юлия Николаевна | Q114: 505198192341 | R114: 4 | S114: 6.4 | AO114: 365 | AP114: 0.8 | AQ114: 0.087 | AR114: 0.027 | AS114: 8 | AU114: 0
P115: ИП Ли Николай Константинович | Q115: 772978818698 | R115: 1 | S115: 2.07 | AO115: 365 | AP115: 0.8 | AQ115: 0.087 | AR115: 0.027 | AS115: 8 | AU115: 0
P116: ООО "Альфа Владимир" | Q116: 337122348 | S116: 58.7 | AO116: 365 | AP116: 0.8 | AQ116: 0.087 | AR116: 0.027 | AS116: 8 | AU116: 0
P117: ИП Балушкина Алена Петровна | Q117: 143406144504 | R117: 30 | S117: 62.1 | AO117: 365 | AP117: 0.8 | AQ117: 0.087 | AR117: 0.027 | AS117: 8 | AU117: 0
T118: 8 | U118: г. Чехов, ул. Вишневая | V118: 848.1 | W118: 96.6834 | X118: 72.9366 | Y118: 23.7468 | AO118: 365 | AP118: 0.8 | AQ118: 0.087 | AR118: 0.027 | AS118: 8 | AU118: 0
A119: 40 | B119: 142301, Московская обл, городской округ Чехов, Вишневый б-р, дом № 4 | C119: ОМСУ | D119: 1025006396040 | E119: МКД | F119: бюджет | H119: 55.146069 | I119: 37.48709 | J119: 47453 | K119: г. Чехов, ул. Вишневый б-р д. 3 | L119: 3514.1 | M119: 400.6074 | N119: 302.2126 | O119: 98.3948 | Z119: =SUM($M$119:$M$134)+SUM($S$119:$S$134)+SUM($W$119:$W$134) -> 3067.9548 | AA119: 2376.7972 | AB119: =SUM($O$119:$O$134)+SUM($Y$119:$Y$134) -> 691.1576 | AC119: ежедневно | AD119: 6.511773151 | AE119: 7.452216438 | AF119: 7 | AG119: Раз в два дня | AH119: 1 | AJ119: =AB119/AO119 -> 1.893582466 | AK119: =AJ119/AS119 -> 0.2366978082 | AN119: место накопления КГМ: ул. Солнышевская, 26 | AO119: 365 | AP119: 0.8 | AQ119: 0.087 | AR119: 0.027 | AS119: 8 | AU119: 5.961773151
K120: г. Чехов, ул. Вишневый б-р д. 4 | L120: 3070.2 | M120: 350.0028 | N120: 264.0372 | O120: 85.9656 | AO120: 365 | AP120: 0.8 | AQ120: 0.087 | AR120: 0.027 | AS120: 8 | AU120: 0
K121: г. Чехов, ул. Вишневый б-р д. 5 | L121: 3480.1 | M121: 396.7314 | N121: 299.2886 | O121: 97.4428 | AO121: 365 | AP121: 0.8 | AQ121: 0.087 | AR121: 0.027 | AS121: 8 | AU121: 0
K122: г. Чехов, ул. Вишневый б-р д. 5а | L122: 3911.6 | M122: 445.9224 | N122: 336.3976 | O122: 109.5248 | AO122: 365 | AP122: 0.8 | AQ122: 0.087 | AR122: 0.027 | AS122: 8 | AU122: 0
K123: г. Чехов, ул. Вишневый б-р д. 5б | L123: 3260.9 | M123: 371.7426 | N123: 280.4374 | O123: 91.3052 | AO123: 365 | AP123: 0.8 | AQ123: 0.087 | AR123: 0.027 | AS123: 8 | AU123: 0
K124: г. Чехов, ул. Товарная, д. 12 | L124: 146.1 | M124: 16.6554 | N124: 12.5646 | O124: 4.0908 | AO124: 365 | AP124: 0.8 | AQ124: 0.087 | AR124: 0.027 | AS124: 8 | AU124: 0
K125: г. Чехов, ул. Вишневый б-р д. 4а | L125: 7301.2 | M125: 832.3368 | N125: 627.9032 | O125: 204.4336 | AO125: 365 | AP125: 0.8 | AQ125: 0.087 | AR125: 0.027 | AS125: 8 | AU125: 0
P126: ООО "Вилена" | Q126: 5048034600 | R126: 10 | S126: 6.09 | AO126: 365 | AP126: 0.8 | AQ126: 0.087 | AR126: 0.027 | AS126: 8 | AU126: 0
P127: ООО "Вилена" | Q127: 5048034600 | R127: 7 | S127: 1.9 | AO127: 365 | AP127: 0.8 | AQ127: 0.087 | AR127: 0.027 | AS127: 8 | AU127: 0
P128: ООО Аптека-А.в.е-1" | Q128: 7714844316 | R128: 33.4 | S128: 38.1 | AO128: 365 | AP128: 0.8 | AQ128: 0.087 | AR128: 0.027 | AS128: 8 | AU128: 0
P129: ООО "Пионер Рекрутмэнт" | Q129: 7725090526 | R129: 283 | S129: 53.77 | AO129: 365 | AP129: 0.8 | AQ129: 0.087 | AR129: 0.027 | AS129: 8 | AU129: 0
P130: ООО "Пионер Рекрутмэнт" | Q130: 7725090526 | R130: 3 | S130: 2.61 | AO130: 365 | AP130: 0.8 | AQ130: 0.087 | AR130: 0.027 | AS130: 8 | AU130: 0
P131: ООО "Газетта" | Q131: 9731011491 | R131: 7 | S131: 4.96 | AO131: 365 | AP131: 0.8 | AQ131: 0.087 | AR131: 0.027 | AS131: 8 | AU131: 0
P132: ПК "Чеховское райпо" | Q132: 5048090033 | R132: 9 | S132: 7.83 | AO132: 365 | AP132: 0.8 | AQ132: 0.087 | AR132: 0.027 | AS132: 8 | AU132: 0
P133: ГБУ МО "СШОР по водным видам спорта" | Q133: 5075033299 | R133: 253.1 | S133: 28.8 | AO133: 365 | AP133: 0.8 | AQ133: 0.087 | AR133: 0.027 | AS133: 8 | AU133: 0
P134: ИП Лебедев Семен Дмитриевич | Q134: 771565306819 | R134: 96.4 | S134: 109.896 | AO134: 365 | AP134: 0.8 | AQ134: 0.087 | AR134: 0.027 | AS134: 8 | AU134: 0
A135: 41 | B135: 142301, Московская обл, городской округ Чехов, Вишневый б-р, дом № 9 | C135: ОМСУ | D135: 1025006396040 | E135: МКД | F135: бюджет | H135: 55.14349 | I135: 37.487876 | J135: 47454 | K135: г. Чехов, ул. Вишневый б-р д. 6 | L135: 3189 | M135: 363.546 | N135: 274.254 | O135: 89.292 | T135: 4 | U135: ул. Товарная | V135: 384.3 | W135: 43.8102 | X135: 33.0498 | Y135: 10.7604 | Z135: =SUM($M$135:$M$144)+SUM($S$135:$S$144)+SUM($W$135:$W$144) -> 2977.4202 | AA135: =Z135-AB135 -> 2283.7202 | AB135: =SUM($O$135:$O$144)+SUM($Y$135:$Y$144) -> 693.7 | AC135: ежедневно | AD135: =AA135/365 -> 6.256767671 | AE135: =AU135/0.8 -> 7.133459589 | AF135: 7 | AG135: Раз в два дня | AH135: 1 | AJ135: 1.900547945 | AK135: 0.2375684932 | AN135: место накопления КГМ: ул. Солнышевская, 26 | AO135: 365 | AP135: 0.8 | AQ135: 0.087 | AR135: 0.027 | AS135: 8 | AU135: 5.706767671
K136: г. Чехов, ул. Вишневый б-р д. 7 | L136: 3537.3 | M136: 403.2522 | N136: 304.2078 | O136: 99.0444 | AO136: 365 | AP136: 0.8 | AQ136: 0.087 | AR136: 0.027 | AS136: 8 | AU136: 0
K137: г. Чехов, ул. Вишневый б-р д. 8 | L137: 6728.4 | M137: 767.0376 | N137: 578.6424 | O137: 188.3952 | AO137: 365 | AP137: 0.8 | AQ137: 0.087 | AR137: 0.027 | AS137: 8 | AU137: 0
K138: г. Чехов, ул. Вишневый б-р д. 9 | L138: 10936 | M138: 1246.704 | N138: 940.496 | O138: 306.208 | AO138: 365 | AP138: 0.8 | AQ138: 0.087 | AR138: 0.027 | AS138: 8 | AU138: 0
P139: АО "Артсок" | Q139: 5048080290 | R139: 2 | S139: 1.74 | AO139: 365 | AP139: 0.8 | AQ139: 0.087 | AR139: 0.027 | AS139: 8 | AU139: 0
P140: ООО "Кулинария" | Q140: 5048041205 | R140: 26.33 | S140: 30.0162 | AO140: 365 | AP140: 0.8 | AQ140: 0.087 | AR140: 0.027 | AS140: 8 | AU140: 0
P141: ИП Сдержикова Татьяна Владимировна | Q141: 504805979968 | R141: 158 | S141: 94.8 | AS141: 8 | AU141: 0
P142: АО "Продторг" | Q142: 4345164751 | R142: 316 | S142: 1.14 | AU142: 0
P143: ООО "ВЕТ-ЧЕХОВ" | Q143: 5048024055 | R143: 5 | S143: 4.35 | AO143: 365 | AP143: 0.8 | AQ143: 0.087 | AR143: 0.027 | AS143: 8 | AU143: 0
P144: ИП Амирзадян Давит Араикович | Q144: 504309615120 | R144: 33.9 | S144: 21.024 | AO144: 365 | AP144: 0.8 | AQ144: 0.087 | AR144: 0.027 | AS144: 8 | AU144: 0
A145: 42 | B145: 142301, Московская обл, городской округ Чехов, Вокзальная пл, дом № 1 | C145: ОМСУ | D145: 1025006396040 | E145: МКД | F145: бюджет | H145: 55.150829 | I145: 37.487155 | J145: 47455 | K145: г. Чехов, ул. Новослободская, д.1 | L145: 2083.1 | M145: 237.4734 | N145: 179.1466 | O145: 58.3268 | T145: 1 | U145: ул. Вокзальная | V145: 100 | W145: 11.4 | X145: 8.6 | Y145: 2.8 | Z145: =SUM($M$145:$M$192)+SUM($S$145:$S$192)+SUM($W$145:$W$192) -> 3414.6944 | AA145: 2840.728 | AB145: =SUM($O$145:$O$192)+SUM($Y$145:$Y$192) -> 573.9664 | AC145: 2 раза в день | AD145: 7.782816438 | AE145: 9.041020548 | AF145: 5 | AG145: Раз в два дня | AH145: 1 | AJ145: 1.572510685 | AK145: 0.1965638356 | AM145: 1 | AN145: место накопления КГМ: ул. Солнышевская, 26 | AO145: 365 | AP145: 0.8 | AQ145: 0.087 | AR145: 0.027 | AS145: 8 | AU145: 7.232816438
K146: г. Чехов, ул. Новослободская, д.5 | L146: 2522.2 | M146: 287.5308 | N146: 216.9092 | O146: 70.6216 | AE146: 0 | AO146: 365 | AP146: 0.8 | AQ146: 0.087 | AR146: 0.027 | AS146: 8 | AU146: 0
K147: г. Чехов, ул. Чехова, д.1 | L147: 1703.8 | M147: 194.2332 | N147: 146.5268 | O147: 47.7064 | AE147: 0 | AO147: 365 | AP147: 0.8 | AQ147: 0.087 | AR147: 0.027 | AS147: 8 | AU147: 0
K148: г. Чехов, ул. Чехова, д.3 | L148: 1722.2 | M148: 196.3308 | N148: 148.1092 | O148: 48.2216 | AE148: 0 | AO148: 365 | AP148: 0.8 | AQ148: 0.087 | AR148: 0.027 | AS148: 8 | AU148: 0
K149: г. Чехов, ул. Чехова, д.5 | L149: 1739.5 | M149: 198.303 | N149: 149.597 | O149: 48.706 | AE149: 0 | AO149: 365 | AP149: 0.8 | AQ149: 0.087 | AR149: 0.027 | AS149: 8 | AU149: 0
K150: г. Чехов, Вокзальная пл. д. 1 | L150: 1859.3 | M150: 211.9602 | N150: 159.8998 | O150: 52.0604 | AE150: 0 | AO150: 365 | AP150: 0.8 | AQ150: 0.087 | AR150: 0.027 | AS150: 8 | AU150: 0
K151: г. Чехов, Вокзальная пл. д. 2 | L151: 3432.4 | M151: 391.2936 | N151: 295.1864 | O151: 96.1072 | AE151: 0 | AO151: 365 | AP151: 0.8 | AQ151: 0.087 | AR151: 0.027 | AS151: 8 | AU151: 0
K152: г. Чехов, Вокзальная пл. д. 3 | L152: 1878.2 | M152: 214.1148 | N152: 161.5252 | O152: 52.5896 | AE152: 0 | AO152: 365 | AP152: 0.8 | AQ152: 0.087 | AR152: 0.027 | AS152: 8 | AU152: 0
K153: г. Чехов, Вокзальная пл. д. 4 | L153: 3458.1 | M153: 394.2234 | N153: 297.3966 | O153: 96.8268 | AE153: 0 | AO153: 365 | AP153: 0.8 | AQ153: 0.087 | AR153: 0.027 | AS153: 8 | AU153: 0
P154: ООО "Алексеев" | Q154: 7701510676 | R154: 48 | S154: 36.48 | AE154: 0 | AO154: 365 | AP154: 0.8 | AQ154: 0.087 | AR154: 0.027 | AS154: 8 | AU154: 0
P155: ИП Погосян Мери Владимировна | Q155: 77947363764 | R155: 71 | S155: 53.96 | AE155: 0 | AO155: 365 | AP155: 0.8 | AQ155: 0.087 | AR155: 0.027 | AS155: 8 | AU155: 0
P156: ИП Нурков Павел Геннадьевич | Q156: 504805830090 | R156: 36 | S156: 27.36 | AE156: 0 | AO156: 365 | AP156: 0.8 | AQ156: 0.087 | AR156: 0.027 | AS156: 8 | AU156: 0
P157: ИП Сакалы М.М. | Q157: 504816613482 | R157: 12.6 | S157: 9.576 | AE157: 0 | AO157: 365 | AP157: 0.8 | AQ157: 0.087 | AR157: 0.027 | AS157: 8 | AU157: 0
P158: ИП Жениленко Л.В. | Q158: 504800101810 | R158: 163 | S158: 101.06 | AE158: 0 | AO158: 365 | AP158: 0.8 | AQ158: 0.087 | AR158: 0.027 | AS158: 8 | AU158: 0
P159: ИП Алексеев Евгений Валерьевич | Q159: 504800121894 | R159: 18.66 | S159: 11.196 | AE159: 0 | AO159: 365 | AP159: 0.8 | AQ159: 0.087 | AR159: 0.027 | AS159: 8 | AU159: 0
P160: ИП Козырев Вадим Анатольевич | Q160: 507400513444 | R160: 4 | S160: 3.48 | AE160: 0 | AO160: 365 | AP160: 0.8 | AQ160: 0.087 | AR160: 0.027 | AS160: 8 | AU160: 0
P161: ИП Осичкина Александра Олеговна | Q161: 366607308851 | R161: 8 | S161: 40.64 | AE161: 0 | AU161: 0
P162: ИП Козырев Вадим Анатольевич | Q162: 507400513444 | R162: 1 | S162: 16.56 | AE162: 0 | AO162: 365 | AP162: 0.8 | AQ162: 0.087 | AR162: 0.027 | AS162: 8 | AU162: 0
P163: ИП Глотова Ирина Михайловна | Q163: 504800167306 | R163: 20 | S163: 22.8 | AE163: 0 | AO163: 365 | AP163: 0.8 | AQ163: 0.087 | AR163: 0.027 | AS163: 8 | AU163: 0
P164: ЦБС г.о. Чехов МБУК | Q164: 5048053539 | R164: 3 | S164: 2.52 | AE164: 0 | AS164: 8 | AU164: 0
P165: МБУ Чеховское благоустройство | Q165: 5048030108 | R165: 10722 | S165: 107.22 | AE165: 0 | AS165: 8 | AU165: 0
P166: ИП Аристархова Татьяна Анатольевна | Q166: 503703588113 | R166: 28.1 | S166: 32.034 | AE166: 0 | AO166: 365 | AP166: 0.8 | AQ166: 0.087 | AR166: 0.027 | AS166: 8 | AU166: 0
P167: ИП Версальский Андрей Евгеньевич | Q167: 504807966562 | R167: 11 | S167: 9.57 | AE167: 0 | AO167: 365 | AP167: 0.8 | AQ167: 0.087 | AR167: 0.027 | AS167: 8 | AU167: 0
P168: ИП Тарасевич Ян Антонович | Q168: 504801316208 | R168: 40 | S168: 34.8 | AE168: 0 | AO168: 365 | AP168: 0.8 | AQ168: 0.087 | AR168: 0.027 | AS168: 8 | AU168: 0
P169: ИП Тарасевич Ян Антонович | Q169: 504801316208 | R169: 20 | S169: 17.4 | AE169: 0 | AO169: 365 | AP169: 0.8 | AQ169: 0.087 | AR169: 0.027 | AS169: 8 | AU169: 0
P170: ИП Тарасевич Ян Антонович | Q170: 504801316208 | R170: 60 | S170: 52.2 | AE170: 0 | AO170: 365 | AP170: 0.8 | AQ170: 0.087 | AR170: 0.027 | AS170: 8 | AU170: 0
P171: ИП Манжула А.Н. | Q171: 504810685089 | R171: 8 | S171: 6.96 | AE171: 0 | AO171: 365 | AP171: 0.8 | AQ171: 0.087 | AR171: 0.027 | AS171: 8 | AU171: 0
P172: ИП Архипов А.П. | Q172: 772443601897 | R172: 20 | S172: 15.2 | AE172: 0 | AO172: 365 | AP172: 0.8 | AQ172: 0.087 | AR172: 0.027 | AS172: 8 | AU172: 0
P173: ИП Попова Е.Н. | Q173: 504800529147 | R173: 9.7 | S173: 11.058 | AE173: 0 | AO173: 365 | AP173: 0.8 | AQ173: 0.087 | AR173: 0.027 | AS173: 8 | AU173: 0
P174: ИП Соловьева Н.А. | Q174: 504800064357 | R174: 17.9 | S174: 20.406 | AE174: 0 | AO174: 365 | AP174: 0.8 | AQ174: 0.087 | AR174: 0.027 | AS174: 8 | AU174: 0
P175: ИП Гаврищук Инна Владимировна | Q175: 504809726799 | R175: 31.5 | S175: 35.91 | AE175: 0 | AO175: 365 | AP175: 0.8 | AQ175: 0.087 | AR175: 0.027 | AS175: 8 | AU175: 0
P176: ИП Алипов Алексей Васильевич | Q176: 504801491513 | R176: 18.1 | S176: 20.634 | AE176: 0 | AO176: 365 | AP176: 0.8 | AQ176: 0.087 | AR176: 0.027 | AS176: 8 | AU176: 0
P177: ИП Дивак Алексей Вячеславович | Q177: 504807346819 | R177: 5 | S177: 3.8 | AE177: 0 | AO177: 365 | AP177: 0.8 | AQ177: 0.087 | AR177: 0.027 | AS177: 8 | AU177: 0
P178: ИП СоколоваСветлана Викторовна | Q178: 711603820970 | R178: 25.8 | S178: 19.608 | AE178: 0 | AO178: 365 | AP178: 0.8 | AQ178: 0.087 | AR178: 0.027 | AS178: 8 | AU178: 0
P179: ИП Пронин Валентин Николаевич | Q179: 711809617764 | R179: 19.4 | S179: 22.116 | AE179: 0 | AO179: 365 | AP179: 0.8 | AQ179: 0.087 | AR179: 0.027 | AS179: 8 | AU179: 0
P180: ИП Королькова Тамара Николаевна | Q180: 504800021106 | R180: 42.5 | S180: 48.45 | AE180: 0 | AO180: 365 | AP180: 0.8 | AQ180: 0.087 | AR180: 0.027 | AS180: 8 | AU180: 0
P181: ООО "Ригла-МО" | Q181: 7724211288 | R181: 43.5 | S181: 33.06 | AE181: 0 | AO181: 365 | AP181: 0.8 | AQ181: 0.087 | AR181: 0.027 | AS181: 8 | AU181: 0
P182: ОМВД России по г.о. Чехов | Q182: 5048051901 | R182: 2 | S182: 2.618 | AE182: 0 | AO182: 365 | AP182: 0.8 | AQ182: 0.087 | AR182: 0.027 | AS182: 8 | AU182: 0
P183: ИП Осичкина Александра Олеговна | Q183: 366607308851 | R183: 8 | S183: 40.64 | AE183: 0 | AS183: 8 | AU183: 0
P184: МАДОУ д/с №17 | Q184: 5048052207 | R184: 155 | S184: 66.3 | AE184: 0 | AO184: 365 | AP184: 0.8 | AQ184: 0.087 | AR184: 0.027 | AS184: 8 | AU184: 0
P185: ФГУП "Почта России" | Q185: 7724490000 | R185: 13 | S185: 19.632 | AE185: 0 | AO185: 365 | AP185: 0.8 | AQ185: 0.087 | AR185: 0.027 | AS185: 8 | AU185: 0
P186: ИП Прагин Альберт Рувимович | Q186: 504800920181 | R186: 4 | S186: 2.616 | AE186: 0 | AS186: 8 | AU186: 0
P187: ООО "Ломбард Голд" | Q187: 5048033726 | R187: 1 | S187: 0.876 | AE187: 0 | AS187: 8 | AU187: 0
P188: ИП Праздникова ольга Владимировна | Q188: 503205208506 | R188: 15 | S188: 17.1 | AE188: 0 | AS188: 8 | AU188: 0
P189: ИП Чеботарь Кирилл Юрьевич | Q189: 504810910312 | R189: 10.76 | S189: 22.2732 | AE189: 0 | AS189: 8 | AU189: 0
P190: ИП Мусатова Ирина Игоревна | Q190: 504803483973 | R190: 22.5 | S190: 17.1 | AE190: 0 | AS190: 8 | AU190: 0
P191: ООО "Аметист" | Q191: 5048012476 | R191: 39.7 | S191: 45.258 | AE191: 0 | AO191: 365 | AP191: 0.8 | AQ191: 0.087 | AR191: 0.027 | AS191: 8 | AU191: 0
P192: ООО "Сеть Связной" | Q192: 7714617793 | R192: 36 | S192: 27.36 | AE192: 0 | AO192: 365 | AP192: 0.8 | AQ192: 0.087 | AR192: 0.027 | AS192: 8 | AU192: 0
A193: 43 | B193: 142304, Московская обл, Городской округ Чехов, Гагарина ул, дом № 25 | C193: ОМСУ | D193: 1025006396040 | E193: МКД | F193: бюджет | G193: Демонтировали КП по ул. Шараповская от 04.04.2022 г. (ул. Шараповская, ул. Радужная, ул.Тихая, ул. Жасминовая, ул. Ясная, ул. Раздольная, ул. Арматурная, ул. Отрадная, ул. Еловая), закрепили за КП ул. Гагарина,д25 | H193: 55.167564 | I193: 37.424681 | J193: 47456 | K193: г. Чехов ул. Гагарина д. 25 | L193: 612.5 | M193: 69.825 | N193: 52.675 | O193: 17.15 | Z193: =SUM($M$193:$M$205)+SUM($S$193:$S$205)+SUM($W$193:$W$205) -> 2624.70988 | AA193: =Z193-AB193 -> 2001.16612 | AB193: =SUM($O$193:$O$205)+SUM($Y$193:$Y$205) -> 623.54376 | AC193: ежедневно | AD193: =AA193/365 -> 5.482646904 | AE193: 6.16580863 | AF193: 5 | AG193: Раз в два дня | AH193: 1 | AJ193: =AB193/AO193 -> 1.708339068 | AK193: =AJ193/AS193 -> 0.2135423836 | AM193: 1 | AN193: место накопления КГМ: ул. Солнышевская, 26 | AO193: 365 | AP193: 0.8 | AQ193: 0.087 | AR193: 0.027 | AS193: 8 | AU193: 4.932646904
K194: г. Чехов ул. Гагарина д. 27 | L194: 1254.6 | M194: 143.0244 | N194: 107.8956 | O194: 35.1288 | AE194: 0 | AO194: 365 | AP194: 0.8 | AQ194: 0.087 | AR194: 0.027 | AS194: 8 | AU194: 0
K195: г. Чехов ул. Гагарина д. 29 | L195: 2333.1 | M195: 265.9734 | N195: 200.6466 | O195: 65.3268 | AE195: =AU195/0.8 -> 0 | AO195: 365 | AP195: 0.8 | AQ195: 0.087 | AR195: 0.027 | AS195: 8 | AU195: 0
K196: г. Чехов ул. Гагарина д. 19 | L196: 1879.09 | M196: 214.21626 | N196: 161.60174 | O196: 52.61452 | AE196: 0 | AO196: 365 | AP196: 0.8 | AQ196: 0.087 | AR196: 0.027 | AS196: 8 | AU196: 0
K197: г. Чехов ул. Гагарина д. 31 | L197: 1571.5 | M197: 179.151 | N197: 135.149 | O197: 44.002 | AE197: 0 | AO197: 365 | AP197: 0.8 | AQ197: 0.087 | AR197: 0.027 | AS197: 8 | AU197: 0
P198: ООО "Мангуст-Вет" | Q198: 5048045961 | R198: 2 | S198: 1.74 | AE198: 0 | AO198: 365 | AP198: 0.8 | AQ198: 0.087 | AR198: 0.027 | AS198: 8 | AU198: 0
P199: МКОУ СКШИ | Q199: 5048052912 | R199: 113 | S199: 21.47 | AE199: 0 | AO199: 365 | AP199: 0.8 | AQ199: 0.087 | AR199: 0.027 | AS199: 8 | AU199: 0
P200: ИП Коннов Сергей Вячеславович | Q200: 504803860188 | R200: 6 | S200: 3.6 | AE200: 0 | AO200: 365 | AP200: 0.8 | AQ200: 0.087 | AR200: 0.027 | AS200: 8 | AU200: 0
P201: ООО "ННФОРМАТ" | Q201: 5048036950 | R201: 1 | S201: 0.87 | AE201: 0 | AO201: 365 | AP201: 0.8 | AQ201: 0.087 | AR201: 0.027 | AS201: 8 | AU201: 0
... 924 more rows

Sheet Лист2 (hidden)

Sheet Лист1 (hidden)
B2: 142305, Московская обл, Городской округ Чехов, 8-е Марта ул, дом № 11 | C2: 1
B3: 142305, Московская обл, Городской округ Чехов, 8-е Марта ул, дом № 1 | C3: 2
B4: 142301, Московская обл, городской округ Чехов, Береговая ул, дом № 36А | C4: 3
B5: 142301, Московская обл, городской округ Чехов, Береговая ул, дом № 42 | C5: 4
B6: 142300, Московская обл, городской округ Чехов, Весенняя ул, дом № 15 | C6: 5
B7: 142300, Московская обл, городской округ Чехов, Весенняя ул, дом № 18 | C7: 6
B8: 142300, Московская обл, городской округ Чехов, Весенняя ул, дом № 22 | C8: 7
B9: 142300, Московская обл, городской округ Чехов, Весенняя ул, дом № 30 | C9: 8
B10: 142300, Московская обл, городской округ Чехов, Весенняя ул, дом № 27 | C10: 9
B11: 142301, Московская обл, городской округ Чехов, Вишневая ул, дом № 3 | C11: 10
B20: 142301, Московская обл, городской округ Чехов, Вишневый б-р, дом № 4 | C20: 11
B36: 142301, Московская обл, городской округ Чехов, Вишневый б-р, дом № 9 | C36: 12
B46: 142301, Московская обл, городской округ Чехов, Вокзальная пл, дом № 1 | C46: 13
B101: 142304, Московская обл, Городской округ Чехов, Гагарина ул, дом № 25 | C101: 14
B114: 142304, Московская обл, Городской округ Чехов, Гагарина ул, дом № 42 | C114: 15
B133: Московская обл, г. о. Чехов,ул.Гагарина, д.47 (Космос) | C133: 16
B158: 142307, Московская обл, Городской округ Чехов, Гагарина ул, дом № 60 | C158: 17
B170: 142307, Московская обл, Городской округ Чехов, Гагарина ул, дом № 88 | C170: 18
B177: 142307, Московская обл, Городской округ Чехов, Гагарина ул, дом № 98 | C177: 19
B186: 142307, Московская обл, Городской округ Чехов, Гагарина ул, дом № 118 | C186: 20
B192: 142307, Московская обл, Городской округ Чехов, Гагарина ул, дом № 118А | C192: 21
B198: 142307, Московская обл, Городской округ Чехов, Гагарина ул, дом № 128 | C198: 22
B213: 142305, Московская обл, Городской округ Чехов, Дорожная ул, дом № 2А | C213: 23
B224: 142306, Московская обл, городской округ Чехов, Дружбы ул, дом № 1А | C224: 24
B238: 142306, Московская обл, городской округ Чехов, Дружбы ул, дом № 2А | C238: 25
B254: 142306, Московская обл, городской округ Чехов, Дружбы ул, дом № 10 | C254: 26
B271: 142306, Московская обл, городской округ Чехов, Дружбы ул, дом № 20 | C271: 27
B293: 142306, Московская обл, городской округ Чехов, Дружбы ул, дом № 21 | C293: 28
B302: Московская обл, Городской округ Чехов, Зеленая ул | C302: 29
B306: 142300, Московская обл, городской округ Чехов, Земская ул, дом № 1, 2 | C306: 30
B334: 142300, Московская обл, городской округ Чехов, Земская ул, дом № 4, 9, 11 | C334: 31
B347: 142300, Московская обл, городской округ Чехов, Земская ул, дом № 6, 13 | C347: 32
B353: 142300, Московская обл, городской округ Чехов, Земская ул, дом № 8, 15, 17 | C353: 33
B363: 142300, Московская обл, городской округ Чехов, Земская ул, дом № 10 | C363: 34
B373: 142300, Московская обл, городской округ Чехов, Земская ул, дом № 14, 21, 23 | C373: 35
B390: 142300, Московская обл, городской округ Чехов, Земская ул, дом № 16, 18 | C390: 36
B398: 142301, Московская обл, городской округ Чехов, Ильича ул, дом № 26 | C398: 37
B411: 142301, Московская обл, городской округ Чехов, Ильича ул, дом № 30, 37 | C411: 38
B424: М. О., г. о. Чехов, ул.Ильича, д.41 | C424: 39
B436: 142304, Московская обл, г.о. Чехов, г Чехов, ул Комсомольская, д. 5 | C436: 40
B453: 142304, Московская обл, Городской округ Чехов, Комсомольская ул, дом № 17А | C453: 41
B460: 142306, Московская обл, г.о. городской округ Чехов, ул Лопасненская, д. 3, 5, 7 | C460: 42
B478: 142306, Московская обл, городской округ Чехов, Лопасненская ул, дом № 11 | C478: 43
B485: 142307, Московская обл, Городской округ Чехов, Маркова ул, дом № 1 | C485: 44
B489: 142307, Московская обл, Городской округ Чехов, Маркова ул, дом № 5 | C489: 45
B498: 142307, Московская обл, Городской округ Чехов, Маркова ул, дом № 13 | C498: 46
B507: 142300, Московская обл, городской округ Чехов, Мира ул, дом № 3А | C507: 47
B513: 142300, Московская обл, городской округ Чехов, Мира ул, дом № 10 | C513: 48
B535: 142300, Московская обл, городской округ Чехов, Мира ул, дом № 11 | C535: 49
B545: 142300, Московская обл, городской округ Чехов, Молодежная ул, дом № 6А | C545: 50
B547: М. О., г. о. Чехов, ул.Молодежная, д.10А , (д.10) | C547: 51
B558: 142300, Московская обл, городской округ Чехов, Молодежная ул, дом № 17 | C558: 52
B569: 142306, Московская обл, городской округ Чехов, Московская ул, дом № 81 | C569: 53
B590: 142306, Московская обл, Чехов г, Московская ул, дом № 84, корпус 1, 2 | C590: 54
B596: 142300, Московская обл, городской округ Чехов, Московская ул, дом № 87 | C596: 55
B604: 142300, Московская обл, городской округ Чехов, Московская ул, дом № 94/1 | C604: 56
B609: 142300, Московская обл, городской округ Чехов, Чехов г, Московская ул, дом 106, 108,110 | C609: 57
B619: 142300, Московская обл, городской округ Чехов, Московская ул, дом № 101А | C619: 58
B626: М. О., г. о. Чехов, ул.8 марта | C626: 59
B627: 142301, Московская обл, городской округ Чехов, Набережная ул, дом № 5 | C627: 60
B633: 142300, Московская обл, городской округ Чехов, Полиграфистов ул, дом № 4 | C633: 61
B669: 142300, Московская обл, городской округ Чехов, Полиграфистов ул, дом № 12 | C669: 62
B692: 142300, Московская обл, городской округ Чехов, Полиграфистов ул, дом № 18 | C692: 63
B706: 142300, Московская обл, городской округ Чехов, Полиграфистов ул, дом № 23 | C706: 64
B717: 142300, Московская обл, г Чехов, ул Полиграфистов, д. 29 | C717: 65
B728: 142306, Московская обл, Чехов г, Русская ул, дом № 36А | C728: 66
B764: 142306, Московская обл, городской округ Чехов, Солнышевская ул, дом № 3А | C764: 67
B772: 142306, Московская обл, городской округ Чехов, Солнышевская ул, дом № 20 | C772: 68
B779: 142300, Московская обл, городской округ Чехов, Уездная ул, дом № 1, 2, 3 | C779: 69
B782: Московская обл, г Чехов, ул Уездная, д. № 3, 4, 5 | C782: 70
B798: 142300, Московская обл, городской округ Чехов, Центральная ул, дом № 41 | C798: 71
B802: 142300, Московская обл, г.о. Чехов, г Чехов, ул Центральная, д. 42 | C802: 72
B803: 142301, Московская обл, городской округ Чехов, Чехова ул, дом № 2 | C803: 73
B822: 142301, Московская обл, городской округ Чехов, Чехова ул, дом № 6 | C822: 74
B835: 142301, Московская обл, городской округ Чехов, Чехова ул, дом № 12 | C835: 75
B846: 142301, Московская обл, городской округ Чехов, Чехова ул, дом № 19 | C846: 76
B855: 142306, Московская обл, городской округ Чехов, Чехова ул, дом № 53 | C855: 77
B869: 142306, Московская обл, городской округ Чехов, Чехова ул, дом № 81, 81Б | C869: 78
B883: 142306, Московская обл, городской округ Чехов, Чехова ул, дом № 79 | C883: 79
B912: Московская обл, Городской округ Чехов, Ваулово д, ул. Центральная (возле водокачки) | C912: 80
B916: Московская обл, Городской округ Чехов, Ваулово д, ул. Центральная (около гаражей) | C916: 81
B925: Московская обл, Городской округ Чехов, Ваулово д, Центральная ул, дом № 15 | C925: 82
B929: Московская обл, Городской округ Чехов, Ваулово д, Центральная ул. (за магазином) | C929: 83
B934: 142304, Московская обл, городской округ Чехов, Беляево д, дом № 1 | C934: 84
B939: Московская обл, Городской округ Чехов, Бершово д | C939: 85
B944: Московская обл, городской округ Чехов, Детково д, ( у ЖД Станции) | C944: 86
B949: 142321, Московская обл, городской округ Чехов, Кулаково д, дом 93 | C949: 87
B951: 142340, Московская обл, Городской округ Чехов, Мерлеево д, дом № 1 | C951: 88
B956: 142325, Московская обл, Городской округ Чехов, дома отдыха "Лопасня" п, Зеленая ул | C956: 89
B961: М. О., г. о. Чехов, с.Пешково, ул. Новая, д.1 (Стремиловский) | C961: 90
B968: 142350, Московская обл, Городской округ Чехов, Сандарово д, Станционная ул, дом № 1 | C968: 91
B972: 142323, Московская обл, городской округ Чехов, Хлевино д, дом № 1 | C972: 92
B977: 142304, Московская обл, Городской округ Чехов, Ходаево д, дом № 2 | C977: 93
B987: 142326, Московская обл, г.о. Чехов, п Васькино, д. 29 | C987: 94
B1000: 142326, Московская обл, Городской округ Чехов, Васькино п, дом № 33 | C1000: 95
B1014: 142380, Московская обл, Городской округ Чехов, Любучаны п, Парковая ул, дом № 6 | C1014: 96
B1019: 142380, Московская обл, Городской округ Чехов, Любучаны п, Парковая ул, дом № 10 | C1019: 97
B1022: 142380, Московская обл, Городской округ Чехов, Любучаны п, Спортивная ул, дом № 1 | C1022: 98
B1029: 142380, Московская обл, Городской округ Чехов, Любучаны п, Спортивная ул, дом № 15 | C1029: 99
B1051: 142380, Московская обл, Городской округ Чехов, Любучаны п, Заводская ул, дом № 28 | C1051: 100
B1074: 142380, Московская обл, Городской округ Чехов, Любучаны п, Спортивная ул, дом № 17 | C1074: 101
B1083: 142321, Московская обл, Городской округ Чехов, Манушкино д, дом № 2 | C1083: 102
B1087: 142321, Московская обл, Городской округ Чехов, Манушкино д, дом № 19 | C1087: 103
B1091: 142321, Московская обл, Городской округ Чехов, Манушкино д, дом № 14 | C1091: 104
B1099: 142321, Московская обл, Городской округ Чехов, Манушкино д, дом № 16 | C1099: 105
B1101: 142322, Московская обл, городской округ Чехов, Новый Быт с, НАТИ ул, дом № 1 | C1101: 106
B1107: 142322, Московская обл, городской округ Чехов, Новый Быт с, НАТИ ул, дом № 5 | C1107: 107
B1120: 142322, Московская обл, городской округ Чехов, Новый Быт с, Новая ул, дом № 34 | C1120: 108
B1144: 142322, Московская обл, городской округ Чехов, Новый Быт с, Новая ул, дом № 40 | C1144: 109
B1169: 142370, Московская обл, Городской округ Чехов, Песоченка п | C1169: 110
B1174: Московская обл, г. о. Чехов, п.Русское Поле, д.2 | C1174: 111
B1177: 142306, Московская обл, Городской округ Чехов, Гришенки д, Русское поле тер, дом № 6 | C1177: 112
B1184: 142302, Московская обл, Чеховский р-н, Чехов-8 г, Южная ул, дом № 3 | C1184: 113
B1186: 142302, Московская обл, Чеховский р-н, Чехов-8 г, Южная ул, дом 4 | C1186: 114
B1188: 142302, Московская обл, Чеховский р-н, Чехов-8 г, Южная ул, дом № 6 | C1188: 115
B1194: Московская обл, г.о. городской округ Чехов, Столбовая рп, Березки в.ч. | C1194: 116
B1200: Московская обл, городской округ Чехов, Столбовая рп, в.ч. Березки (возле гаражей) | C1200: 117
B1202: 142350, Московская обл, Городской округ Чехов, Столбовая рп, Малая ул, дом № 23 | C1202: 118
B1209: 142350, Московская обл, Городской округ Чехов, Столбовая рп, Мира ул, дом № 22 | C1209: 119
B1216: 142350, Московская обл, Городской округ Чехов, Столбовая рп, Мира ул, дом № 17 | C1216: 120
B1220: 142350, Московская обл, г.о. Чехов, г Чехов, рп Столбовая, ул Парковая, д. 1 | C1220: 121
B1256: 142350, Московская обл, Городской округ Чехов, Столбовая рп, Труда ул, дом № 7 | C1256: 122
B1276: 142350, Московская обл, Городской округ Чехов, Столбовая-2 п, дом № 105 | C1276: 123
B1282: 142350, Московская обл, Городской округ Чехов, Столбовая-2 п, дом № 110 | C1282: 124
B1287: 142370, Московская обл, Городской округ Чехов, Талалихино с, Спортивная ул, дом № 1 | C1287: 125
B1294: 142370, Московская обл, Городской округ Чехов, Талалихино с, Спортивная ул, дом № 2 | C1294: 126
B1295: 142370, Московская обл, Городской округ Чехов, Талалихино с, Спортивная ул, дом № 4 | C1295: 127
B1298: 142301, Московская обл, Городской округ Чехов, Чепелево д, Вокзальная ул, дом № 1 | C1298: 128
B1304: 142301, Московская обл, Городской округ Чехов, Чепелево д, Новая ул, дом № 4 | C1304: 129
B1311: 142301, Московская обл, Городской округ Чехов, Чепелево д, Центральная ул, дом № 3А | C1311: 130
B1315: 142327, Московская обл, городской округ Чехов, Чернецкое п/о, Победы ул, дом № 6,7 | C1315: 131
B1328: 142327, Московская обл, городской округ Чехов, Чернецкое п/о, Победы ул, дом № 17 | C1328: 132
B1335: Московская обл, г.о. Чехов, г Чехов, с Дубна | C1335: 133
B1369: 142324, Московская обл, городской округ Чехов, Крюково д, дом № 14 | C1369: 134
B1373: 142324, Московская обл, городской округ Чехов, Крюково д | C1373: 135
B1375: 142324, Московская обл, городской округ Чехов, Крюково д, дом № 1 | C1375: 136
B1392: 142324, Московская обл, городской округ Чехов, Крюково д, дом № 9 | C1392: 137
B1397: 142324, Московская обл, городской округ Чехов, Крюково д, дом № 10а | C1397: 138
B1412: 142324, Московская обл, г.о. городской округ Чехов, г Чехов, д Крюково, деревня Старая, д. 13 | C1412: 139
B1416: Московская обл, городской округ Чехов, Крюково д, частный сектор | C1416: 140
B1417: 142360, Московская обл, городской округ Чехов, Мещерское д, дом № 1У (школа) | C1417: 141
B1428: 142360, Московская обл, городской округ Чехов, Мещерское д, дом № 15 | C1428: 142
B1459: 142390, Московская обл, Городской округ Чехов, Молоди с, Заречная ул | C1459: 143
B1474: 142341, Московская обл, городской округ Чехов, Стремилово с, Мира ул, дом № 1 | C1474: 144
B1490: 142370, Московская обл, городской округ Чехов, Троицкое с, дом 3 | C1490: 145
B1495: 142370, Московская обл, городской округ Чехов, Троицкое с, дом № 8 | C1495: 146
B1507: 142370, Московская обл, городской округ Чехов, Троицкое с, дом № 10 | C1507: 147
B1515: 142370, Московская обл, городской округ Чехов, Троицкое с, дом № 33 | C1515: 148
B1524: 142370, Московская обл, городской округ Чехов, Троицкое с, дом № 46 | C1524: 149
B1535: 142323, Московская обл, городской округ Чехов, Шарапово с, Колхозная ул, дом № 8 | C1535: 150
B1542: 142323, Московская обл, городской округ Чехов, Шарапово с, Ленина ул, дом № 6 | C1542: 151
B1556: 142323, Московская обл, городской округ Чехов, Шарапово с, Ленина ул, дом № 10 | C1556: 152
B1558: Московская обл, городской округ Чехов, Аксенчиково д | C1558: 153
B1559: Московская обл, городской округ Чехов, Алачково д | C1559: 154
B1562: Московская обл, городской округ Чехов, Алексеевка д | C1562: 155
B1565: Московская обл, городской округ Чехов, Алферово д | C1565: 156
B1572: Московская обл, г.о. Чехов, д Антропово | C1572: 157
B1573: М.О., г.о. Чехов, д. Антропово, д.125 | C1573: 158
B1575: Московская обл, Городской округ Чехов, Баранцево д | C1575: 159
B1577: Московская обл, городской округ Чехов, Бегичево д | C1577: 160
B1580: Московская обл, г.о. городской округ Чехов, г Чехов, д Беляево, ул Беляевская слобода | C1580: 161
B1582: М.О., г.о. Чехов, д. Беляевская слобода, д.2 | C1582: 162
B1583: 142340, Московская обл, Городской округ Чехов, Березенки д | C1583: 163
B1584: Московская обл, г.о. Чехов, д Ботвинино | C1584: 164
B1585: Московская обл, городской округ Чехов, Булычево д | C1585: 165
B1591: Московская обл, городской округ Чехов, Васькино п | C1591: 166
B1594: М.О., г.о. Чехов, д. Васькино, ул. Васильковая, д.27А | C1594: 167
B1595: Московская обл, Городской округ Чехов, Ваулово д, кладбище | C1595: 168
B1597: 142304, Московская обл, Городской округ Чехов, Венюково д, дом № 78 | C1597: 169
B1603: Московская обл, г Чехов, ул Крымская | C1603: 170
B1604: М.О., г.о. Чехов, ул. Крымская, д.8 | C1604: 171
B1605: Московская обл, городской округ Чехов, Высоково д | C1605: 172
B1606: Московская обл, городской округ Чехов, Гавриково д | C1606: 173
B1609: Московская обл, г.о. городской округ Чехов, г Чехов, д Детково | C1609: 174
B1611: 142305, Московская обл, г Чехов, ул Дорожная, д. 15 | C1611: 175
B1615: М.О., г.о. Чехов, ул. Дорожная, д.15 | C1615: 176
B1620: 142324, Московская обл, Городской округ Чехов, Дидяково д | C1620: 177
B1622: Московская обл, городской округ Чехов, Дубинино д | C1622: 178
B1623: Московская обл, г.о. Чехов, с Дубна, (у пруда), д. 12 | C1623: 179
B1628: М.О., г.о. Чехов, д. Дубна, д.8 | C1628: 180
B1629: Московская обл, городской округ Чехов, Дубровка д | C1629: 181
B1630: 142323, Московская обл, Городской округ Чехов, Дулово д | C1630: 182
B1631: Московская обл, городской округ Чехов, Ермолово д | C1631: 183
B1634: 142300, Московская обл, Чехов г, Загородная ул | C1634: 184
B1647: Московская обл, г.о. Чехов, д Захарково | C1647: 185
B1648: М.О., г.о. Чехов, д. Захарково, д.295 | C1648: 186
B1649: 142301, Московская обл, г Чехов, ул Зеленая, д. 52 | C1649: 187
B1650: Московская обл, г.о. городской округ Чехов, д Змеёвка | C1650: 188
B1651: Московская обл, городской округ Чехов, Ивановское с | C1651: 189
B1655: Московская обл, Городской округ Чехов, Ивачково д | C1655: 190
B1662: Московская обл, городской округ Чехов, Коровино д | C1662: 191
B1665: 142321, Московская обл, Городской округ Чехов, Кулаково д, ул.Юбилейная, дом № 111 | C1665: 192
B1671: 142326, Московская обл, г.о. Чехов, д Курниково | C1671: 193
B1672: Московская обл, городской округ Чехов, Кузьмино-Фильчаково д | C1672: 194
B1673: Московская обл, городской округ Чехов, Красные Орлы д | C1673: 195
B1674: 142301, Московская обл, городской округ Чехов, Литейная ул, дом № 17, 19 | C1674: 196
B1678: Московская обл, Городской округ Чехов, Луч п, въезд | C1678: 197
B1680: Московская обл, городской округ Чехов, Луч п, у платформы | C1680: 198
B1683: Московская обл, городской округ Чехов, Любучаны д | C1683: 199
B1685: Московская обл, городской округ Чехов, Люторецкое д | C1685: 200
... 627 more rows

Sheet Норматив (hidden)
B2: Нормативы накопления ТКО (Распоряжение от 01.09.2020 №1165-РМ)
B4: № п/п | C4: Домовладения | G4: Садоводческие кооперативы, садово-огородные товарищества | H4: Предприятия в сфере похоронных услуг | J4: Предприятия службы быта | N4: Предприятия общественного питания | O4: Административные здания, учреждения, конторы | S4: Предприятия торговли | AA4: Предприятия транспортной инфраструктуры | AG4: Дошкольные и учебные заведения | AL4: Культурно-развлекательные, социальные, спортивные учреждения | AT4: Предприятия иных отраслей промышленности
C5: Многоквартирные дома, 1 м2 общей площади | E5: Индивидуальные жилые дома, 1 м2 общей площади | G5: Садоводческие кооперативы, садово-огородные товарищества, 1 участок | H5: Кладбища, 1 место | I5: Организация, оказывающая ритуальные услуги, 1 м2 общей площади | J5: Дома быта (мастерские по ремонту бытовой и компьютерной техники, мастерские по ремонту обуви, ключей, часов и пр., ремонт и пошив одежды, химчистки и прачечные, парикмахерские, косметические салоны, салоны красоты), 1 м2 общей площади | K5: Гостиницы, 1 место | L5: Общежития, 1 место | M5: Бани, сауны, 1 место | N5: Кафе, рестораны, бары, закусочные, столовые, 1 место | O5: Научно-исследовательские, проектные институты и конструкторские бюро, 1 сотрудник | P5: Банки, финансовые учреждения, 1 сотрудник | Q5: Отделения связи, 1 сотрудник | R5: Административные, офисные учреждения, 1 сотрудник | S5: Продовольственный магазин, 1 м2 торговой площади | T5: Промтоварный магазин, 1 м2 торговой площади | U5: Пекарни, производство, 1 м2 общей площади | V5: Павильон (отдельно стоящее строение), 1 м2 торговой площади | W5: Палатка, киоск (отдельно стоящее строение), 1 м2 торговой площади | X5: Супермаркет (торговый центр, универмаг), 1 м2 торговой площади | Y5: Рынки продовольственные, 1 м2 общей площади | Z5: Рынки промтоварные, 1 м2 общей площади | AA5: Автомастерские, шиномонтажная мастерская, станция технического обслуживания, 1 машино-место | AB5: Автозаправочные станции, 1 машино-место | AC5: Автостоянки и парковки открытого и закрытого типа, 1 машино-место | AD5: Гаражи, 1 машино-место | AE5: Автомойка, 1 машино-место | AF5: Железнодорожные и автовокзалы, аэропорты, речные порты, 1 пассажир | AG5: Дошкольное образовательное учреждение, 1 ребенок | AH5: Общеобразовательное учреждение, 1 учащийся | AI5: Учреждение начального и среднего профессионального образования, высшего профессионального и послевузового образования или иное учреждение, осуществляющее образовательный процесс, 1 учащийся | AJ5: Учреждение дополнительного образования, 1 учащийся | AK5: Детские дома, интернаты, 1 место | AL5: Клубы, кинотеатры, концертные залы, театры,цирки, 1 место | AM5: Выстовочные залы, музеи, 1м2 общей площади | AN5: Спортивные арены, стадионы, 1 место | AO5: Спортивные клубы, центры, комплексы, 1 место | AP5: Городские парки, 1 м2 общей площади | AQ5: Пансионаты, дома отдыха, туристические базы, 1 место | AR5: Организации, осуществляющие стационарное социальное обслуживание, 1 получатель социальной услуги | AS5: Организации, осуществляющие полустационарное социальное обслуживание, 1 получатель социальной услуги | AT5: Предприятия иных отраслей промышленности, 1 м2 общей площади
B6: 1 | C6: 0.086 | D6: 0.028 | E6: 0.086 | F6: 0.028 | G6: 1.48 | H6: 0.13 | I6: 0.08 | J6: 0.6 | K6: 1.18 | L6: 1.3 | M6: 1.12 | N6: 2.07 | O6: 2.44 | P6: 1.17 | Q6: 1.51 | R6: 0.87 | S6: 1.14 | T6: 0.76 | U6: 0.68 | V6: 2.85 | W6: 5.08 | X6: 1.14 | Y6: 1.14 | Z6: 0.85 | AA6: 1.32 | AB6: 0.55 | AC6: 0.14 | AD6: 0.85 | AE6: 1.25 | AF6: 0.62 | AG6: 0.37 | AH6: 0.19 | AI6: 0.31 | AJ6: 0.16 | AK6: 1.88 | AL6: 0.14 | AM6: 0.09 | AN6: 0.26 | AO6: 0.29 | AP6: 0.01 | AQ6: 2.71 | AR6: 0.39 | AS6: 0.19 | AT6: 0.9
B7: 2 | C7: 0.086 | D7: 0.028 | E7: 0.086 | F7: 0.028 | G7: 1.48 | H7: 0.13 | I7: 0.08 | J7: 0.6 | K7: 1.18 | L7: 1.3 | M7: 1.12 | N7: 2.07 | O7: 2.44 | P7: 1.17 | Q7: 1.51 | R7: 0.87 | S7: 1.14 | T7: 0.76 | U7: 0.68 | V7: 2.85 | W7: 5.08 | X7: 1.14 | Y7: 1.14 | Z7: 0.85 | AA7: 1.32 | AB7: 0.55 | AC7: 0.14 | AD7: 0.85 | AE7: 1.25 | AF7: 0.62 | AG7: 0.37 | AH7: 0.19 | AI7: 0.31 | AJ7: 0.16 | AK7: 1.88 | AL7: 0.14 | AM7: 0.09 | AN7: 0.26 | AO7: 0.29 | AP7: 0.01 | AQ7: 2.71 | AR7: 0.39 | AS7: 0.19 | AT7: 0.9
B8: 3 | C8: 0.086 | D8: 0.028 | E8: 0.086 | F8: 0.028 | G8: 1.48 | H8: 0.13 | I8: 0.08 | J8: 0.6 | K8: 1.18 | L8: 1.3 | M8: 1.12 | N8: 2.07 | O8: 2.44 | P8: 1.17 | Q8: 1.51 | R8: 0.87 | S8: 1.14 | T8: 0.76 | U8: 0.68 | V8: 2.85 | W8: 5.08 | X8: 1.14 | Y8: 1.14 | Z8: 0.85 | AA8: 1.32 | AB8: 0.55 | AC8: 0.14 | AD8: 0.85 | AE8: 1.25 | AF8: 0.62 | AG8: 0.37 | AH8: 0.19 | AI8: 0.31 | AJ8: 0.16 | AK8: 1.88 | AL8: 0.14 | AM8: 0.09 | AN8: 0.26 | AO8: 0.29 | AP8: 0.01 | AQ8: 2.71 | AR8: 0.39 | AS8: 0.19 | AT8: 0.9
B9: 4 | C9: 0.086 | D9: 0.028 | E9: 0.086 | F9: 0.028 | G9: 1.48 | H9: 0.13 | I9: 0.08 | J9: 0.6 | K9: 1.18 | L9: 1.3 | M9: 1.12 | N9: 2.07 | O9: 2.44 | P9: 1.17 | Q9: 1.51 | R9: 0.87 | S9: 1.14 | T9: 0.76 | U9: 0.68 | V9: 2.85 | W9: 5.08 | X9: 1.14 | Y9: 1.14 | Z9: 0.85 | AA9: 1.32 | AB9: 0.55 | AC9: 0.14 | AD9: 0.85 | AE9: 1.25 | AF9: 0.62 | AG9: 0.37 | AH9: 0.19 | AI9: 0.31 | AJ9: 0.16 | AK9: 1.88 | AL9: 0.14 | AM9: 0.09 | AN9: 0.26 | AO9: 0.29 | AP9: 0.01 | AQ9: 2.71 | AR9: 0.39 | AS9: 0.19 | AT9: 0.9
B10: 5 | C10: 0.086 | D10: 0.028 | E10: 0.086 | F10: 0.028 | G10: 1.48 | H10: 0.13 | I10: 0.08 | J10: 0.6 | K10: 1.18 | L10: 1.3 | M10: 1.12 | N10: 2.07 | O10: 2.44 | P10: 1.17 | Q10: 1.51 | R10: 0.87 | S10: 1.14 | T10: 0.76 | U10: 0.68 | V10: 2.85 | W10: 5.08 | X10: 1.14 | Y10: 1.14 | Z10: 0.85 | AA10: 1.32 | AB10: 0.55 | AC10: 0.14 | AD10: 0.85 | AE10: 1.25 | AF10: 0.62 | AG10: 0.37 | AH10: 0.19 | AI10: 0.31 | AJ10: 0.16 | AK10: 1.88 | AL10: 0.14 | AM10: 0.09 | AN10: 0.26 | AO10: 0.29 | AP10: 0.01 | AQ10: 2.71 | AR10: 0.39 | AS10: 0.19 | AT10: 0.9
B11: 6 | C11: 0.086 | D11: 0.028 | E11: 0.086 | F11: 0.028 | G11: 1.48 | H11: 0.13 | I11: 0.08 | J11: 0.6 | K11: 1.18 | L11: 1.3 | M11: 1.12 | N11: 2.07 | O11: 2.44 | P11: 1.17 | Q11: 1.51 | R11: 0.87 | S11: 1.14 | T11: 0.76 | U11: 0.68 | V11: 2.85 | W11: 5.08 | X11: 1.14 | Y11: 1.14 | Z11: 0.85 | AA11: 1.32 | AB11: 0.55 | AC11: 0.14 | AD11: 0.85 | AE11: 1.25 | AF11: 0.62 | AG11: 0.37 | AH11: 0.19 | AI11: 0.31 | AJ11: 0.16 | AK11: 1.88 | AL11: 0.14 | AM11: 0.09 | AN11: 0.26 | AO11: 0.29 | AP11: 0.01 | AQ11: 2.71 | AR11: 0.39 | AS11: 0.19 | AT11: 0.9
B12: 7 | C12: 0.086 | D12: 0.028 | E12: 0.086 | F12: 0.028 | G12: 1.48 | H12: 0.13 | I12: 0.08 | J12: 0.6 | K12: 1.18 | L12: 1.3 | M12: 1.12 | N12: 2.07 | O12: 2.44 | P12: 1.17 | Q12: 1.51 | R12: 0.87 | S12: 1.14 | T12: 0.76 | U12: 0.68 | V12: 2.85 | W12: 5.08 | X12: 1.14 | Y12: 1.14 | Z12: 0.85 | AA12: 1.32 | AB12: 0.55 | AC12: 0.14 | AD12: 0.85 | AE12: 1.25 | AF12: 0.62 | AG12: 0.37 | AH12: 0.19 | AI12: 0.31 | AJ12: 0.16 | AK12: 1.88 | AL12: 0.14 | AM12: 0.09 | AN12: 0.26 | AO12: 0.29 | AP12: 0.01 | AQ12: 2.71 | AR12: 0.39 | AS12: 0.19 | AT12: 0.9
B13: 8 | C13: 0.086 | D13: 0.028 | E13: 0.086 | F13: 0.028 | G13: 1.48 | H13: 0.13 | I13: 0.08 | J13: 0.6 | K13: 1.18 | L13: 1.3 | M13: 1.12 | N13: 2.07 | O13: 2.44 | P13: 1.17 | Q13: 1.51 | R13: 0.87 | S13: 1.14 | T13: 0.76 | U13: 0.68 | V13: 2.85 | W13: 5.08 | X13: 1.14 | Y13: 1.14 | Z13: 0.85 | AA13: 1.32 | AB13: 0.55 | AC13: 0.14 | AD13: 0.85 | AE13: 1.25 | AF13: 0.62 | AG13: 0.37 | AH13: 0.19 | AI13: 0.31 | AJ13: 0.16 | AK13: 1.88 | AL13: 0.14 | AM13: 0.09 | AN13: 0.26 | AO13: 0.29 | AP13: 0.01 | AQ13: 2.71 | AR13: 0.39 | AS13: 0.19 | AT13: 0.9
B14: 9 | C14: 0.086 | D14: 0.028 | E14: 0.086 | F14: 0.028 | G14: 1.48 | H14: 0.13 | I14: 0.08 | J14: 0.6 | K14: 1.18 | L14: 1.3 | M14: 1.12 | N14: 2.07 | O14: 2.44 | P14: 1.17 | Q14: 1.51 | R14: 0.87 | S14: 1.14 | T14: 0.76 | U14: 0.68 | V14: 2.85 | W14: 5.08 | X14: 1.14 | Y14: 1.14 | Z14: 0.85 | AA14: 1.32 | AB14: 0.55 | AC14: 0.14 | AD14: 0.85 | AE14: 1.25 | AF14: 0.62 | AG14: 0.37 | AH14: 0.19 | AI14: 0.31 | AJ14: 0.16 | AK14: 1.88 | AL14: 0.14 | AM14: 0.09 | AN14: 0.26 | AO14: 0.29 | AP14: 0.01 | AQ14: 2.71 | AR14: 0.39 | AS14: 0.19 | AT14: 0.9
B15: 10 | C15: 0.086 | D15: 0.028 | E15: 0.086 | F15: 0.028 | G15: 1.48 | H15: 0.13 | I15: 0.08 | J15: 0.6 | K15: 1.18 | L15: 1.3 | M15: 1.12 | N15: 2.07 | O15: 2.44 | P15: 1.17 | Q15: 1.51 | R15: 0.87 | S15: 1.14 | T15: 0.76 | U15: 0.68 | V15: 2.85 | W15: 5.08 | X15: 1.14 | Y15: 1.14 | Z15: 0.85 | AA15: 1.32 | AB15: 0.55 | AC15: 0.14 | AD15: 0.85 | AE15: 1.25 | AF15: 0.62 | AG15: 0.37 | AH15: 0.19 | AI15: 0.31 | AJ15: 0.16 | AK15: 1.88 | AL15: 0.14 | AM15: 0.09 | AN15: 0.26 | AO15: 0.29 | AP15: 0.01 | AQ15: 2.71 | AR15: 0.39 | AS15: 0.19 | AT15: 0.9
B16: 11 | C16: 0.086 | D16: 0.028 | E16: 0.086 | F16: 0.028 | G16: 1.48 | H16: 0.13 | I16: 0.08 | J16: 0.6 | K16: 1.18 | L16: 1.3 | M16: 1.12 | N16: 2.07 | O16: 2.44 | P16: 1.17 | Q16: 1.51 | R16: 0.87 | S16: 1.14 | T16: 0.76 | U16: 0.68 | V16: 2.85 | W16: 5.08 | X16: 1.14 | Y16: 1.14 | Z16: 0.85 | AA16: 1.32 | AB16: 0.55 | AC16: 0.14 | AD16: 0.85 | AE16: 1.25 | AF16: 0.62 | AG16: 0.37 | AH16: 0.19 | AI16: 0.31 | AJ16: 0.16 | AK16: 1.88 | AL16: 0.14 | AM16: 0.09 | AN16: 0.26 | AO16: 0.29 | AP16: 0.01 | AQ16: 2.71 | AR16: 0.39 | AS16: 0.19 | AT16: 0.9
B17: 12 | C17: 0.086 | D17: 0.028 | E17: 0.086 | F17: 0.028 | G17: 1.48 | H17: 0.13 | I17: 0.08 | J17: 0.6 | K17: 1.18 | L17: 1.3 | M17: 1.12 | N17: 2.07 | O17: 2.44 | P17: 1.17 | Q17: 1.51 | R17: 0.87 | S17: 1.14 | T17: 0.76 | U17: 0.68 | V17: 2.85 | W17: 5.08 | X17: 1.14 | Y17: 1.14 | Z17: 0.85 | AA17: 1.32 | AB17: 0.55 | AC17: 0.14 | AD17: 0.85 | AE17: 1.25 | AF17: 0.62 | AG17: 0.37 | AH17: 0.19 | AI17: 0.31 | AJ17: 0.16 | AK17: 1.88 | AL17: 0.14 | AM17: 0.09 | AN17: 0.26 | AO17: 0.29 | AP17: 0.01 | AQ17: 2.71 | AR17: 0.39 | AS17: 0.19 | AT17: 0.9
B18: 13 | C18: 0.086 | D18: 0.028 | E18: 0.086 | F18: 0.028 | G18: 1.48 | H18: 0.13 | I18: 0.08 | J18: 0.6 | K18: 1.18 | L18: 1.3 | M18: 1.12 | N18: 2.07 | O18: 2.44 | P18: 1.17 | Q18: 1.51 | R18: 0.87 | S18: 1.14 | T18: 0.76 | U18: 0.68 | V18: 2.85 | W18: 5.08 | X18: 1.14 | Y18: 1.14 | Z18: 0.85 | AA18: 1.32 | AB18: 0.55 | AC18: 0.14 | AD18: 0.85 | AE18: 1.25 | AF18: 0.62 | AG18: 0.37 | AH18: 0.19 | AI18: 0.31 | AJ18: 0.16 | AK18: 1.88 | AL18: 0.14 | AM18: 0.09 | AN18: 0.26 | AO18: 0.29 | AP18: 0.01 | AQ18: 2.71 | AR18: 0.39 | AS18: 0.19 | AT18: 0.9
B19: 14 | C19: 0.086 | D19: 0.028 | E19: 0.086 | F19: 0.028 | G19: 1.48 | H19: 0.13 | I19: 0.08 | J19: 0.6 | K19: 1.18 | L19: 1.3 | M19: 1.12 | N19: 2.07 | O19: 2.44 | P19: 1.17 | Q19: 1.51 | R19: 0.87 | S19: 1.14 | T19: 0.76 | U19: 0.68 | V19: 2.85 | W19: 5.08 | X19: 1.14 | Y19: 1.14 | Z19: 0.85 | AA19: 1.32 | AB19: 0.55 | AC19: 0.14 | AD19: 0.85 | AE19: 1.25 | AF19: 0.62 | AG19: 0.37 | AH19: 0.19 | AI19: 0.31 | AJ19: 0.16 | AK19: 1.88 | AL19: 0.14 | AM19: 0.09 | AN19: 0.26 | AO19: 0.29 | AP19: 0.01 | AQ19: 2.71 | AR19: 0.39 | AS19: 0.19 | AT19: 0.9
B20: 15 | C20: 0.086 | D20: 0.028 | E20: 0.086 | F20: 0.028 | G20: 1.48 | H20: 0.13 | I20: 0.08 | J20: 0.6 | K20: 1.18 | L20: 1.3 | M20: 1.12 | N20: 2.07 | O20: 2.44 | P20: 1.17 | Q20: 1.51 | R20: 0.87 | S20: 1.14 | T20: 0.76 | U20: 0.68 | V20: 2.85 | W20: 5.08 | X20: 1.14 | Y20: 1.14 | Z20: 0.85 | AA20: 1.32 | AB20: 0.55 | AC20: 0.14 | AD20: 0.85 | AE20: 1.25 | AF20: 0.62 | AG20: 0.37 | AH20: 0.19 | AI20: 0.31 | AJ20: 0.16 | AK20: 1.88 | AL20: 0.14 | AM20: 0.09 | AN20: 0.26 | AO20: 0.29 | AP20: 0.01 | AQ20: 2.71 | AR20: 0.39 | AS20: 0.19 | AT20: 0.9
B21: 16 | C21: 0.086 | D21: 0.028 | E21: 0.086 | F21: 0.028 | G21: 1.48 | H21: 0.13 | I21: 0.08 | J21: 0.6 | K21: 1.18 | L21: 1.3 | M21: 1.12 | N21: 2.07 | O21: 2.44 | P21: 1.17 | Q21: 1.51 | R21: 0.87 | S21: 1.14 | T21: 0.76 | U21: 0.68 | V21: 2.85 | W21: 5.08 | X21: 1.14 | Y21: 1.14 | Z21: 0.85 | AA21: 1.32 | AB21: 0.55 | AC21: 0.14 | AD21: 0.85 | AE21: 1.25 | AF21: 0.62 | AG21: 0.37 | AH21: 0.19 | AI21: 0.31 | AJ21: 0.16 | AK21: 1.88 | AL21: 0.14 | AM21: 0.09 | AN21: 0.26 | AO21: 0.29 | AP21: 0.01 | AQ21: 2.71 | AR21: 0.39 | AS21: 0.19 | AT21: 0.9
B22: 17 | C22: 0.086 | D22: 0.028 | E22: 0.086 | F22: 0.028 | G22: 1.48 | H22: 0.13 | I22: 0.08 | J22: 0.6 | K22: 1.18 | L22: 1.3 | M22: 1.12 | N22: 2.07 | O22: 2.44 | P22: 1.17 | Q22: 1.51 | R22: 0.87 | S22: 1.14 | T22: 0.76 | U22: 0.68 | V22: 2.85 | W22: 5.08 | X22: 1.14 | Y22: 1.14 | Z22: 0.85 | AA22: 1.32 | AB22: 0.55 | AC22: 0.14 | AD22: 0.85 | AE22: 1.25 | AF22: 0.62 | AG22: 0.37 | AH22: 0.19 | AI22: 0.31 | AJ22: 0.16 | AK22: 1.88 | AL22: 0.14 | AM22: 0.09 | AN22: 0.26 | AO22: 0.29 | AP22: 0.01 | AQ22: 2.71 | AR22: 0.39 | AS22: 0.19 | AT22: 0.9
B23: 18 | C23: 0.086 | D23: 0.028 | E23: 0.086 | F23: 0.028 | G23: 1.48 | H23: 0.13 | I23: 0.08 | J23: 0.6 | K23: 1.18 | L23: 1.3 | M23: 1.12 | N23: 2.07 | O23: 2.44 | P23: 1.17 | Q23: 1.51 | R23: 0.87 | S23: 1.14 | T23: 0.76 | U23: 0.68 | V23: 2.85 | W23: 5.08 | X23: 1.14 | Y23: 1.14 | Z23: 0.85 | AA23: 1.32 | AB23: 0.55 | AC23: 0.14 | AD23: 0.85 | AE23: 1.25 | AF23: 0.62 | AG23: 0.37 | AH23: 0.19 | AI23: 0.31 | AJ23: 0.16 | AK23: 1.88 | AL23: 0.14 | AM23: 0.09 | AN23: 0.26 | AO23: 0.29 | AP23: 0.01 | AQ23: 2.71 | AR23: 0.39 | AS23: 0.19 | AT23: 0.9
B24: 19 | C24: 0.086 | D24: 0.028 | E24: 0.086 | F24: 0.028 | G24: 1.48 | H24: 0.13 | I24: 0.08 | J24: 0.6 | K24: 1.18 | L24: 1.3 | M24: 1.12 | N24: 2.07 | O24: 2.44 | P24: 1.17 | Q24: 1.51 | R24: 0.87 | S24: 1.14 | T24: 0.76 | U24: 0.68 | V24: 2.85 | W24: 5.08 | X24: 1.14 | Y24: 1.14 | Z24: 0.85 | AA24: 1.32 | AB24: 0.55 | AC24: 0.14 | AD24: 0.85 | AE24: 1.25 | AF24: 0.62 | AG24: 0.37 | AH24: 0.19 | AI24: 0.31 | AJ24: 0.16 | AK24: 1.88 | AL24: 0.14 | AM24: 0.09 | AN24: 0.26 | AO24: 0.29 | AP24: 0.01 | AQ24: 2.71 | AR24: 0.39 | AS24: 0.19 | AT24: 0.9
B25: 20 | C25: 0.086 | D25: 0.028 | E25: 0.086 | F25: 0.028 | G25: 1.48 | H25: 0.13 | I25: 0.08 | J25: 0.6 | K25: 1.18 | L25: 1.3 | M25: 1.12 | N25: 2.07 | O25: 2.44 | P25: 1.17 | Q25: 1.51 | R25: 0.87 | S25: 1.14 | T25: 0.76 | U25: 0.68 | V25: 2.85 | W25: 5.08 | X25: 1.14 | Y25: 1.14 | Z25: 0.85 | AA25: 1.32 | AB25: 0.55 | AC25: 0.14 | AD25: 0.85 | AE25: 1.25 | AF25: 0.62 | AG25: 0.37 | AH25: 0.19 | AI25: 0.31 | AJ25: 0.16 | AK25: 1.88 | AL25: 0.14 | AM25: 0.09 | AN25: 0.26 | AO25: 0.29 | AP25: 0.01 | AQ25: 2.71 | AR25: 0.39 | AS25: 0.19 | AT25: 0.9
B26: 21 | C26: 0.086 | D26: 0.028 | E26: 0.086 | F26: 0.028 | G26: 1.48 | H26: 0.13 | I26: 0.08 | J26: 0.6 | K26: 1.18 | L26: 1.3 | M26: 1.12 | N26: 2.07 | O26: 2.44 | P26: 1.17 | Q26: 1.51 | R26: 0.87 | S26: 1.14 | T26: 0.76 | U26: 0.68 | V26: 2.85 | W26: 5.08 | X26: 1.14 | Y26: 1.14 | Z26: 0.85 | AA26: 1.32 | AB26: 0.55 | AC26: 0.14 | AD26: 0.85 | AE26: 1.25 | AF26: 0.62 | AG26: 0.37 | AH26: 0.19 | AI26: 0.31 | AJ26: 0.16 | AK26: 1.88 | AL26: 0.14 | AM26: 0.09 | AN26: 0.26 | AO26: 0.29 | AP26: 0.01 | AQ26: 2.71 | AR26: 0.39 | AS26: 0.19 | AT26: 0.9
B27: 22 | C27: 0.086 | D27: 0.028 | E27: 0.086 | F27: 0.028 | G27: 1.48 | H27: 0.13 | I27: 0.08 | J27: 0.6 | K27: 1.18 | L27: 1.3 | M27: 1.12 | N27: 2.07 | O27: 2.44 | P27: 1.17 | Q27: 1.51 | R27: 0.87 | S27: 1.14 | T27: 0.76 | U27: 0.68 | V27: 2.85 | W27: 5.08 | X27: 1.14 | Y27: 1.14 | Z27: 0.85 | AA27: 1.32 | AB27: 0.55 | AC27: 0.14 | AD27: 0.85 | AE27: 1.25 | AF27: 0.62 | AG27: 0.37 | AH27: 0.19 | AI27: 0.31 | AJ27: 0.16 | AK27: 1.88 | AL27: 0.14 | AM27: 0.09 | AN27: 0.26 | AO27: 0.29 | AP27: 0.01 | AQ27: 2.71 | AR27: 0.39 | AS27: 0.19 | AT27: 0.9
B28: 23 | C28: 0.086 | D28: 0.028 | E28: 0.086 | F28: 0.028 | G28: 1.48 | H28: 0.13 | I28: 0.08 | J28: 0.6 | K28: 1.18 | L28: 1.3 | M28: 1.12 | N28: 2.07 | O28: 2.44 | P28: 1.17 | Q28: 1.51 | R28: 0.87 | S28: 1.14 | T28: 0.76 | U28: 0.68 | V28: 2.85 | W28: 5.08 | X28: 1.14 | Y28: 1.14 | Z28: 0.85 | AA28: 1.32 | AB28: 0.55 | AC28: 0.14 | AD28: 0.85 | AE28: 1.25 | AF28: 0.62 | AG28: 0.37 | AH28: 0.19 | AI28: 0.31 | AJ28: 0.16 | AK28: 1.88 | AL28: 0.14 | AM28: 0.09 | AN28: 0.26 | AO28: 0.29 | AP28: 0.01 | AQ28: 2.71 | AR28: 0.39 | AS28: 0.19 | AT28: 0.9
B29: 24 | C29: 0.086 | D29: 0.028 | E29: 0.086 | F29: 0.028 | G29: 1.48 | H29: 0.13 | I29: 0.08 | J29: 0.6 | K29: 1.18 | L29: 1.3 | M29: 1.12 | N29: 2.07 | O29: 2.44 | P29: 1.17 | Q29: 1.51 | R29: 0.87 | S29: 1.14 | T29: 0.76 | U29: 0.68 | V29: 2.85 | W29: 5.08 | X29: 1.14 | Y29: 1.14 | Z29: 0.85 | AA29: 1.32 | AB29: 0.55 | AC29: 0.14 | AD29: 0.85 | AE29: 1.25 | AF29: 0.62 | AG29: 0.37 | AH29: 0.19 | AI29: 0.31 | AJ29: 0.16 | AK29: 1.88 | AL29: 0.14 | AM29: 0.09 | AN29: 0.26 | AO29: 0.29 | AP29: 0.01 | AQ29: 2.71 | AR29: 0.39 | AS29: 0.19 | AT29: 0.9
B30: 25 | C30: 0.086 | D30: 0.028 | E30: 0.086 | F30: 0.028 | G30: 1.48 | H30: 0.13 | I30: 0.08 | J30: 0.6 | K30: 1.18 | L30: 1.3 | M30: 1.12 | N30: 2.07 | O30: 2.44 | P30: 1.17 | Q30: 1.51 | R30: 0.87 | S30: 1.14 | T30: 0.76 | U30: 0.68 | V30: 2.85 | W30: 5.08 | X30: 1.14 | Y30: 1.14 | Z30: 0.85 | AA30: 1.32 | AB30: 0.55 | AC30: 0.14 | AD30: 0.85 | AE30: 1.25 | AF30: 0.62 | AG30: 0.37 | AH30: 0.19 | AI30: 0.31 | AJ30: 0.16 | AK30: 1.88 | AL30: 0.14 | AM30: 0.09 | AN30: 0.26 | AO30: 0.29 | AP30: 0.01 | AQ30: 2.71 | AR30: 0.39 | AS30: 0.19 | AT30: 0.9
B31: 26 | C31: 0.086 | D31: 0.028 | E31: 0.086 | F31: 0.028 | G31: 1.48 | H31: 0.13 | I31: 0.08 | J31: 0.6 | K31: 1.18 | L31: 1.3 | M31: 1.12 | N31: 2.07 | O31: 2.44 | P31: 1.17 | Q31: 1.51 | R31: 0.87 | S31: 1.14 | T31: 0.76 | U31: 0.68 | V31: 2.85 | W31: 5.08 | X31: 1.14 | Y31: 1.14 | Z31: 0.85 | AA31: 1.32 | AB31: 0.55 | AC31: 0.14 | AD31: 0.85 | AE31: 1.25 | AF31: 0.62 | AG31: 0.37 | AH31: 0.19 | AI31: 0.31 | AJ31: 0.16 | AK31: 1.88 | AL31: 0.14 | AM31: 0.09 | AN31: 0.26 | AO31: 0.29 | AP31: 0.01 | AQ31: 2.71 | AR31: 0.39 | AS31: 0.19 | AT31: 0.9
B32: 27 | C32: 0.086 | D32: 0.028 | E32: 0.086 | F32: 0.028 | G32: 1.48 | H32: 0.13 | I32: 0.08 | J32: 0.6 | K32: 1.18 | L32: 1.3 | M32: 1.12 | N32: 2.07 | O32: 2.44 | P32: 1.17 | Q32: 1.51 | R32: 0.87 | S32: 1.14 | T32: 0.76 | U32: 0.68 | V32: 2.85 | W32: 5.08 | X32: 1.14 | Y32: 1.14 | Z32: 0.85 | AA32: 1.32 | AB32: 0.55 | AC32: 0.14 | AD32: 0.85 | AE32: 1.25 | AF32: 0.62 | AG32: 0.37 | AH32: 0.19 | AI32: 0.31 | AJ32: 0.16 | AK32: 1.88 | AL32: 0.14 | AM32: 0.09 | AN32: 0.26 | AO32: 0.29 | AP32: 0.01 | AQ32: 2.71 | AR32: 0.39 | AS32: 0.19 | AT32: 0.9
B33: 28 | C33: 0.086 | D33: 0.028 | E33: 0.086 | F33: 0.028 | G33: 1.48 | H33: 0.13 | I33: 0.08 | J33: 0.6 | K33: 1.18 | L33: 1.3 | M33: 1.12 | N33: 2.07 | O33: 2.44 | P33: 1.17 | Q33: 1.51 | R33: 0.87 | S33: 1.14 | T33: 0.76 | U33: 0.68 | V33: 2.85 | W33: 5.08 | X33: 1.14 | Y33: 1.14 | Z33: 0.85 | AA33: 1.32 | AB33: 0.55 | AC33: 0.14 | AD33: 0.85 | AE33: 1.25 | AF33: 0.62 | AG33: 0.37 | AH33: 0.19 | AI33: 0.31 | AJ33: 0.16 | AK33: 1.88 | AL33: 0.14 | AM33: 0.09 | AN33: 0.26 | AO33: 0.29 | AP33: 0.01 | AQ33: 2.71 | AR33: 0.39 | AS33: 0.19 | AT33: 0.9
B34: 29 | C34: 0.086 | D34: 0.028 | E34: 0.086 | F34: 0.028 | G34: 1.48 | H34: 0.13 | I34: 0.08 | J34: 0.6 | K34: 1.18 | L34: 1.3 | M34: 1.12 | N34: 2.07 | O34: 2.44 | P34: 1.17 | Q34: 1.51 | R34: 0.87 | S34: 1.14 | T34: 0.76 | U34: 0.68 | V34: 2.85 | W34: 5.08 | X34: 1.14 | Y34: 1.14 | Z34: 0.85 | AA34: 1.32 | AB34: 0.55 | AC34: 0.14 | AD34: 0.85 | AE34: 1.25 | AF34: 0.62 | AG34: 0.37 | AH34: 0.19 | AI34: 0.31 | AJ34: 0.16 | AK34: 1.88 | AL34: 0.14 | AM34: 0.09 | AN34: 0.26 | AO34: 0.29 | AP34: 0.01 | AQ34: 2.71 | AR34: 0.39 | AS34: 0.19 | AT34: 0.9
B35: 30 | C35: 0.086 | D35: 0.028 | E35: 0.086 | F35: 0.028 | G35: 1.48 | H35: 0.13 | I35: 0.08 | J35: 0.6 | K35: 1.18 | L35: 1.3 | M35: 1.12 | N35: 2.07 | O35: 2.44 | P35: 1.17 | Q35: 1.51 | R35: 0.87 | S35: 1.14 | T35: 0.76 | U35: 0.68 | V35: 2.85 | W35: 5.08 | X35: 1.14 | Y35: 1.14 | Z35: 0.85 | AA35: 1.32 | AB35: 0.55 | AC35: 0.14 | AD35: 0.85 | AE35: 1.25 | AF35: 0.62 | AG35: 0.37 | AH35: 0.19 | AI35: 0.31 | AJ35: 0.16 | AK35: 1.88 | AL35: 0.14 | AM35: 0.09 | AN35: 0.26 | AO35: 0.29 | AP35: 0.01 | AQ35: 2.71 | AR35: 0.39 | AS35: 0.19 | AT35: 0.9
B36: 31 | C36: 0.086 | D36: 0.028 | E36: 0.086 | F36: 0.028 | G36: 1.48 | H36: 0.13 | I36: 0.08 | J36: 0.6 | K36: 1.18 | L36: 1.3 | M36: 1.12 | N36: 2.07 | O36: 2.44 | P36: 1.17 | Q36: 1.51 | R36: 0.87 | S36: 1.14 | T36: 0.76 | U36: 0.68 | V36: 2.85 | W36: 5.08 | X36: 1.14 | Y36: 1.14 | Z36: 0.85 | AA36: 1.32 | AB36: 0.55 | AC36: 0.14 | AD36: 0.85 | AE36: 1.25 | AF36: 0.62 | AG36: 0.37 | AH36: 0.19 | AI36: 0.31 | AJ36: 0.16 | AK36: 1.88 | AL36: 0.14 | AM36: 0.09 | AN36: 0.26 | AO36: 0.29 | AP36: 0.01 | AQ36: 2.71 | AR36: 0.39 | AS36: 0.19 | AT36: 0.9
B37: 32 | C37: 0.086 | D37: 0.028 | E37: 0.086 | F37: 0.028 | G37: 1.48 | H37: 0.13 | I37: 0.08 | J37: 0.6 | K37: 1.18 | L37: 1.3 | M37: 1.12 | N37: 2.07 | O37: 2.44 | P37: 1.17 | Q37: 1.51 | R37: 0.87 | S37: 1.14 | T37: 0.76 | U37: 0.68 | V37: 2.85 | W37: 5.08 | X37: 1.14 | Y37: 1.14 | Z37: 0.85 | AA37: 1.32 | AB37: 0.55 | AC37: 0.14 | AD37: 0.85 | AE37: 1.25 | AF37: 0.62 | AG37: 0.37 | AH37: 0.19 | AI37: 0.31 | AJ37: 0.16 | AK37: 1.88 | AL37: 0.14 | AM37: 0.09 | AN37: 0.26 | AO37: 0.29 | AP37: 0.01 | AQ37: 2.71 | AR37: 0.39 | AS37: 0.19 | AT37: 0.9
B38: 33 | C38: 0.086 | D38: 0.028 | E38: 0.086 | F38: 0.028 | G38: 1.48 | H38: 0.13 | I38: 0.08 | J38: 0.6 | K38: 1.18 | L38: 1.3 | M38: 1.12 | N38: 2.07 | O38: 2.44 | P38: 1.17 | Q38: 1.51 | R38: 0.87 | S38: 1.14 | T38: 0.76 | U38: 0.68 | V38: 2.85 | W38: 5.08 | X38: 1.14 | Y38: 1.14 | Z38: 0.85 | AA38: 1.32 | AB38: 0.55 | AC38: 0.14 | AD38: 0.85 | AE38: 1.25 | AF38: 0.62 | AG38: 0.37 | AH38: 0.19 | AI38: 0.31 | AJ38: 0.16 | AK38: 1.88 | AL38: 0.14 | AM38: 0.09 | AN38: 0.26 | AO38: 0.29 | AP38: 0.01 | AQ38: 2.71 | AR38: 0.39 | AS38: 0.19 | AT38: 0.9
B39: 34 | C39: 0.086 | D39: 0.028 | E39: 0.086 | F39: 0.028 | G39: 1.48 | H39: 0.13 | I39: 0.08 | J39: 0.6 | K39: 1.18 | L39: 1.3 | M39: 1.12 | N39: 2.07 | O39: 2.44 | P39: 1.17 | Q39: 1.51 | R39: 0.87 | S39: 1.14 | T39: 0.76 | U39: 0.68 | V39: 2.85 | W39: 5.08 | X39: 1.14 | Y39: 1.14 | Z39: 0.85 | AA39: 1.32 | AB39: 0.55 | AC39: 0.14 | AD39: 0.85 | AE39: 1.25 | AF39: 0.62 | AG39: 0.37 | AH39: 0.19 | AI39: 0.31 | AJ39: 0.16 | AK39: 1.88 | AL39: 0.14 | AM39: 0.09 | AN39: 0.26 | AO39: 0.29 | AP39: 0.01 | AQ39: 2.71 | AR39: 0.39 | AS39: 0.19 | AT39: 0.9
B40: 35 | C40: 0.086 | D40: 0.028 | E40: 0.086 | F40: 0.028 | G40: 1.48 | H40: 0.13 | I40: 0.08 | J40: 0.6 | K40: 1.18 | L40: 1.3 | M40: 1.12 | N40: 2.07 | O40: 2.44 | P40: 1.17 | Q40: 1.51 | R40: 0.87 | S40: 1.14 | T40: 0.76 | U40: 0.68 | V40: 2.85 | W40: 5.08 | X40: 1.14 | Y40: 1.14 | Z40: 0.85 | AA40: 1.32 | AB40: 0.55 | AC40: 0.14 | AD40: 0.85 | AE40: 1.25 | AF40: 0.62 | AG40: 0.37 | AH40: 0.19 | AI40: 0.31 | AJ40: 0.16 | AK40: 1.88 | AL40: 0.14 | AM40: 0.09 | AN40: 0.26 | AO40: 0.29 | AP40: 0.01 | AQ40: 2.71 | AR40: 0.39 | AS40: 0.19 | AT40: 0.9
B41: 36 | C41: 0.086 | D41: 0.028 | E41: 0.086 | F41: 0.028 | G41: 1.48 | H41: 0.13 | I41: 0.08 | J41: 0.6 | K41: 1.18 | L41: 1.3 | M41: 1.12 | N41: 2.07 | O41: 2.44 | P41: 1.17 | Q41: 1.51 | R41: 0.87 | S41: 1.14 | T41: 0.76 | U41: 0.68 | V41: 2.85 | W41: 5.08 | X41: 1.14 | Y41: 1.14 | Z41: 0.85 | AA41: 1.32 | AB41: 0.55 | AC41: 0.14 | AD41: 0.85 | AE41: 1.25 | AF41: 0.62 | AG41: 0.37 | AH41: 0.19 | AI41: 0.31 | AJ41: 0.16 | AK41: 1.88 | AL41: 0.14 | AM41: 0.09 | AN41: 0.26 | AO41: 0.29 | AP41: 0.01 | AQ41: 2.71 | AR41: 0.39 | AS41: 0.19 | AT41: 0.9
B42: 37 | C42: 0.086 | D42: 0.028 | E42: 0.086 | F42: 0.028 | G42: 1.48 | H42: 0.13 | I42: 0.08 | J42: 0.6 | K42: 1.18 | L42: 1.3 | M42: 1.12 | N42: 2.07 | O42: 2.44 | P42: 1.17 | Q42: 1.51 | R42: 0.87 | S42: 1.14 | T42: 0.76 | U42: 0.68 | V42: 2.85 | W42: 5.08 | X42: 1.14 | Y42: 1.14 | Z42: 0.85 | AA42: 1.32 | AB42: 0.55 | AC42: 0.14 | AD42: 0.85 | AE42: 1.25 | AF42: 0.62 | AG42: 0.37 | AH42: 0.19 | AI42: 0.31 | AJ42: 0.16 | AK42: 1.88 | AL42: 0.14 | AM42: 0.09 | AN42: 0.26 | AO42: 0.29 | AP42: 0.01 | AQ42: 2.71 | AR42: 0.39 | AS42: 0.19 | AT42: 0.9
B43: 38 | C43: 0.086 | D43: 0.028 | E43: 0.086 | F43: 0.028 | G43: 1.48 | H43: 0.13 | I43: 0.08 | J43: 0.6 | K43: 1.18 | L43: 1.3 | M43: 1.12 | N43: 2.07 | O43: 2.44 | P43: 1.17 | Q43: 1.51 | R43: 0.87 | S43: 1.14 | T43: 0.76 | U43: 0.68 | V43: 2.85 | W43: 5.08 | X43: 1.14 | Y43: 1.14 | Z43: 0.85 | AA43: 1.32 | AB43: 0.55 | AC43: 0.14 | AD43: 0.85 | AE43: 1.25 | AF43: 0.62 | AG43: 0.37 | AH43: 0.19 | AI43: 0.31 | AJ43: 0.16 | AK43: 1.88 | AL43: 0.14 | AM43: 0.09 | AN43: 0.26 | AO43: 0.29 | AP43: 0.01 | AQ43: 2.71 | AR43: 0.39 | AS43: 0.19 | AT43: 0.9
B44: 39 | C44: 0.086 | D44: 0.028 | E44: 0.086 | F44: 0.028 | G44: 1.48 | H44: 0.13 | I44: 0.08 | J44: 0.6 | K44: 1.18 | L44: 1.3 | M44: 1.12 | N44: 2.07 | O44: 2.44 | P44: 1.17 | Q44: 1.51 | R44: 0.87 | S44: 1.14 | T44: 0.76 | U44: 0.68 | V44: 2.85 | W44: 5.08 | X44: 1.14 | Y44: 1.14 | Z44: 0.85 | AA44: 1.32 | AB44: 0.55 | AC44: 0.14 | AD44: 0.85 | AE44: 1.25 | AF44: 0.62 | AG44: 0.37 | AH44: 0.19 | AI44: 0.31 | AJ44: 0.16 | AK44: 1.88 | AL44: 0.14 | AM44: 0.09 | AN44: 0.26 | AO44: 0.29 | AP44: 0.01 | AQ44: 2.71 | AR44: 0.39 | AS44: 0.19 | AT44: 0.9
B45: 40 | C45: 0.086 | D45: 0.028 | E45: 0.086 | F45: 0.028 | G45: 1.48 | H45: 0.13 | I45: 0.08 | J45: 0.6 | K45: 1.18 | L45: 1.3 | M45: 1.12 | N45: 2.07 | O45: 2.44 | P45: 1.17 | Q45: 1.51 | R45: 0.87 | S45: 1.14 | T45: 0.76 | U45: 0.68 | V45: 2.85 | W45: 5.08 | X45: 1.14 | Y45: 1.14 | Z45: 0.85 | AA45: 1.32 | AB45: 0.55 | AC45: 0.14 | AD45: 0.85 | AE45: 1.25 | AF45: 0.62 | AG45: 0.37 | AH45: 0.19 | AI45: 0.31 | AJ45: 0.16 | AK45: 1.88 | AL45: 0.14 | AM45: 0.09 | AN45: 0.26 | AO45: 0.29 | AP45: 0.01 | AQ45: 2.71 | AR45: 0.39 | AS45: 0.19 | AT45: 0.9
B46: 41 | C46: 0.086 | D46: 0.028 | E46: 0.086 | F46: 0.028 | G46: 1.48 | H46: 0.13 | I46: 0.08 | J46: 0.6 | K46: 1.18 | L46: 1.3 | M46: 1.12 | N46: 2.07 | O46: 2.44 | P46: 1.17 | Q46: 1.51 | R46: 0.87 | S46: 1.14 | T46: 0.76 | U46: 0.68 | V46: 2.85 | W46: 5.08 | X46: 1.14 | Y46: 1.14 | Z46: 0.85 | AA46: 1.32 | AB46: 0.55 | AC46: 0.14 | AD46: 0.85 | AE46: 1.25 | AF46: 0.62 | AG46: 0.37 | AH46: 0.19 | AI46: 0.31 | AJ46: 0.16 | AK46: 1.88 | AL46: 0.14 | AM46: 0.09 | AN46: 0.26 | AO46: 0.29 | AP46: 0.01 | AQ46: 2.71 | AR46: 0.39 | AS46: 0.19 | AT46: 0.9
B47: 42 | C47: 0.086 | D47: 0.028 | E47: 0.086 | F47: 0.028 | G47: 1.48 | H47: 0.13 | I47: 0.08 | J47: 0.6 | K47: 1.18 | L47: 1.3 | M47: 1.12 | N47: 2.07 | O47: 2.44 | P47: 1.17 | Q47: 1.51 | R47: 0.87 | S47: 1.14 | T47: 0.76 | U47: 0.68 | V47: 2.85 | W47: 5.08 | X47: 1.14 | Y47: 1.14 | Z47: 0.85 | AA47: 1.32 | AB47: 0.55 | AC47: 0.14 | AD47: 0.85 | AE47: 1.25 | AF47: 0.62 | AG47: 0.37 | AH47: 0.19 | AI47: 0.31 | AJ47: 0.16 | AK47: 1.88 | AL47: 0.14 | AM47: 0.09 | AN47: 0.26 | AO47: 0.29 | AP47: 0.01 | AQ47: 2.71 | AR47: 0.39 | AS47: 0.19 | AT47: 0.9
B48: 43 | C48: 0.086 | D48: 0.028 | E48: 0.086 | F48: 0.028 | G48: 1.48 | H48: 0.13 | I48: 0.08 | J48: 0.6 | K48: 1.18 | L48: 1.3 | M48: 1.12 | N48: 2.07 | O48: 2.44 | P48: 1.17 | Q48: 1.51 | R48: 0.87 | S48: 1.14 | T48: 0.76 | U48: 0.68 | V48: 2.85 | W48: 5.08 | X48: 1.14 | Y48: 1.14 | Z48: 0.85 | AA48: 1.32 | AB48: 0.55 | AC48: 0.14 | AD48: 0.85 | AE48: 1.25 | AF48: 0.62 | AG48: 0.37 | AH48: 0.19 | AI48: 0.31 | AJ48: 0.16 | AK48: 1.88 | AL48: 0.14 | AM48: 0.09 | AN48: 0.26 | AO48: 0.29 | AP48: 0.01 | AQ48: 2.71 | AR48: 0.39 | AS48: 0.19 | AT48: 0.9
B49: 44 | C49: 0.086 | D49: 0.028 | E49: 0.086 | F49: 0.028 | G49: 1.48 | H49: 0.13 | I49: 0.08 | J49: 0.6 | K49: 1.18 | L49: 1.3 | M49: 1.12 | N49: 2.07 | O49: 2.44 | P49: 1.17 | Q49: 1.51 | R49: 0.87 | S49: 1.14 | T49: 0.76 | U49: 0.68 | V49: 2.85 | W49: 5.08 | X49: 1.14 | Y49: 1.14 | Z49: 0.85 | AA49: 1.32 | AB49: 0.55 | AC49: 0.14 | AD49: 0.85 | AE49: 1.25 | AF49: 0.62 | AG49: 0.37 | AH49: 0.19 | AI49: 0.31 | AJ49: 0.16 | AK49: 1.88 | AL49: 0.14 | AM49: 0.09 | AN49: 0.26 | AO49: 0.29 | AP49: 0.01 | AQ49: 2.71 | AR49: 0.39 | AS49: 0.19 | AT49: 0.9
B50: 45 | C50: 0.086 | D50: 0.028 | E50: 0.086 | F50: 0.028 | G50: 1.48 | H50: 0.13 | I50: 0.08 | J50: 0.6 | K50: 1.18 | L50: 1.3 | M50: 1.12 | N50: 2.07 | O50: 2.44 | P50: 1.17 | Q50: 1.51 | R50: 0.87 | S50: 1.14 | T50: 0.76 | U50: 0.68 | V50: 2.85 | W50: 5.08 | X50: 1.14 | Y50: 1.14 | Z50: 0.85 | AA50: 1.32 | AB50: 0.55 | AC50: 0.14 | AD50: 0.85 | AE50: 1.25 | AF50: 0.62 | AG50: 0.37 | AH50: 0.19 | AI50: 0.31 | AJ50: 0.16 | AK50: 1.88 | AL50: 0.14 | AM50: 0.09 | AN50: 0.26 | AO50: 0.29 | AP50: 0.01 | AQ50: 2.71 | AR50: 0.39 | AS50: 0.19 | AT50: 0.9
B51: 46 | C51: 0.086 | D51: 0.028 | E51: 0.086 | F51: 0.028 | G51: 1.48 | H51: 0.13 | I51: 0.08 | J51: 0.6 | K51: 1.18 | L51: 1.3 | M51: 1.12 | N51: 2.07 | O51: 2.44 | P51: 1.17 | Q51: 1.51 | R51: 0.87 | S51: 1.14 | T51: 0.76 | U51: 0.68 | V51: 2.85 | W51: 5.08 | X51: 1.14 | Y51: 1.14 | Z51: 0.85 | AA51: 1.32 | AB51: 0.55 | AC51: 0.14 | AD51: 0.85 | AE51: 1.25 | AF51: 0.62 | AG51: 0.37 | AH51: 0.19 | AI51: 0.31 | AJ51: 0.16 | AK51: 1.88 | AL51: 0.14 | AM51: 0.09 | AN51: 0.26 | AO51: 0.29 | AP51: 0.01 | AQ51: 2.71 | AR51: 0.39 | AS51: 0.19 | AT51: 0.9
B52: 47 | C52: 0.086 | D52: 0.028 | E52: 0.086 | F52: 0.028 | G52: 1.48 | H52: 0.13 | I52: 0.08 | J52: 0.6 | K52: 1.18 | L52: 1.3 | M52: 1.12 | N52: 2.07 | O52: 2.44 | P52: 1.17 | Q52: 1.51 | R52: 0.87 | S52: 1.14 | T52: 0.76 | U52: 0.68 | V52: 2.85 | W52: 5.08 | X52: 1.14 | Y52: 1.14 | Z52: 0.85 | AA52: 1.32 | AB52: 0.55 | AC52: 0.14 | AD52: 0.85 | AE52: 1.25 | AF52: 0.62 | AG52: 0.37 | AH52: 0.19 | AI52: 0.31 | AJ52: 0.16 | AK52: 1.88 | AL52: 0.14 | AM52: 0.09 | AN52: 0.26 | AO52: 0.29 | AP52: 0.01 | AQ52: 2.71 | AR52: 0.39 | AS52: 0.19 | AT52: 0.9
B53: 48 | C53: 0.086 | D53: 0.028 | E53: 0.086 | F53: 0.028 | G53: 1.48 | H53: 0.13 | I53: 0.08 | J53: 0.6 | K53: 1.18 | L53: 1.3 | M53: 1.12 | N53: 2.07 | O53: 2.44 | P53: 1.17 | Q53: 1.51 | R53: 0.87 | S53: 1.14 | T53: 0.76 | U53: 0.68 | V53: 2.85 | W53: 5.08 | X53: 1.14 | Y53: 1.14 | Z53: 0.85 | AA53: 1.32 | AB53: 0.55 | AC53: 0.14 | AD53: 0.85 | AE53: 1.25 | AF53: 0.62 | AG53: 0.37 | AH53: 0.19 | AI53: 0.31 | AJ53: 0.16 | AK53: 1.88 | AL53: 0.14 | AM53: 0.09 | AN53: 0.26 | AO53: 0.29 | AP53: 0.01 | AQ53: 2.71 | AR53: 0.39 | AS53: 0.19 | AT53: 0.9
B54: 49 | C54: 0.086 | D54: 0.028 | E54: 0.086 | F54: 0.028 | G54: 1.48 | H54: 0.13 | I54: 0.08 | J54: 0.6 | K54: 1.18 | L54: 1.3 | M54: 1.12 | N54: 2.07 | O54: 2.44 | P54: 1.17 | Q54: 1.51 | R54: 0.87 | S54: 1.14 | T54: 0.76 | U54: 0.68 | V54: 2.85 | W54: 5.08 | X54: 1.14 | Y54: 1.14 | Z54: 0.85 | AA54: 1.32 | AB54: 0.55 | AC54: 0.14 | AD54: 0.85 | AE54: 1.25 | AF54: 0.62 | AG54: 0.37 | AH54: 0.19 | AI54: 0.31 | AJ54: 0.16 | AK54: 1.88 | AL54: 0.14 | AM54: 0.09 | AN54: 0.26 | AO54: 0.29 | AP54: 0.01 | AQ54: 2.71 | AR54: 0.39 | AS54: 0.19 | AT54: 0.9
B55: 50 | C55: 0.086 | D55: 0.028 | E55: 0.086 | F55: 0.028 | G55: 1.48 | H55: 0.13 | I55: 0.08 | J55: 0.6 | K55: 1.18 | L55: 1.3 | M55: 1.12 | N55: 2.07 | O55: 2.44 | P55: 1.17 | Q55: 1.51 | R55: 0.87 | S55: 1.14 | T55: 0.76 | U55: 0.68 | V55: 2.85 | W55: 5.08 | X55: 1.14 | Y55: 1.14 | Z55: 0.85 | AA55: 1.32 | AB55: 0.55 | AC55: 0.14 | AD55: 0.85 | AE55: 1.25 | AF55: 0.62 | AG55: 0.37 | AH55: 0.19 | AI55: 0.31 | AJ55: 0.16 | AK55: 1.88 | AL55: 0.14 | AM55: 0.09 | AN55: 0.26 | AO55: 0.29 | AP55: 0.01 | AQ55: 2.71 | AR55: 0.39 | AS55: 0.19 | AT55: 0.9
B56: 51 | C56: 0.086 | D56: 0.028 | E56: 0.086 | F56: 0.028 | G56: 1.48 | H56: 0.13 | I56: 0.08 | J56: 0.6 | K56: 1.18 | L56: 1.3 | M56: 1.12 | N56: 2.07 | O56: 2.44 | P56: 1.17 | Q56: 1.51 | R56: 0.87 | S56: 1.14 | T56: 0.76 | U56: 0.68 | V56: 2.85 | W56: 5.08 | X56: 1.14 | Y56: 1.14 | Z56: 0.85 | AA56: 1.32 | AB56: 0.55 | AC56: 0.14 | AD56: 0.85 | AE56: 1.25 | AF56: 0.62 | AG56: 0.37 | AH56: 0.19 | AI56: 0.31 | AJ56: 0.16 | AK56: 1.88 | AL56: 0.14 | AM56: 0.09 | AN56: 0.26 | AO56: 0.29 | AP56: 0.01 | AQ56: 2.71 | AR56: 0.39 | AS56: 0.19 | AT56: 0.9
B57: 52 | C57: 0.086 | D57: 0.028 | E57: 0.086 | F57: 0.028 | G57: 1.48 | H57: 0.13 | I57: 0.08 | J57: 0.6 | K57: 1.18 | L57: 1.3 | M57: 1.12 | N57: 2.07 | O57: 2.44 | P57: 1.17 | Q57: 1.51 | R57: 0.87 | S57: 1.14 | T57: 0.76 | U57: 0.68 | V57: 2.85 | W57: 5.08 | X57: 1.14 | Y57: 1.14 | Z57: 0.85 | AA57: 1.32 | AB57: 0.55 | AC57: 0.14 | AD57: 0.85 | AE57: 1.25 | AF57: 0.62 | AG57: 0.37 | AH57: 0.19 | AI57: 0.31 | AJ57: 0.16 | AK57: 1.88 | AL57: 0.14 | AM57: 0.09 | AN57: 0.26 | AO57: 0.29 | AP57: 0.01 | AQ57: 2.71 | AR57: 0.39 | AS57: 0.19 | AT57: 0.9
B58: 53 | C58: 0.086 | D58: 0.028 | E58: 0.086 | F58: 0.028 | G58: 1.48 | H58: 0.13 | I58: 0.08 | J58: 0.6 | K58: 1.18 | L58: 1.3 | M58: 1.12 | N58: 2.07 | O58: 2.44 | P58: 1.17 | Q58: 1.51 | R58: 0.87 | S58: 1.14 | T58: 0.76 | U58: 0.68 | V58: 2.85 | W58: 5.08 | X58: 1.14 | Y58: 1.14 | Z58: 0.85 | AA58: 1.32 | AB58: 0.55 | AC58: 0.14 | AD58: 0.85 | AE58: 1.25 | AF58: 0.62 | AG58: 0.37 | AH58: 0.19 | AI58: 0.31 | AJ58: 0.16 | AK58: 1.88 | AL58: 0.14 | AM58: 0.09 | AN58: 0.26 | AO58: 0.29 | AP58: 0.01 | AQ58: 2.71 | AR58: 0.39 | AS58: 0.19 | AT58: 0.9
B59: 54 | C59: 0.086 | D59: 0.028 | E59: 0.086 | F59: 0.028 | G59: 1.48 | H59: 0.13 | I59: 0.08 | J59: 0.6 | K59: 1.18 | L59: 1.3 | M59: 1.12 | N59: 2.07 | O59: 2.44 | P59: 1.17 | Q59: 1.51 | R59: 0.87 | S59: 1.14 | T59: 0.76 | U59: 0.68 | V59: 2.85 | W59: 5.08 | X59: 1.14 | Y59: 1.14 | Z59: 0.85 | AA59: 1.32 | AB59: 0.55 | AC59: 0.14 | AD59: 0.85 | AE59: 1.25 | AF59: 0.62 | AG59: 0.37 | AH59: 0.19 | AI59: 0.31 | AJ59: 0.16 | AK59: 1.88 | AL59: 0.14 | AM59: 0.09 | AN59: 0.26 | AO59: 0.29 | AP59: 0.01 | AQ59: 2.71 | AR59: 0.39 | AS59: 0.19 | AT59: 0.9
B60: 55 | C60: 0.086 | D60: 0.028 | E60: 0.086 | F60: 0.028 | G60: 1.48 | H60: 0.13 | I60: 0.08 | J60: 0.6 | K60: 1.18 | L60: 1.3 | M60: 1.12 | N60: 2.07 | O60: 2.44 | P60: 1.17 | Q60: 1.51 | R60: 0.87 | S60: 1.14 | T60: 0.76 | U60: 0.68 | V60: 2.85 | W60: 5.08 | X60: 1.14 | Y60: 1.14 | Z60: 0.85 | AA60: 1.32 | AB60: 0.55 | AC60: 0.14 | AD60: 0.85 | AE60: 1.25 | AF60: 0.62 | AG60: 0.37 | AH60: 0.19 | AI60: 0.31 | AJ60: 0.16 | AK60: 1.88 | AL60: 0.14 | AM60: 0.09 | AN60: 0.26 | AO60: 0.29 | AP60: 0.01 | AQ60: 2.71 | AR60: 0.39 | AS60: 0.19 | AT60: 0.9
B61: 56 | C61: 0.086 | D61: 0.028 | E61: 0.086 | F61: 0.028 | G61: 1.48 | H61: 0.13 | I61: 0.08 | J61: 0.6 | K61: 1.18 | L61: 1.3 | M61: 1.12 | N61: 2.07 | O61: 2.44 | P61: 1.17 | Q61: 1.51 | R61: 0.87 | S61: 1.14 | T61: 0.76 | U61: 0.68 | V61: 2.85 | W61: 5.08 | X61: 1.14 | Y61: 1.14 | Z61: 0.85 | AA61: 1.32 | AB61: 0.55 | AC61: 0.14 | AD61: 0.85 | AE61: 1.25 | AF61: 0.62 | AG61: 0.37 | AH61: 0.19 | AI61: 0.31 | AJ61: 0.16 | AK61: 1.88 | AL61: 0.14 | AM61: 0.09 | AN61: 0.26 | AO61: 0.29 | AP61: 0.01 | AQ61: 2.71 | AR61: 0.39 | AS61: 0.19 | AT61: 0.9
B62: 57 | C62: 0.086 | D62: 0.028 | E62: 0.086 | F62: 0.028 | G62: 1.48 | H62: 0.13 | I62: 0.08 | J62: 0.6 | K62: 1.18 | L62: 1.3 | M62: 1.12 | N62: 2.07 | O62: 2.44 | P62: 1.17 | Q62: 1.51 | R62: 0.87 | S62: 1.14 | T62: 0.76 | U62: 0.68 | V62: 2.85 | W62: 5.08 | X62: 1.14 | Y62: 1.14 | Z62: 0.85 | AA62: 1.32 | AB62: 0.55 | AC62: 0.14 | AD62: 0.85 | AE62: 1.25 | AF62: 0.62 | AG62: 0.37 | AH62: 0.19 | AI62: 0.31 | AJ62: 0.16 | AK62: 1.88 | AL62: 0.14 | AM62: 0.09 | AN62: 0.26 | AO62: 0.29 | AP62: 0.01 | AQ62: 2.71 | AR62: 0.39 | AS62: 0.19 | AT62: 0.9
B63: 58 | C63: 0.086 | D63: 0.028 | E63: 0.086 | F63: 0.028 | G63: 1.48 | H63: 0.13 | I63: 0.08 | J63: 0.6 | K63: 1.18 | L63: 1.3 | M63: 1.12 | N63: 2.07 | O63: 2.44 | P63: 1.17 | Q63: 1.51 | R63: 0.87 | S63: 1.14 | T63: 0.76 | U63: 0.68 | V63: 2.85 | W63: 5.08 | X63: 1.14 | Y63: 1.14 | Z63: 0.85 | AA63: 1.32 | AB63: 0.55 | AC63: 0.14 | AD63: 0.85 | AE63: 1.25 | AF63: 0.62 | AG63: 0.37 | AH63: 0.19 | AI63: 0.31 | AJ63: 0.16 | AK63: 1.88 | AL63: 0.14 | AM63: 0.09 | AN63: 0.26 | AO63: 0.29 | AP63: 0.01 | AQ63: 2.71 | AR63: 0.39 | AS63: 0.19 | AT63: 0.9
B64: 59 | C64: 0.086 | D64: 0.028 | E64: 0.086 | F64: 0.028 | G64: 1.48 | H64: 0.13 | I64: 0.08 | J64: 0.6 | K64: 1.18 | L64: 1.3 | M64: 1.12 | N64: 2.07 | O64: 2.44 | P64: 1.17 | Q64: 1.51 | R64: 0.87 | S64: 1.14 | T64: 0.76 | U64: 0.68 | V64: 2.85 | W64: 5.08 | X64: 1.14 | Y64: 1.14 | Z64: 0.85 | AA64: 1.32 | AB64: 0.55 | AC64: 0.14 | AD64: 0.85 | AE64: 1.25 | AF64: 0.62 | AG64: 0.37 | AH64: 0.19 | AI64: 0.31 | AJ64: 0.16 | AK64: 1.88 | AL64: 0.14 | AM64: 0.09 | AN64: 0.26 | AO64: 0.29 | AP64: 0.01 | AQ64: 2.71 | AR64: 0.39 | AS64: 0.19 | AT64: 0.9
B65: 60 | C65: 0.086 | D65: 0.028 | E65: 0.086 | F65: 0.028 | G65: 1.48 | H65: 0.13 | I65: 0.08 | J65: 0.6 | K65: 1.18 | L65: 1.3 | M65: 1.12 | N65: 2.07 | O65: 2.44 | P65: 1.17 | Q65: 1.51 | R65: 0.87 | S65: 1.14 | T65: 0.76 | U65: 0.68 | V65: 2.85 | W65: 5.08 | X65: 1.14 | Y65: 1.14 | Z65: 0.85 | AA65: 1.32 | AB65: 0.55 | AC65: 0.14 | AD65: 0.85 | AE65: 1.25 | AF65: 0.62 | AG65: 0.37 | AH65: 0.19 | AI65: 0.31 | AJ65: 0.16 | AK65: 1.88 | AL65: 0.14 | AM65: 0.09 | AN65: 0.26 | AO65: 0.29 | AP65: 0.01 | AQ65: 2.71 | AR65: 0.39 | AS65: 0.19 | AT65: 0.9
B66: 61 | C66: 0.086 | D66: 0.028 | E66: 0.086 | F66: 0.028 | G66: 1.48 | H66: 0.13 | I66: 0.08 | J66: 0.6 | K66: 1.18 | L66: 1.3 | M66: 1.12 | N66: 2.07 | O66: 2.44 | P66: 1.17 | Q66: 1.51 | R66: 0.87 | S66: 1.14 | T66: 0.76 | U66: 0.68 | V66: 2.85 | W66: 5.08 | X66: 1.14 | Y66: 1.14 | Z66: 0.85 | AA66: 1.32 | AB66: 0.55 | AC66: 0.14 | AD66: 0.85 | AE66: 1.25 | AF66: 0.62 | AG66: 0.37 | AH66: 0.19 | AI66: 0.31 | AJ66: 0.16 | AK66: 1.88 | AL66: 0.14 | AM66: 0.09 | AN66: 0.26 | AO66: 0.29 | AP66: 0.01 | AQ66: 2.71 | AR66: 0.39 | AS66: 0.19 | AT66: 0.9
B67: 62 | C67: 0.086 | D67: 0.028 | E67: 0.086 | F67: 0.028 | G67: 1.48 | H67: 0.13 | I67: 0.08 | J67: 0.6 | K67: 1.18 | L67: 1.3 | M67: 1.12 | N67: 2.07 | O67: 2.44 | P67: 1.17 | Q67: 1.51 | R67: 0.87 | S67: 1.14 | T67: 0.76 | U67: 0.68 | V67: 2.85 | W67: 5.08 | X67: 1.14 | Y67: 1.14 | Z67: 0.85 | AA67: 1.32 | AB67: 0.55 | AC67: 0.14 | AD67: 0.85 | AE67: 1.25 | AF67: 0.62 | AG67: 0.37 | AH67: 0.19 | AI67: 0.31 | AJ67: 0.16 | AK67: 1.88 | AL67: 0.14 | AM67: 0.09 | AN67: 0.26 | AO67: 0.29 | AP67: 0.01 | AQ67: 2.71 | AR67: 0.39 | AS67: 0.19 | AT67: 0.9
B68: 63 | C68: 0.086 | D68: 0.028 | E68: 0.086 | F68: 0.028 | G68: 1.48 | H68: 0.13 | I68: 0.08 | J68: 0.6 | K68: 1.18 | L68: 1.3 | M68: 1.12 | N68: 2.07 | O68: 2.44 | P68: 1.17 | Q68: 1.51 | R68: 0.87 | S68: 1.14 | T68: 0.76 | U68: 0.68 | V68: 2.85 | W68: 5.08 | X68: 1.14 | Y68: 1.14 | Z68: 0.85 | AA68: 1.32 | AB68: 0.55 | AC68: 0.14 | AD68: 0.85 | AE68: 1.25 | AF68: 0.62 | AG68: 0.37 | AH68: 0.19 | AI68: 0.31 | AJ68: 0.16 | AK68: 1.88 | AL68: 0.14 | AM68: 0.09 | AN68: 0.26 | AO68: 0.29 | AP68: 0.01 | AQ68: 2.71 | AR68: 0.39 | AS68: 0.19 | AT68: 0.9
B69: 64 | C69: 0.086 | D69: 0.028 | E69: 0.086 | F69: 0.028 | G69: 1.48 | H69: 0.13 | I69: 0.08 | J69: 0.6 | K69: 1.18 | L69: 1.3 | M69: 1.12 | N69: 2.07 | O69: 2.44 | P69: 1.17 | Q69: 1.51 | R69: 0.87 | S69: 1.14 | T69: 0.76 | U69: 0.68 | V69: 2.85 | W69: 5.08 | X69: 1.14 | Y69: 1.14 | Z69: 0.85 | AA69: 1.32 | AB69: 0.55 | AC69: 0.14 | AD69: 0.85 | AE69: 1.25 | AF69: 0.62 | AG69: 0.37 | AH69: 0.19 | AI69: 0.31 | AJ69: 0.16 | AK69: 1.88 | AL69: 0.14 | AM69: 0.09 | AN69: 0.26 | AO69: 0.29 | AP69: 0.01 | AQ69: 2.71 | AR69: 0.39 | AS69: 0.19 | AT69: 0.9
B70: 65 | C70: 0.086 | D70: 0.028 | E70: 0.086 | F70: 0.028 | G70: 1.48 | H70: 0.13 | I70: 0.08 | J70: 0.6 | K70: 1.18 | L70: 1.3 | M70: 1.12 | N70: 2.07 | O70: 2.44 | P70: 1.17 | Q70: 1.51 | R70: 0.87 | S70: 1.14 | T70: 0.76 | U70: 0.68 | V70: 2.85 | W70: 5.08 | X70: 1.14 | Y70: 1.14 | Z70: 0.85 | AA70: 1.32 | AB70: 0.55 | AC70: 0.14 | AD70: 0.85 | AE70: 1.25 | AF70: 0.62 | AG70: 0.37 | AH70: 0.19 | AI70: 0.31 | AJ70: 0.16 | AK70: 1.88 | AL70: 0.14 | AM70: 0.09 | AN70: 0.26 | AO70: 0.29 | AP70: 0.01 | AQ70: 2.71 | AR70: 0.39 | AS70: 0.19 | AT70: 0.9
B71: 66 | C71: 0.086 | D71: 0.028 | E71: 0.086 | F71: 0.028 | G71: 1.48 | H71: 0.13 | I71: 0.08 | J71: 0.6 | K71: 1.18 | L71: 1.3 | M71: 1.12 | N71: 2.07 | O71: 2.44 | P71: 1.17 | Q71: 1.51 | R71: 0.87 | S71: 1.14 | T71: 0.76 | U71: 0.68 | V71: 2.85 | W71: 5.08 | X71: 1.14 | Y71: 1.14 | Z71: 0.85 | AA71: 1.32 | AB71: 0.55 | AC71: 0.14 | AD71: 0.85 | AE71: 1.25 | AF71: 0.62 | AG71: 0.37 | AH71: 0.19 | AI71: 0.31 | AJ71: 0.16 | AK71: 1.88 | AL71: 0.14 | AM71: 0.09 | AN71: 0.26 | AO71: 0.29 | AP71: 0.01 | AQ71: 2.71 | AR71: 0.39 | AS71: 0.19 | AT71: 0.9
B72: 67 | C72: 0.086 | D72: 0.028 | E72: 0.086 | F72: 0.028 | G72: 1.48 | H72: 0.13 | I72: 0.08 | J72: 0.6 | K72: 1.18 | L72: 1.3 | M72: 1.12 | N72: 2.07 | O72: 2.44 | P72: 1.17 | Q72: 1.51 | R72: 0.87 | S72: 1.14 | T72: 0.76 | U72: 0.68 | V72: 2.85 | W72: 5.08 | X72: 1.14 | Y72: 1.14 | Z72: 0.85 | AA72: 1.32 | AB72: 0.55 | AC72: 0.14 | AD72: 0.85 | AE72: 1.25 | AF72: 0.62 | AG72: 0.37 | AH72: 0.19 | AI72: 0.31 | AJ72: 0.16 | AK72: 1.88 | AL72: 0.14 | AM72: 0.09 | AN72: 0.26 | AO72: 0.29 | AP72: 0.01 | AQ72: 2.71 | AR72: 0.39 | AS72: 0.19 | AT72: 0.9
B73: 68 | C73: 0.086 | D73: 0.028 | E73: 0.086 | F73: 0.028 | G73: 1.48 | H73: 0.13 | I73: 0.08 | J73: 0.6 | K73: 1.18 | L73: 1.3 | M73: 1.12 | N73: 2.07 | O73: 2.44 | P73: 1.17 | Q73: 1.51 | R73: 0.87 | S73: 1.14 | T73: 0.76 | U73: 0.68 | V73: 2.85 | W73: 5.08 | X73: 1.14 | Y73: 1.14 | Z73: 0.85 | AA73: 1.32 | AB73: 0.55 | AC73: 0.14 | AD73: 0.85 | AE73: 1.25 | AF73: 0.62 | AG73: 0.37 | AH73: 0.19 | AI73: 0.31 | AJ73: 0.16 | AK73: 1.88 | AL73: 0.14 | AM73: 0.09 | AN73: 0.26 | AO73: 0.29 | AP73: 0.01 | AQ73: 2.71 | AR73: 0.39 | AS73: 0.19 | AT73: 0.9
B74: 69 | C74: 0.086 | D74: 0.028 | E74: 0.086 | F74: 0.028 | G74: 1.48 | H74: 0.13 | I74: 0.08 | J74: 0.6 | K74: 1.18 | L74: 1.3 | M74: 1.12 | N74: 2.07 | O74: 2.44 | P74: 1.17 | Q74: 1.51 | R74: 0.87 | S74: 1.14 | T74: 0.76 | U74: 0.68 | V74: 2.85 | W74: 5.08 | X74: 1.14 | Y74: 1.14 | Z74: 0.85 | AA74: 1.32 | AB74: 0.55 | AC74: 0.14 | AD74: 0.85 | AE74: 1.25 | AF74: 0.62 | AG74: 0.37 | AH74: 0.19 | AI74: 0.31 | AJ74: 0.16 | AK74: 1.88 | AL74: 0.14 | AM74: 0.09 | AN74: 0.26 | AO74: 0.29 | AP74: 0.01 | AQ74: 2.71 | AR74: 0.39 | AS74: 0.19 | AT74: 0.9
B75: 70 | C75: 0.086 | D75: 0.028 | E75: 0.086 | F75: 0.028 | G75: 1.48 | H75: 0.13 | I75: 0.08 | J75: 0.6 | K75: 1.18 | L75: 1.3 | M75: 1.12 | N75: 2.07 | O75: 2.44 | P75: 1.17 | Q75: 1.51 | R75: 0.87 | S75: 1.14 | T75: 0.76 | U75: 0.68 | V75: 2.85 | W75: 5.08 | X75: 1.14 | Y75: 1.14 | Z75: 0.85 | AA75: 1.32 | AB75: 0.55 | AC75: 0.14 | AD75: 0.85 | AE75: 1.25 | AF75: 0.62 | AG75: 0.37 | AH75: 0.19 | AI75: 0.31 | AJ75: 0.16 | AK75: 1.88 | AL75: 0.14 | AM75: 0.09 | AN75: 0.26 | AO75: 0.29 | AP75: 0.01 | AQ75: 2.71 | AR75: 0.39 | AS75: 0.19 | AT75: 0.9
B76: 71 | C76: 0.086 | D76: 0.028 | E76: 0.086 | F76: 0.028 | G76: 1.48 | H76: 0.13 | I76: 0.08 | J76: 0.6 | K76: 1.18 | L76: 1.3 | M76: 1.12 | N76: 2.07 | O76: 2.44 | P76: 1.17 | Q76: 1.51 | R76: 0.87 | S76: 1.14 | T76: 0.76 | U76: 0.68 | V76: 2.85 | W76: 5.08 | X76: 1.14 | Y76: 1.14 | Z76: 0.85 | AA76: 1.32 | AB76: 0.55 | AC76: 0.14 | AD76: 0.85 | AE76: 1.25 | AF76: 0.62 | AG76: 0.37 | AH76: 0.19 | AI76: 0.31 | AJ76: 0.16 | AK76: 1.88 | AL76: 0.14 | AM76: 0.09 | AN76: 0.26 | AO76: 0.29 | AP76: 0.01 | AQ76: 2.71 | AR76: 0.39 | AS76: 0.19 | AT76: 0.9
B77: 72 | C77: 0.086 | D77: 0.028 | E77: 0.086 | F77: 0.028 | G77: 1.48 | H77: 0.13 | I77: 0.08 | J77: 0.6 | K77: 1.18 | L77: 1.3 | M77: 1.12 | N77: 2.07 | O77: 2.44 | P77: 1.17 | Q77: 1.51 | R77: 0.87 | S77: 1.14 | T77: 0.76 | U77: 0.68 | V77: 2.85 | W77: 5.08 | X77: 1.14 | Y77: 1.14 | Z77: 0.85 | AA77: 1.32 | AB77: 0.55 | AC77: 0.14 | AD77: 0.85 | AE77: 1.25 | AF77: 0.62 | AG77: 0.37 | AH77: 0.19 | AI77: 0.31 | AJ77: 0.16 | AK77: 1.88 | AL77: 0.14 | AM77: 0.09 | AN77: 0.26 | AO77: 0.29 | AP77: 0.01 | AQ77: 2.71 | AR77: 0.39 | AS77: 0.19 | AT77: 0.9
B78: 73 | C78: 0.086 | D78: 0.028 | E78: 0.086 | F78: 0.028 | G78: 1.48 | H78: 0.13 | I78: 0.08 | J78: 0.6 | K78: 1.18 | L78: 1.3 | M78: 1.12 | N78: 2.07 | O78: 2.44 | P78: 1.17 | Q78: 1.51 | R78: 0.87 | S78: 1.14 | T78: 0.76 | U78: 0.68 | V78: 2.85 | W78: 5.08 | X78: 1.14 | Y78: 1.14 | Z78: 0.85 | AA78: 1.32 | AB78: 0.55 | AC78: 0.14 | AD78: 0.85 | AE78: 1.25 | AF78: 0.62 | AG78: 0.37 | AH78: 0.19 | AI78: 0.31 | AJ78: 0.16 | AK78: 1.88 | AL78: 0.14 | AM78: 0.09 | AN78: 0.26 | AO78: 0.29 | AP78: 0.01 | AQ78: 2.71 | AR78: 0.39 | AS78: 0.19 | AT78: 0.9
B79: 74 | C79: 0.086 | D79: 0.028 | E79: 0.086 | F79: 0.028 | G79: 1.48 | H79: 0.13 | I79: 0.08 | J79: 0.6 | K79: 1.18 | L79: 1.3 | M79: 1.12 | N79: 2.07 | O79: 2.44 | P79: 1.17 | Q79: 1.51 | R79: 0.87 | S79: 1.14 | T79: 0.76 | U79: 0.68 | V79: 2.85 | W79: 5.08 | X79: 1.14 | Y79: 1.14 | Z79: 0.85 | AA79: 1.32 | AB79: 0.55 | AC79: 0.14 | AD79: 0.85 | AE79: 1.25 | AF79: 0.62 | AG79: 0.37 | AH79: 0.19 | AI79: 0.31 | AJ79: 0.16 | AK79: 1.88 | AL79: 0.14 | AM79: 0.09 | AN79: 0.26 | AO79: 0.29 | AP79: 0.01 | AQ79: 2.71 | AR79: 0.39 | AS79: 0.19 | AT79: 0.9
B80: 75 | C80: 0.086 | D80: 0.028 | E80: 0.086 | F80: 0.028 | G80: 1.48 | H80: 0.13 | I80: 0.08 | J80: 0.6 | K80: 1.18 | L80: 1.3 | M80: 1.12 | N80: 2.07 | O80: 2.44 | P80: 1.17 | Q80: 1.51 | R80: 0.87 | S80: 1.14 | T80: 0.76 | U80: 0.68 | V80: 2.85 | W80: 5.08 | X80: 1.14 | Y80: 1.14 | Z80: 0.85 | AA80: 1.32 | AB80: 0.55 | AC80: 0.14 | AD80: 0.85 | AE80: 1.25 | AF80: 0.62 | AG80: 0.37 | AH80: 0.19 | AI80: 0.31 | AJ80: 0.16 | AK80: 1.88 | AL80: 0.14 | AM80: 0.09 | AN80: 0.26 | AO80: 0.29 | AP80: 0.01 | AQ80: 2.71 | AR80: 0.39 | AS80: 0.19 | AT80: 0.9
B81: 76 | C81: 0.086 | D81: 0.028 | E81: 0.086 | F81: 0.028 | G81: 1.48 | H81: 0.13 | I81: 0.08 | J81: 0.6 | K81: 1.18 | L81: 1.3 | M81: 1.12 | N81: 2.07 | O81: 2.44 | P81: 1.17 | Q81: 1.51 | R81: 0.87 | S81: 1.14 | T81: 0.76 | U81: 0.68 | V81: 2.85 | W81: 5.08 | X81: 1.14 | Y81: 1.14 | Z81: 0.85 | AA81: 1.32 | AB81: 0.55 | AC81: 0.14 | AD81: 0.85 | AE81: 1.25 | AF81: 0.62 | AG81: 0.37 | AH81: 0.19 | AI81: 0.31 | AJ81: 0.16 | AK81: 1.88 | AL81: 0.14 | AM81: 0.09 | AN81: 0.26 | AO81: 0.29 | AP81: 0.01 | AQ81: 2.71 | AR81: 0.39 | AS81: 0.19 | AT81: 0.9
B82: 77 | C82: 0.086 | D82: 0.028 | E82: 0.086 | F82: 0.028 | G82: 1.48 | H82: 0.13 | I82: 0.08 | J82: 0.6 | K82: 1.18 | L82: 1.3 | M82: 1.12 | N82: 2.07 | O82: 2.44 | P82: 1.17 | Q82: 1.51 | R82: 0.87 | S82: 1.14 | T82: 0.76 | U82: 0.68 | V82: 2.85 | W82: 5.08 | X82: 1.14 | Y82: 1.14 | Z82: 0.85 | AA82: 1.32 | AB82: 0.55 | AC82: 0.14 | AD82: 0.85 | AE82: 1.25 | AF82: 0.62 | AG82: 0.37 | AH82: 0.19 | AI82: 0.31 | AJ82: 0.16 | AK82: 1.88 | AL82: 0.14 | AM82: 0.09 | AN82: 0.26 | AO82: 0.29 | AP82: 0.01 | AQ82: 2.71 | AR82: 0.39 | AS82: 0.19 | AT82: 0.9
B83: 78 | C83: 0.086 | D83: 0.028 | E83: 0.086 | F83: 0.028 | G83: 1.48 | H83: 0.13 | I83: 0.08 | J83: 0.6 | K83: 1.18 | L83: 1.3 | M83: 1.12 | N83: 2.07 | O83: 2.44 | P83: 1.17 | Q83: 1.51 | R83: 0.87 | S83: 1.14 | T83: 0.76 | U83: 0.68 | V83: 2.85 | W83: 5.08 | X83: 1.14 | Y83: 1.14 | Z83: 0.85 | AA83: 1.32 | AB83: 0.55 | AC83: 0.14 | AD83: 0.85 | AE83: 1.25 | AF83: 0.62 | AG83: 0.37 | AH83: 0.19 | AI83: 0.31 | AJ83: 0.16 | AK83: 1.88 | AL83: 0.14 | AM83: 0.09 | AN83: 0.26 | AO83: 0.29 | AP83: 0.01 | AQ83: 2.71 | AR83: 0.39 | AS83: 0.19 | AT83: 0.9
B84: 79 | C84: 0.086 | D84: 0.028 | E84: 0.086 | F84: 0.028 | G84: 1.48 | H84: 0.13 | I84: 0.08 | J84: 0.6 | K84: 1.18 | L84: 1.3 | M84: 1.12 | N84: 2.07 | O84: 2.44 | P84: 1.17 | Q84: 1.51 | R84: 0.87 | S84: 1.14 | T84: 0.76 | U84: 0.68 | V84: 2.85 | W84: 5.08 | X84: 1.14 | Y84: 1.14 | Z84: 0.85 | AA84: 1.32 | AB84: 0.55 | AC84: 0.14 | AD84: 0.85 | AE84: 1.25 | AF84: 0.62 | AG84: 0.37 | AH84: 0.19 | AI84: 0.31 | AJ84: 0.16 | AK84: 1.88 | AL84: 0.14 | AM84: 0.09 | AN84: 0.26 | AO84: 0.29 | AP84: 0.01 | AQ84: 2.71 | AR84: 0.39 | AS84: 0.19 | AT84: 0.9
B85: 80 | C85: 0.086 | D85: 0.028 | E85: 0.086 | F85: 0.028 | G85: 1.48 | H85: 0.13 | I85: 0.08 | J85: 0.6 | K85: 1.18 | L85: 1.3 | M85: 1.12 | N85: 2.07 | O85: 2.44 | P85: 1.17 | Q85: 1.51 | R85: 0.87 | S85: 1.14 | T85: 0.76 | U85: 0.68 | V85: 2.85 | W85: 5.08 | X85: 1.14 | Y85: 1.14 | Z85: 0.85 | AA85: 1.32 | AB85: 0.55 | AC85: 0.14 | AD85: 0.85 | AE85: 1.25 | AF85: 0.62 | AG85: 0.37 | AH85: 0.19 | AI85: 0.31 | AJ85: 0.16 | AK85: 1.88 | AL85: 0.14 | AM85: 0.09 | AN85: 0.26 | AO85: 0.29 | AP85: 0.01 | AQ85: 2.71 | AR85: 0.39 | AS85: 0.19 | AT85: 0.9
B86: 81 | C86: 0.086 | D86: 0.028 | E86: 0.086 | F86: 0.028 | G86: 1.48 | H86: 0.13 | I86: 0.08 | J86: 0.6 | K86: 1.18 | L86: 1.3 | M86: 1.12 | N86: 2.07 | O86: 2.44 | P86: 1.17 | Q86: 1.51 | R86: 0.87 | S86: 1.14 | T86: 0.76 | U86: 0.68 | V86: 2.85 | W86: 5.08 | X86: 1.14 | Y86: 1.14 | Z86: 0.85 | AA86: 1.32 | AB86: 0.55 | AC86: 0.14 | AD86: 0.85 | AE86: 1.25 | AF86: 0.62 | AG86: 0.37 | AH86: 0.19 | AI86: 0.31 | AJ86: 0.16 | AK86: 1.88 | AL86: 0.14 | AM86: 0.09 | AN86: 0.26 | AO86: 0.29 | AP86: 0.01 | AQ86: 2.71 | AR86: 0.39 | AS86: 0.19 | AT86: 0.9
B87: 82 | C87: 0.086 | D87: 0.028 | E87: 0.086 | F87: 0.028 | G87: 1.48 | H87: 0.13 | I87: 0.08 | J87: 0.6 | K87: 1.18 | L87: 1.3 | M87: 1.12 | N87: 2.07 | O87: 2.44 | P87: 1.17 | Q87: 1.51 | R87: 0.87 | S87: 1.14 | T87: 0.76 | U87: 0.68 | V87: 2.85 | W87: 5.08 | X87: 1.14 | Y87: 1.14 | Z87: 0.85 | AA87: 1.32 | AB87: 0.55 | AC87: 0.14 | AD87: 0.85 | AE87: 1.25 | AF87: 0.62 | AG87: 0.37 | AH87: 0.19 | AI87: 0.31 | AJ87: 0.16 | AK87: 1.88 | AL87: 0.14 | AM87: 0.09 | AN87: 0.26 | AO87: 0.29 | AP87: 0.01 | AQ87: 2.71 | AR87: 0.39 | AS87: 0.19 | AT87: 0.9
B88: 83 | C88: 0.086 | D88: 0.028 | E88: 0.086 | F88: 0.028 | G88: 1.48 | H88: 0.13 | I88: 0.08 | J88: 0.6 | K88: 1.18 | L88: 1.3 | M88: 1.12 | N88: 2.07 | O88: 2.44 | P88: 1.17 | Q88: 1.51 | R88: 0.87 | S88: 1.14 | T88: 0.76 | U88: 0.68 | V88: 2.85 | W88: 5.08 | X88: 1.14 | Y88: 1.14 | Z88: 0.85 | AA88: 1.32 | AB88: 0.55 | AC88: 0.14 | AD88: 0.85 | AE88: 1.25 | AF88: 0.62 | AG88: 0.37 | AH88: 0.19 | AI88: 0.31 | AJ88: 0.16 | AK88: 1.88 | AL88: 0.14 | AM88: 0.09 | AN88: 0.26 | AO88: 0.29 | AP88: 0.01 | AQ88: 2.71 | AR88: 0.39 | AS88: 0.19 | AT88: 0.9
B89: 84 | C89: 0.086 | D89: 0.028 | E89: 0.086 | F89: 0.028 | G89: 1.48 | H89: 0.13 | I89: 0.08 | J89: 0.6 | K89: 1.18 | L89: 1.3 | M89: 1.12 | N89: 2.07 | O89: 2.44 | P89: 1.17 | Q89: 1.51 | R89: 0.87 | S89: 1.14 | T89: 0.76 | U89: 0.68 | V89: 2.85 | W89: 5.08 | X89: 1.14 | Y89: 1.14 | Z89: 0.85 | AA89: 1.32 | AB89: 0.55 | AC89: 0.14 | AD89: 0.85 | AE89: 1.25 | AF89: 0.62 | AG89: 0.37 | AH89: 0.19 | AI89: 0.31 | AJ89: 0.16 | AK89: 1.88 | AL89: 0.14 | AM89: 0.09 | AN89: 0.26 | AO89: 0.29 | AP89: 0.01 | AQ89: 2.71 | AR89: 0.39 | AS89: 0.19 | AT89: 0.9
B90: 85 | C90: 0.086 | D90: 0.028 | E90: 0.086 | F90: 0.028 | G90: 1.48 | H90: 0.13 | I90: 0.08 | J90: 0.6 | K90: 1.18 | L90: 1.3 | M90: 1.12 | N90: 2.07 | O90: 2.44 | P90: 1.17 | Q90: 1.51 | R90: 0.87 | S90: 1.14 | T90: 0.76 | U90: 0.68 | V90: 2.85 | W90: 5.08 | X90: 1.14 | Y90: 1.14 | Z90: 0.85 | AA90: 1.32 | AB90: 0.55 | AC90: 0.14 | AD90: 0.85 | AE90: 1.25 | AF90: 0.62 | AG90: 0.37 | AH90: 0.19 | AI90: 0.31 | AJ90: 0.16 | AK90: 1.88 | AL90: 0.14 | AM90: 0.09 | AN90: 0.26 | AO90: 0.29 | AP90: 0.01 | AQ90: 2.71 | AR90: 0.39 | AS90: 0.19 | AT90: 0.9
B91: 86 | C91: 0.086 | D91: 0.028 | E91: 0.086 | F91: 0.028 | G91: 1.48 | H91: 0.13 | I91: 0.08 | J91: 0.6 | K91: 1.18 | L91: 1.3 | M91: 1.12 | N91: 2.07 | O91: 2.44 | P91: 1.17 | Q91: 1.51 | R91: 0.87 | S91: 1.14 | T91: 0.76 | U91: 0.68 | V91: 2.85 | W91: 5.08 | X91: 1.14 | Y91: 1.14 | Z91: 0.85 | AA91: 1.32 | AB91: 0.55 | AC91: 0.14 | AD91: 0.85 | AE91: 1.25 | AF91: 0.62 | AG91: 0.37 | AH91: 0.19 | AI91: 0.31 | AJ91: 0.16 | AK91: 1.88 | AL91: 0.14 | AM91: 0.09 | AN91: 0.26 | AO91: 0.29 | AP91: 0.01 | AQ91: 2.71 | AR91: 0.39 | AS91: 0.19 | AT91: 0.9
B92: 87 | C92: 0.086 | D92: 0.028 | E92: 0.086 | F92: 0.028 | G92: 1.48 | H92: 0.13 | I92: 0.08 | J92: 0.6 | K92: 1.18 | L92: 1.3 | M92: 1.12 | N92: 2.07 | O92: 2.44 | P92: 1.17 | Q92: 1.51 | R92: 0.87 | S92: 1.14 | T92: 0.76 | U92: 0.68 | V92: 2.85 | W92: 5.08 | X92: 1.14 | Y92: 1.14 | Z92: 0.85 | AA92: 1.32 | AB92: 0.55 | AC92: 0.14 | AD92: 0.85 | AE92: 1.25 | AF92: 0.62 | AG92: 0.37 | AH92: 0.19 | AI92: 0.31 | AJ92: 0.16 | AK92: 1.88 | AL92: 0.14 | AM92: 0.09 | AN92: 0.26 | AO92: 0.29 | AP92: 0.01 | AQ92: 2.71 | AR92: 0.39 | AS92: 0.19 | AT92: 0.9
B93: 88 | C93: 0.086 | D93: 0.028 | E93: 0.086 | F93: 0.028 | G93: 1.48 | H93: 0.13 | I93: 0.08 | J93: 0.6 | K93: 1.18 | L93: 1.3 | M93: 1.12 | N93: 2.07 | O93: 2.44 | P93: 1.17 | Q93: 1.51 | R93: 0.87 | S93: 1.14 | T93: 0.76 | U93: 0.68 | V93: 2.85 | W93: 5.08 | X93: 1.14 | Y93: 1.14 | Z93: 0.85 | AA93: 1.32 | AB93: 0.55 | AC93: 0.14 | AD93: 0.85 | AE93: 1.25 | AF93: 0.62 | AG93: 0.37 | AH93: 0.19 | AI93: 0.31 | AJ93: 0.16 | AK93: 1.88 | AL93: 0.14 | AM93: 0.09 | AN93: 0.26 | AO93: 0.29 | AP93: 0.01 | AQ93: 2.71 | AR93: 0.39 | AS93: 0.19 | AT93: 0.9
B94: 89 | C94: 0.086 | D94: 0.028 | E94: 0.086 | F94: 0.028 | G94: 1.48 | H94: 0.13 | I94: 0.08 | J94: 0.6 | K94: 1.18 | L94: 1.3 | M94: 1.12 | N94: 2.07 | O94: 2.44 | P94: 1.17 | Q94: 1.51 | R94: 0.87 | S94: 1.14 | T94: 0.76 | U94: 0.68 | V94: 2.85 | W94: 5.08 | X94: 1.14 | Y94: 1.14 | Z94: 0.85 | AA94: 1.32 | AB94: 0.55 | AC94: 0.14 | AD94: 0.85 | AE94: 1.25 | AF94: 0.62 | AG94: 0.37 | AH94: 0.19 | AI94: 0.31 | AJ94: 0.16 | AK94: 1.88 | AL94: 0.14 | AM94: 0.09 | AN94: 0.26 | AO94: 0.29 | AP94: 0.01 | AQ94: 2.71 | AR94: 0.39 | AS94: 0.19 | AT94: 0.9
B95: 90 | C95: 0.086 | D95: 0.028 | E95: 0.086 | F95: 0.028 | G95: 1.48 | H95: 0.13 | I95: 0.08 | J95: 0.6 | K95: 1.18 | L95: 1.3 | M95: 1.12 | N95: 2.07 | O95: 2.44 | P95: 1.17 | Q95: 1.51 | R95: 0.87 | S95: 1.14 | T95: 0.76 | U95: 0.68 | V95: 2.85 | W95: 5.08 | X95: 1.14 | Y95: 1.14 | Z95: 0.85 | AA95: 1.32 | AB95: 0.55 | AC95: 0.14 | AD95: 0.85 | AE95: 1.25 | AF95: 0.62 | AG95: 0.37 | AH95: 0.19 | AI95: 0.31 | AJ95: 0.16 | AK95: 1.88 | AL95: 0.14 | AM95: 0.09 | AN95: 0.26 | AO95: 0.29 | AP95: 0.01 | AQ95: 2.71 | AR95: 0.39 | AS95: 0.19 | AT95: 0.9
B96: 91 | C96: 0.086 | D96: 0.028 | E96: 0.086 | F96: 0.028 | G96: 1.48 | H96: 0.13 | I96: 0.08 | J96: 0.6 | K96: 1.18 | L96: 1.3 | M96: 1.12 | N96: 2.07 | O96: 2.44 | P96: 1.17 | Q96: 1.51 | R96: 0.87 | S96: 1.14 | T96: 0.76 | U96: 0.68 | V96: 2.85 | W96: 5.08 | X96: 1.14 | Y96: 1.14 | Z96: 0.85 | AA96: 1.32 | AB96: 0.55 | AC96: 0.14 | AD96: 0.85 | AE96: 1.25 | AF96: 0.62 | AG96: 0.37 | AH96: 0.19 | AI96: 0.31 | AJ96: 0.16 | AK96: 1.88 | AL96: 0.14 | AM96: 0.09 | AN96: 0.26 | AO96: 0.29 | AP96: 0.01 | AQ96: 2.71 | AR96: 0.39 | AS96: 0.19 | AT96: 0.9
B97: 92 | C97: 0.086 | D97: 0.028 | E97: 0.086 | F97: 0.028 | G97: 1.48 | H97: 0.13 | I97: 0.08 | J97: 0.6 | K97: 1.18 | L97: 1.3 | M97: 1.12 | N97: 2.07 | O97: 2.44 | P97: 1.17 | Q97: 1.51 | R97: 0.87 | S97: 1.14 | T97: 0.76 | U97: 0.68 | V97: 2.85 | W97: 5.08 | X97: 1.14 | Y97: 1.14 | Z97: 0.85 | AA97: 1.32 | AB97: 0.55 | AC97: 0.14 | AD97: 0.85 | AE97: 1.25 | AF97: 0.62 | AG97: 0.37 | AH97: 0.19 | AI97: 0.31 | AJ97: 0.16 | AK97: 1.88 | AL97: 0.14 | AM97: 0.09 | AN97: 0.26 | AO97: 0.29 | AP97: 0.01 | AQ97: 2.71 | AR97: 0.39 | AS97: 0.19 | AT97: 0.9
B98: 93 | C98: 0.086 | D98: 0.028 | E98: 0.086 | F98: 0.028 | G98: 1.48 | H98: 0.13 | I98: 0.08 | J98: 0.6 | K98: 1.18 | L98: 1.3 | M98: 1.12 | N98: 2.07 | O98: 2.44 | P98: 1.17 | Q98: 1.51 | R98: 0.87 | S98: 1.14 | T98: 0.76 | U98: 0.68 | V98: 2.85 | W98: 5.08 | X98: 1.14 | Y98: 1.14 | Z98: 0.85 | AA98: 1.32 | AB98: 0.55 | AC98: 0.14 | AD98: 0.85 | AE98: 1.25 | AF98: 0.62 | AG98: 0.37 | AH98: 0.19 | AI98: 0.31 | AJ98: 0.16 | AK98: 1.88 | AL98: 0.14 | AM98: 0.09 | AN98: 0.26 | AO98: 0.29 | AP98: 0.01 | AQ98: 2.71 | AR98: 0.39 | AS98: 0.19 | AT98: 0.9
B99: 94 | C99: 0.086 | D99: 0.028 | E99: 0.086 | F99: 0.028 | G99: 1.48 | H99: 0.13 | I99: 0.08 | J99: 0.6 | K99: 1.18 | L99: 1.3 | M99: 1.12 | N99: 2.07 | O99: 2.44 | P99: 1.17 | Q99: 1.51 | R99: 0.87 | S99: 1.14 | T99: 0.76 | U99: 0.68 | V99: 2.85 | W99: 5.08 | X99: 1.14 | Y99: 1.14 | Z99: 0.85 | AA99: 1.32 | AB99: 0.55 | AC99: 0.14 | AD99: 0.85 | AE99: 1.25 | AF99: 0.62 | AG99: 0.37 | AH99: 0.19 | AI99: 0.31 | AJ99: 0.16 | AK99: 1.88 | AL99: 0.14 | AM99: 0.09 | AN99: 0.26 | AO99: 0.29 | AP99: 0.01 | AQ99: 2.71 | AR99: 0.39 | AS99: 0.19 | AT99: 0.9
B100: 95 | C100: 0.086 | D100: 0.028 | E100: 0.086 | F100: 0.028 | G100: 1.48 | H100: 0.13 | I100: 0.08 | J100: 0.6 | K100: 1.18 | L100: 1.3 | M100: 1.12 | N100: 2.07 | O100: 2.44 | P100: 1.17 | Q100: 1.51 | R100: 0.87 | S100: 1.14 | T100: 0.76 | U100: 0.68 | V100: 2.85 | W100: 5.08 | X100: 1.14 | Y100: 1.14 | Z100: 0.85 | AA100: 1.32 | AB100: 0.55 | AC100: 0.14 | AD100: 0.85 | AE100: 1.25 | AF100: 0.62 | AG100: 0.37 | AH100: 0.19 | AI100: 0.31 | AJ100: 0.16 | AK100: 1.88 | AL100: 0.14 | AM100: 0.09 | AN100: 0.26 | AO100: 0.29 | AP100: 0.01 | AQ100: 2.71 | AR100: 0.39 | AS100: 0.19 | AT100: 0.9
B101: 96 | C101: 0.086 | D101: 0.028 | E101: 0.086 | F101: 0.028 | G101: 1.48 | H101: 0.13 | I101: 0.08 | J101: 0.6 | K101: 1.18 | L101: 1.3 | M101: 1.12 | N101: 2.07 | O101: 2.44 | P101: 1.17 | Q101: 1.51 | R101: 0.87 | S101: 1.14 | T101: 0.76 | U101: 0.68 | V101: 2.85 | W101: 5.08 | X101: 1.14 | Y101: 1.14 | Z101: 0.85 | AA101: 1.32 | AB101: 0.55 | AC101: 0.14 | AD101: 0.85 | AE101: 1.25 | AF101: 0.62 | AG101: 0.37 | AH101: 0.19 | AI101: 0.31 | AJ101: 0.16 | AK101: 1.88 | AL101: 0.14 | AM101: 0.09 | AN101: 0.26 | AO101: 0.29 | AP101: 0.01 | AQ101: 2.71 | AR101: 0.39 | AS101: 0.19 | AT101: 0.9
B102: 97 | C102: 0.086 | D102: 0.028 | E102: 0.086 | F102: 0.028 | G102: 1.48 | H102: 0.13 | I102: 0.08 | J102: 0.6 | K102: 1.18 | L102: 1.3 | M102: 1.12 | N102: 2.07 | O102: 2.44 | P102: 1.17 | Q102: 1.51 | R102: 0.87 | S102: 1.14 | T102: 0.76 | U102: 0.68 | V102: 2.85 | W102: 5.08 | X102: 1.14 | Y102: 1.14 | Z102: 0.85 | AA102: 1.32 | AB102: 0.55 | AC102: 0.14 | AD102: 0.85 | AE102: 1.25 | AF102: 0.62 | AG102: 0.37 | AH102: 0.19 | AI102: 0.31 | AJ102: 0.16 | AK102: 1.88 | AL102: 0.14 | AM102: 0.09 | AN102: 0.26 | AO102: 0.29 | AP102: 0.01 | AQ102: 2.71 | AR102: 0.39 | AS102: 0.19 | AT102: 0.9
B103: 98 | C103: 0.086 | D103: 0.028 | E103: 0.086 | F103: 0.028 | G103: 1.48 | H103: 0.13 | I103: 0.08 | J103: 0.6 | K103: 1.18 | L103: 1.3 | M103: 1.12 | N103: 2.07 | O103: 2.44 | P103: 1.17 | Q103: 1.51 | R103: 0.87 | S103: 1.14 | T103: 0.76 | U103: 0.68 | V103: 2.85 | W103: 5.08 | X103: 1.14 | Y103: 1.14 | Z103: 0.85 | AA103: 1.32 | AB103: 0.55 | AC103: 0.14 | AD103: 0.85 | AE103: 1.25 | AF103: 0.62 | AG103: 0.37 | AH103: 0.19 | AI103: 0.31 | AJ103: 0.16 | AK103: 1.88 | AL103: 0.14 | AM103: 0.09 | AN103: 0.26 | AO103: 0.29 | AP103: 0.01 | AQ103: 2.71 | AR103: 0.39 | AS103: 0.19 | AT103: 0.9
B104: 99 | C104: 0.086 | D104: 0.028 | E104: 0.086 | F104: 0.028 | G104: 1.48 | H104: 0.13 | I104: 0.08 | J104: 0.6 | K104: 1.18 | L104: 1.3 | M104: 1.12 | N104: 2.07 | O104: 2.44 | P104: 1.17 | Q104: 1.51 | R104: 0.87 | S104: 1.14 | T104: 0.76 | U104: 0.68 | V104: 2.85 | W104: 5.08 | X104: 1.14 | Y104: 1.14 | Z104: 0.85 | AA104: 1.32 | AB104: 0.55 | AC104: 0.14 | AD104: 0.85 | AE104: 1.25 | AF104: 0.62 | AG104: 0.37 | AH104: 0.19 | AI104: 0.31 | AJ104: 0.16 | AK104: 1.88 | AL104: 0.14 | AM104: 0.09 | AN104: 0.26 | AO104: 0.29 | AP104: 0.01 | AQ104: 2.71 | AR104: 0.39 | AS104: 0.19 | AT104: 0.9
B105: 100 | C105: 0.086 | D105: 0.028 | E105: 0.086 | F105: 0.028 | G105: 1.48 | H105: 0.13 | I105: 0.08 | J105: 0.6 | K105: 1.18 | L105: 1.3 | M105: 1.12 | N105: 2.07 | O105: 2.44 | P105: 1.17 | Q105: 1.51 | R105: 0.87 | S105: 1.14 | T105: 0.76 | U105: 0.68 | V105: 2.85 | W105: 5.08 | X105: 1.14 | Y105: 1.14 | Z105: 0.85 | AA105: 1.32 | AB105: 0.55 | AC105: 0.14 | AD105: 0.85 | AE105: 1.25 | AF105: 0.62 | AG105: 0.37 | AH105: 0.19 | AI105: 0.31 | AJ105: 0.16 | AK105: 1.88 | AL105: 0.14 | AM105: 0.09 | AN105: 0.26 | AO105: 0.29 | AP105: 0.01 | AQ105: 2.71 | AR105: 0.39 | AS105: 0.19 | AT105: 0.9
B106: 101 | C106: 0.086 | D106: 0.028 | E106: 0.086 | F106: 0.028 | G106: 1.48 | H106: 0.13 | I106: 0.08 | J106: 0.6 | K106: 1.18 | L106: 1.3 | M106: 1.12 | N106: 2.07 | O106: 2.44 | P106: 1.17 | Q106: 1.51 | R106: 0.87 | S106: 1.14 | T106: 0.76 | U106: 0.68 | V106: 2.85 | W106: 5.08 | X106: 1.14 | Y106: 1.14 | Z106: 0.85 | AA106: 1.32 | AB106: 0.55 | AC106: 0.14 | AD106: 0.85 | AE106: 1.25 | AF106: 0.62 | AG106: 0.37 | AH106: 0.19 | AI106: 0.31 | AJ106: 0.16 | AK106: 1.88 | AL106: 0.14 | AM106: 0.09 | AN106: 0.26 | AO106: 0.29 | AP106: 0.01 | AQ106: 2.71 | AR106: 0.39 | AS106: 0.19 | AT106: 0.9
B107: 102 | C107: 0.086 | D107: 0.028 | E107: 0.086 | F107: 0.028 | G107: 1.48 | H107: 0.13 | I107: 0.08 | J107: 0.6 | K107: 1.18 | L107: 1.3 | M107: 1.12 | N107: 2.07 | O107: 2.44 | P107: 1.17 | Q107: 1.51 | R107: 0.87 | S107: 1.14 | T107: 0.76 | U107: 0.68 | V107: 2.85 | W107: 5.08 | X107: 1.14 | Y107: 1.14 | Z107: 0.85 | AA107: 1.32 | AB107: 0.55 | AC107: 0.14 | AD107: 0.85 | AE107: 1.25 | AF107: 0.62 | AG107: 0.37 | AH107: 0.19 | AI107: 0.31 | AJ107: 0.16 | AK107: 1.88 | AL107: 0.14 | AM107: 0.09 | AN107: 0.26 | AO107: 0.29 | AP107: 0.01 | AQ107: 2.71 | AR107: 0.39 | AS107: 0.19 | AT107: 0.9
B108: 103 | C108: 0.086 | D108: 0.028 | E108: 0.086 | F108: 0.028 | G108: 1.48 | H108: 0.13 | I108: 0.08 | J108: 0.6 | K108: 1.18 | L108: 1.3 | M108: 1.12 | N108: 2.07 | O108: 2.44 | P108: 1.17 | Q108: 1.51 | R108: 0.87 | S108: 1.14 | T108: 0.76 | U108: 0.68 | V108: 2.85 | W108: 5.08 | X108: 1.14 | Y108: 1.14 | Z108: 0.85 | AA108: 1.32 | AB108: 0.55 | AC108: 0.14 | AD108: 0.85 | AE108: 1.25 | AF108: 0.62 | AG108: 0.37 | AH108: 0.19 | AI108: 0.31 | AJ108: 0.16 | AK108: 1.88 | AL108: 0.14 | AM108: 0.09 | AN108: 0.26 | AO108: 0.29 | AP108: 0.01 | AQ108: 2.71 | AR108: 0.39 | AS108: 0.19 | AT108: 0.9
B109: 104 | C109: 0.086 | D109: 0.028 | E109: 0.086 | F109: 0.028 | G109: 1.48 | H109: 0.13 | I109: 0.08 | J109: 0.6 | K109: 1.18 | L109: 1.3 | M109: 1.12 | N109: 2.07 | O109: 2.44 | P109: 1.17 | Q109: 1.51 | R109: 0.87 | S109: 1.14 | T109: 0.76 | U109: 0.68 | V109: 2.85 | W109: 5.08 | X109: 1.14 | Y109: 1.14 | Z109: 0.85 | AA109: 1.32 | AB109: 0.55 | AC109: 0.14 | AD109: 0.85 | AE109: 1.25 | AF109: 0.62 | AG109: 0.37 | AH109: 0.19 | AI109: 0.31 | AJ109: 0.16 | AK109: 1.88 | AL109: 0.14 | AM109: 0.09 | AN109: 0.26 | AO109: 0.29 | AP109: 0.01 | AQ109: 2.71 | AR109: 0.39 | AS109: 0.19 | AT109: 0.9
B110: 105 | C110: 0.086 | D110: 0.028 | E110: 0.086 | F110: 0.028 | G110: 1.48 | H110: 0.13 | I110: 0.08 | J110: 0.6 | K110: 1.18 | L110: 1.3 | M110: 1.12 | N110: 2.07 | O110: 2.44 | P110: 1.17 | Q110: 1.51 | R110: 0.87 | S110: 1.14 | T110: 0.76 | U110: 0.68 | V110: 2.85 | W110: 5.08 | X110: 1.14 | Y110: 1.14 | Z110: 0.85 | AA110: 1.32 | AB110: 0.55 | AC110: 0.14 | AD110: 0.85 | AE110: 1.25 | AF110: 0.62 | AG110: 0.37 | AH110: 0.19 | AI110: 0.31 | AJ110: 0.16 | AK110: 1.88 | AL110: 0.14 | AM110: 0.09 | AN110: 0.26 | AO110: 0.29 | AP110: 0.01 | AQ110: 2.71 | AR110: 0.39 | AS110: 0.19 | AT110: 0.9
B111: 106 | C111: 0.086 | D111: 0.028 | E111: 0.086 | F111: 0.028 | G111: 1.48 | H111: 0.13 | I111: 0.08 | J111: 0.6 | K111: 1.18 | L111: 1.3 | M111: 1.12 | N111: 2.07 | O111: 2.44 | P111: 1.17 | Q111: 1.51 | R111: 0.87 | S111: 1.14 | T111: 0.76 | U111: 0.68 | V111: 2.85 | W111: 5.08 | X111: 1.14 | Y111: 1.14 | Z111: 0.85 | AA111: 1.32 | AB111: 0.55 | AC111: 0.14 | AD111: 0.85 | AE111: 1.25 | AF111: 0.62 | AG111: 0.37 | AH111: 0.19 | AI111: 0.31 | AJ111: 0.16 | AK111: 1.88 | AL111: 0.14 | AM111: 0.09 | AN111: 0.26 | AO111: 0.29 | AP111: 0.01 | AQ111: 2.71 | AR111: 0.39 | AS111: 0.19 | AT111: 0.9
B112: 107 | C112: 0.086 | D112: 0.028 | E112: 0.086 | F112: 0.028 | G112: 1.48 | H112: 0.13 | I112: 0.08 | J112: 0.6 | K112: 1.18 | L112: 1.3 | M112: 1.12 | N112: 2.07 | O112: 2.44 | P112: 1.17 | Q112: 1.51 | R112: 0.87 | S112: 1.14 | T112: 0.76 | U112: 0.68 | V112: 2.85 | W112: 5.08 | X112: 1.14 | Y112: 1.14 | Z112: 0.85 | AA112: 1.32 | AB112: 0.55 | AC112: 0.14 | AD112: 0.85 | AE112: 1.25 | AF112: 0.62 | AG112: 0.37 | AH112: 0.19 | AI112: 0.31 | AJ112: 0.16 | AK112: 1.88 | AL112: 0.14 | AM112: 0.09 | AN112: 0.26 | AO112: 0.29 | AP112: 0.01 | AQ112: 2.71 | AR112: 0.39 | AS112: 0.19 | AT112: 0.9
B113: 108 | C113: 0.086 | D113: 0.028 | E113: 0.086 | F113: 0.028 | G113: 1.48 | H113: 0.13 | I113: 0.08 | J113: 0.6 | K113: 1.18 | L113: 1.3 | M113: 1.12 | N113: 2.07 | O113: 2.44 | P113: 1.17 | Q113: 1.51 | R113: 0.87 | S113: 1.14 | T113: 0.76 | U113: 0.68 | V113: 2.85 | W113: 5.08 | X113: 1.14 | Y113: 1.14 | Z113: 0.85 | AA113: 1.32 | AB113: 0.55 | AC113: 0.14 | AD113: 0.85 | AE113: 1.25 | AF113: 0.62 | AG113: 0.37 | AH113: 0.19 | AI113: 0.31 | AJ113: 0.16 | AK113: 1.88 | AL113: 0.14 | AM113: 0.09 | AN113: 0.26 | AO113: 0.29 | AP113: 0.01 | AQ113: 2.71 | AR113: 0.39 | AS113: 0.19 | AT113: 0.9
B114: 109 | C114: 0.086 | D114: 0.028 | E114: 0.086 | F114: 0.028 | G114: 1.48 | H114: 0.13 | I114: 0.08 | J114: 0.6 | K114: 1.18 | L114: 1.3 | M114: 1.12 | N114: 2.07 | O114: 2.44 | P114: 1.17 | Q114: 1.51 | R114: 0.87 | S114: 1.14 | T114: 0.76 | U114: 0.68 | V114: 2.85 | W114: 5.08 | X114: 1.14 | Y114: 1.14 | Z114: 0.85 | AA114: 1.32 | AB114: 0.55 | AC114: 0.14 | AD114: 0.85 | AE114: 1.25 | AF114: 0.62 | AG114: 0.37 | AH114: 0.19 | AI114: 0.31 | AJ114: 0.16 | AK114: 1.88 | AL114: 0.14 | AM114: 0.09 | AN114: 0.26 | AO114: 0.29 | AP114: 0.01 | AQ114: 2.71 | AR114: 0.39 | AS114: 0.19 | AT114: 0.9
B115: 110 | C115: 0.086 | D115: 0.028 | E115: 0.086 | F115: 0.028 | G115: 1.48 | H115: 0.13 | I115: 0.08 | J115: 0.6 | K115: 1.18 | L115: 1.3 | M115: 1.12 | N115: 2.07 | O115: 2.44 | P115: 1.17 | Q115: 1.51 | R115: 0.87 | S115: 1.14 | T115: 0.76 | U115: 0.68 | V115: 2.85 | W115: 5.08 | X115: 1.14 | Y115: 1.14 | Z115: 0.85 | AA115: 1.32 | AB115: 0.55 | AC115: 0.14 | AD115: 0.85 | AE115: 1.25 | AF115: 0.62 | AG115: 0.37 | AH115: 0.19 | AI115: 0.31 | AJ115: 0.16 | AK115: 1.88 | AL115: 0.14 | AM115: 0.09 | AN115: 0.26 | AO115: 0.29 | AP115: 0.01 | AQ115: 2.71 | AR115: 0.39 | AS115: 0.19 | AT115: 0.9
B116: 111 | C116: 0.086 | D116: 0.028 | E116: 0.086 | F116: 0.028 | G116: 1.48 | H116: 0.13 | I116: 0.08 | J116: 0.6 | K116: 1.18 | L116: 1.3 | M116: 1.12 | N116: 2.07 | O116: 2.44 | P116: 1.17 | Q116: 1.51 | R116: 0.87 | S116: 1.14 | T116: 0.76 | U116: 0.68 | V116: 2.85 | W116: 5.08 | X116: 1.14 | Y116: 1.14 | Z116: 0.85 | AA116: 1.32 | AB116: 0.55 | AC116: 0.14 | AD116: 0.85 | AE116: 1.25 | AF116: 0.62 | AG116: 0.37 | AH116: 0.19 | AI116: 0.31 | AJ116: 0.16 | AK116: 1.88 | AL116: 0.14 | AM116: 0.09 | AN116: 0.26 | AO116: 0.29 | AP116: 0.01 | AQ116: 2.71 | AR116: 0.39 | AS116: 0.19 | AT116: 0.9
B117: 112 | C117: 0.086 | D117: 0.028 | E117: 0.086 | F117: 0.028 | G117: 1.48 | H117: 0.13 | I117: 0.08 | J117: 0.6 | K117: 1.18 | L117: 1.3 | M117: 1.12 | N117: 2.07 | O117: 2.44 | P117: 1.17 | Q117: 1.51 | R117: 0.87 | S117: 1.14 | T117: 0.76 | U117: 0.68 | V117: 2.85 | W117: 5.08 | X117: 1.14 | Y117: 1.14 | Z117: 0.85 | AA117: 1.32 | AB117: 0.55 | AC117: 0.14 | AD117: 0.85 | AE117: 1.25 | AF117: 0.62 | AG117: 0.37 | AH117: 0.19 | AI117: 0.31 | AJ117: 0.16 | AK117: 1.88 | AL117: 0.14 | AM117: 0.09 | AN117: 0.26 | AO117: 0.29 | AP117: 0.01 | AQ117: 2.71 | AR117: 0.39 | AS117: 0.19 | AT117: 0.9
B118: 113 | C118: 0.086 | D118: 0.028 | E118: 0.086 | F118: 0.028 | G118: 1.48 | H118: 0.13 | I118: 0.08 | J118: 0.6 | K118: 1.18 | L118: 1.3 | M118: 1.12 | N118: 2.07 | O118: 2.44 | P118: 1.17 | Q118: 1.51 | R118: 0.87 | S118: 1.14 | T118: 0.76 | U118: 0.68 | V118: 2.85 | W118: 5.08 | X118: 1.14 | Y118: 1.14 | Z118: 0.85 | AA118: 1.32 | AB118: 0.55 | AC118: 0.14 | AD118: 0.85 | AE118: 1.25 | AF118: 0.62 | AG118: 0.37 | AH118: 0.19 | AI118: 0.31 | AJ118: 0.16 | AK118: 1.88 | AL118: 0.14 | AM118: 0.09 | AN118: 0.26 | AO118: 0.29 | AP118: 0.01 | AQ118: 2.71 | AR118: 0.39 | AS118: 0.19 | AT118: 0.9
B119: 114 | C119: 0.086 | D119: 0.028 | E119: 0.086 | F119: 0.028 | G119: 1.48 | H119: 0.13 | I119: 0.08 | J119: 0.6 | K119: 1.18 | L119: 1.3 | M119: 1.12 | N119: 2.07 | O119: 2.44 | P119: 1.17 | Q119: 1.51 | R119: 0.87 | S119: 1.14 | T119: 0.76 | U119: 0.68 | V119: 2.85 | W119: 5.08 | X119: 1.14 | Y119: 1.14 | Z119: 0.85 | AA119: 1.32 | AB119: 0.55 | AC119: 0.14 | AD119: 0.85 | AE119: 1.25 | AF119: 0.62 | AG119: 0.37 | AH119: 0.19 | AI119: 0.31 | AJ119: 0.16 | AK119: 1.88 | AL119: 0.14 | AM119: 0.09 | AN119: 0.26 | AO119: 0.29 | AP119: 0.01 | AQ119: 2.71 | AR119: 0.39 | AS119: 0.19 | AT119: 0.9
B120: 115 | C120: 0.086 | D120: 0.028 | E120: 0.086 | F120: 0.028 | G120: 1.48 | H120: 0.13 | I120: 0.08 | J120: 0.6 | K120: 1.18 | L120: 1.3 | M120: 1.12 | N120: 2.07 | O120: 2.44 | P120: 1.17 | Q120: 1.51 | R120: 0.87 | S120: 1.14 | T120: 0.76 | U120: 0.68 | V120: 2.85 | W120: 5.08 | X120: 1.14 | Y120: 1.14 | Z120: 0.85 | AA120: 1.32 | AB120: 0.55 | AC120: 0.14 | AD120: 0.85 | AE120: 1.25 | AF120: 0.62 | AG120: 0.37 | AH120: 0.19 | AI120: 0.31 | AJ120: 0.16 | AK120: 1.88 | AL120: 0.14 | AM120: 0.09 | AN120: 0.26 | AO120: 0.29 | AP120: 0.01 | AQ120: 2.71 | AR120: 0.39 | AS120: 0.19 | AT120: 0.9
B121: 116 | C121: 0.086 | D121: 0.028 | E121: 0.086 | F121: 0.028 | G121: 1.48 | H121: 0.13 | I121: 0.08 | J121: 0.6 | K121: 1.18 | L121: 1.3 | M121: 1.12 | N121: 2.07 | O121: 2.44 | P121: 1.17 | Q121: 1.51 | R121: 0.87 | S121: 1.14 | T121: 0.76 | U121: 0.68 | V121: 2.85 | W121: 5.08 | X121: 1.14 | Y121: 1.14 | Z121: 0.85 | AA121: 1.32 | AB121: 0.55 | AC121: 0.14 | AD121: 0.85 | AE121: 1.25 | AF121: 0.62 | AG121: 0.37 | AH121: 0.19 | AI121: 0.31 | AJ121: 0.16 | AK121: 1.88 | AL121: 0.14 | AM121: 0.09 | AN121: 0.26 | AO121: 0.29 | AP121: 0.01 | AQ121: 2.71 | AR121: 0.39 | AS121: 0.19 | AT121: 0.9
B122: 117 | C122: 0.086 | D122: 0.028 | E122: 0.086 | F122: 0.028 | G122: 1.48 | H122: 0.13 | I122: 0.08 | J122: 0.6 | K122: 1.18 | L122: 1.3 | M122: 1.12 | N122: 2.07 | O122: 2.44 | P122: 1.17 | Q122: 1.51 | R122: 0.87 | S122: 1.14 | T122: 0.76 | U122: 0.68 | V122: 2.85 | W122: 5.08 | X122: 1.14 | Y122: 1.14 | Z122: 0.85 | AA122: 1.32 | AB122: 0.55 | AC122: 0.14 | AD122: 0.85 | AE122: 1.25 | AF122: 0.62 | AG122: 0.37 | AH122: 0.19 | AI122: 0.31 | AJ122: 0.16 | AK122: 1.88 | AL122: 0.14 | AM122: 0.09 | AN122: 0.26 | AO122: 0.29 | AP122: 0.01 | AQ122: 2.71 | AR122: 0.39 | AS122: 0.19 | AT122: 0.9
B123: 118 | C123: 0.086 | D123: 0.028 | E123: 0.086 | F123: 0.028 | G123: 1.48 | H123: 0.13 | I123: 0.08 | J123: 0.6 | K123: 1.18 | L123: 1.3 | M123: 1.12 | N123: 2.07 | O123: 2.44 | P123: 1.17 | Q123: 1.51 | R123: 0.87 | S123: 1.14 | T123: 0.76 | U123: 0.68 | V123: 2.85 | W123: 5.08 | X123: 1.14 | Y123: 1.14 | Z123: 0.85 | AA123: 1.32 | AB123: 0.55 | AC123: 0.14 | AD123: 0.85 | AE123: 1.25 | AF123: 0.62 | AG123: 0.37 | AH123: 0.19 | AI123: 0.31 | AJ123: 0.16 | AK123: 1.88 | AL123: 0.14 | AM123: 0.09 | AN123: 0.26 | AO123: 0.29 | AP123: 0.01 | AQ123: 2.71 | AR123: 0.39 | AS123: 0.19 | AT123: 0.9
B124: 119 | C124: 0.086 | D124: 0.028 | E124: 0.086 | F124: 0.028 | G124: 1.48 | H124: 0.13 | I124: 0.08 | J124: 0.6 | K124: 1.18 | L124: 1.3 | M124: 1.12 | N124: 2.07 | O124: 2.44 | P124: 1.17 | Q124: 1.51 | R124: 0.87 | S124: 1.14 | T124: 0.76 | U124: 0.68 | V124: 2.85 | W124: 5.08 | X124: 1.14 | Y124: 1.14 | Z124: 0.85 | AA124: 1.32 | AB124: 0.55 | AC124: 0.14 | AD124: 0.85 | AE124: 1.25 | AF124: 0.62 | AG124: 0.37 | AH124: 0.19 | AI124: 0.31 | AJ124: 0.16 | AK124: 1.88 | AL124: 0.14 | AM124: 0.09 | AN124: 0.26 | AO124: 0.29 | AP124: 0.01 | AQ124: 2.71 | AR124: 0.39 | AS124: 0.19 | AT124: 0.9
B125: 120 | C125: 0.086 | D125: 0.028 | E125: 0.086 | F125: 0.028 | G125: 1.48 | H125: 0.13 | I125: 0.08 | J125: 0.6 | K125: 1.18 | L125: 1.3 | M125: 1.12 | N125: 2.07 | O125: 2.44 | P125: 1.17 | Q125: 1.51 | R125: 0.87 | S125: 1.14 | T125: 0.76 | U125: 0.68 | V125: 2.85 | W125: 5.08 | X125: 1.14 | Y125: 1.14 | Z125: 0.85 | AA125: 1.32 | AB125: 0.55 | AC125: 0.14 | AD125: 0.85 | AE125: 1.25 | AF125: 0.62 | AG125: 0.37 | AH125: 0.19 | AI125: 0.31 | AJ125: 0.16 | AK125: 1.88 | AL125: 0.14 | AM125: 0.09 | AN125: 0.26 | AO125: 0.29 | AP125: 0.01 | AQ125: 2.71 | AR125: 0.39 | AS125: 0.19 | AT125: 0.9
B126: 121 | C126: 0.086 | D126: 0.028 | E126: 0.086 | F126: 0.028 | G126: 1.48 | H126: 0.13 | I126: 0.08 | J126: 0.6 | K126: 1.18 | L126: 1.3 | M126: 1.12 | N126: 2.07 | O126: 2.44 | P126: 1.17 | Q126: 1.51 | R126: 0.87 | S126: 1.14 | T126: 0.76 | U126: 0.68 | V126: 2.85 | W126: 5.08 | X126: 1.14 | Y126: 1.14 | Z126: 0.85 | AA126: 1.32 | AB126: 0.55 | AC126: 0.14 | AD126: 0.85 | AE126: 1.25 | AF126: 0.62 | AG126: 0.37 | AH126: 0.19 | AI126: 0.31 | AJ126: 0.16 | AK126: 1.88 | AL126: 0.14 | AM126: 0.09 | AN126: 0.26 | AO126: 0.29 | AP126: 0.01 | AQ126: 2.71 | AR126: 0.39 | AS126: 0.19 | AT126: 0.9
B127: 122 | C127: 0.086 | D127: 0.028 | E127: 0.086 | F127: 0.028 | G127: 1.48 | H127: 0.13 | I127: 0.08 | J127: 0.6 | K127: 1.18 | L127: 1.3 | M127: 1.12 | N127: 2.07 | O127: 2.44 | P127: 1.17 | Q127: 1.51 | R127: 0.87 | S127: 1.14 | T127: 0.76 | U127: 0.68 | V127: 2.85 | W127: 5.08 | X127: 1.14 | Y127: 1.14 | Z127: 0.85 | AA127: 1.32 | AB127: 0.55 | AC127: 0.14 | AD127: 0.85 | AE127: 1.25 | AF127: 0.62 | AG127: 0.37 | AH127: 0.19 | AI127: 0.31 | AJ127: 0.16 | AK127: 1.88 | AL127: 0.14 | AM127: 0.09 | AN127: 0.26 | AO127: 0.29 | AP127: 0.01 | AQ127: 2.71 | AR127: 0.39 | AS127: 0.19 | AT127: 0.9
B128: 123 | C128: 0.086 | D128: 0.028 | E128: 0.086 | F128: 0.028 | G128: 1.48 | H128: 0.13 | I128: 0.08 | J128: 0.6 | K128: 1.18 | L128: 1.3 | M128: 1.12 | N128: 2.07 | O128: 2.44 | P128: 1.17 | Q128: 1.51 | R128: 0.87 | S128: 1.14 | T128: 0.76 | U128: 0.68 | V128: 2.85 | W128: 5.08 | X128: 1.14 | Y128: 1.14 | Z128: 0.85 | AA128: 1.32 | AB128: 0.55 | AC128: 0.14 | AD128: 0.85 | AE128: 1.25 | AF128: 0.62 | AG128: 0.37 | AH128: 0.19 | AI128: 0.31 | AJ128: 0.16 | AK128: 1.88 | AL128: 0.14 | AM128: 0.09 | AN128: 0.26 | AO128: 0.29 | AP128: 0.01 | AQ128: 2.71 | AR128: 0.39 | AS128: 0.19 | AT128: 0.9
B129: 124 | C129: 0.086 | D129: 0.028 | E129: 0.086 | F129: 0.028 | G129: 1.48 | H129: 0.13 | I129: 0.08 | J129: 0.6 | K129: 1.18 | L129: 1.3 | M129: 1.12 | N129: 2.07 | O129: 2.44 | P129: 1.17 | Q129: 1.51 | R129: 0.87 | S129: 1.14 | T129: 0.76 | U129: 0.68 | V129: 2.85 | W129: 5.08 | X129: 1.14 | Y129: 1.14 | Z129: 0.85 | AA129: 1.32 | AB129: 0.55 | AC129: 0.14 | AD129: 0.85 | AE129: 1.25 | AF129: 0.62 | AG129: 0.37 | AH129: 0.19 | AI129: 0.31 | AJ129: 0.16 | AK129: 1.88 | AL129: 0.14 | AM129: 0.09 | AN129: 0.26 | AO129: 0.29 | AP129: 0.01 | AQ129: 2.71 | AR129: 0.39 | AS129: 0.19 | AT129: 0.9
B130: 125 | C130: 0.086 | D130: 0.028 | E130: 0.086 | F130: 0.028 | G130: 1.48 | H130: 0.13 | I130: 0.08 | J130: 0.6 | K130: 1.18 | L130: 1.3 | M130: 1.12 | N130: 2.07 | O130: 2.44 | P130: 1.17 | Q130: 1.51 | R130: 0.87 | S130: 1.14 | T130: 0.76 | U130: 0.68 | V130: 2.85 | W130: 5.08 | X130: 1.14 | Y130: 1.14 | Z130: 0.85 | AA130: 1.32 | AB130: 0.55 | AC130: 0.14 | AD130: 0.85 | AE130: 1.25 | AF130: 0.62 | AG130: 0.37 | AH130: 0.19 | AI130: 0.31 | AJ130: 0.16 | AK130: 1.88 | AL130: 0.14 | AM130: 0.09 | AN130: 0.26 | AO130: 0.29 | AP130: 0.01 | AQ130: 2.71 | AR130: 0.39 | AS130: 0.19 | AT130: 0.9
B131: 126 | C131: 0.086 | D131: 0.028 | E131: 0.086 | F131: 0.028 | G131: 1.48 | H131: 0.13 | I131: 0.08 | J131: 0.6 | K131: 1.18 | L131: 1.3 | M131: 1.12 | N131: 2.07 | O131: 2.44 | P131: 1.17 | Q131: 1.51 | R131: 0.87 | S131: 1.14 | T131: 0.76 | U131: 0.68 | V131: 2.85 | W131: 5.08 | X131: 1.14 | Y131: 1.14 | Z131: 0.85 | AA131: 1.32 | AB131: 0.55 | AC131: 0.14 | AD131: 0.85 | AE131: 1.25 | AF131: 0.62 | AG131: 0.37 | AH131: 0.19 | AI131: 0.31 | AJ131: 0.16 | AK131: 1.88 | AL131: 0.14 | AM131: 0.09 | AN131: 0.26 | AO131: 0.29 | AP131: 0.01 | AQ131: 2.71 | AR131: 0.39 | AS131: 0.19 | AT131: 0.9
B132: 127 | C132: 0.086 | D132: 0.028 | E132: 0.086 | F132: 0.028 | G132: 1.48 | H132: 0.13 | I132: 0.08 | J132: 0.6 | K132: 1.18 | L132: 1.3 | M132: 1.12 | N132: 2.07 | O132: 2.44 | P132: 1.17 | Q132: 1.51 | R132: 0.87 | S132: 1.14 | T132: 0.76 | U132: 0.68 | V132: 2.85 | W132: 5.08 | X132: 1.14 | Y132: 1.14 | Z132: 0.85 | AA132: 1.32 | AB132: 0.55 | AC132: 0.14 | AD132: 0.85 | AE132: 1.25 | AF132: 0.62 | AG132: 0.37 | AH132: 0.19 | AI132: 0.31 | AJ132: 0.16 | AK132: 1.88 | AL132: 0.14 | AM132: 0.09 | AN132: 0.26 | AO132: 0.29 | AP132: 0.01 | AQ132: 2.71 | AR132: 0.39 | AS132: 0.19 | AT132: 0.9
B133: 128 | C133: 0.086 | D133: 0.028 | E133: 0.086 | F133: 0.028 | G133: 1.48 | H133: 0.13 | I133: 0.08 | J133: 0.6 | K133: 1.18 | L133: 1.3 | M133: 1.12 | N133: 2.07 | O133: 2.44 | P133: 1.17 | Q133: 1.51 | R133: 0.87 | S133: 1.14 | T133: 0.76 | U133: 0.68 | V133: 2.85 | W133: 5.08 | X133: 1.14 | Y133: 1.14 | Z133: 0.85 | AA133: 1.32 | AB133: 0.55 | AC133: 0.14 | AD133: 0.85 | AE133: 1.25 | AF133: 0.62 | AG133: 0.37 | AH133: 0.19 | AI133: 0.31 | AJ133: 0.16 | AK133: 1.88 | AL133: 0.14 | AM133: 0.09 | AN133: 0.26 | AO133: 0.29 | AP133: 0.01 | AQ133: 2.71 | AR133: 0.39 | AS133: 0.19 | AT133: 0.9
B134: 129 | C134: 0.086 | D134: 0.028 | E134: 0.086 | F134: 0.028 | G134: 1.48 | H134: 0.13 | I134: 0.08 | J134: 0.6 | K134: 1.18 | L134: 1.3 | M134: 1.12 | N134: 2.07 | O134: 2.44 | P134: 1.17 | Q134: 1.51 | R134: 0.87 | S134: 1.14 | T134: 0.76 | U134: 0.68 | V134: 2.85 | W134: 5.08 | X134: 1.14 | Y134: 1.14 | Z134: 0.85 | AA134: 1.32 | AB134: 0.55 | AC134: 0.14 | AD134: 0.85 | AE134: 1.25 | AF134: 0.62 | AG134: 0.37 | AH134: 0.19 | AI134: 0.31 | AJ134: 0.16 | AK134: 1.88 | AL134: 0.14 | AM134: 0.09 | AN134: 0.26 | AO134: 0.29 | AP134: 0.01 | AQ134: 2.71 | AR134: 0.39 | AS134: 0.19 | AT134: 0.9
B135: 130 | C135: 0.086 | D135: 0.028 | E135: 0.086 | F135: 0.028 | G135: 1.48 | H135: 0.13 | I135: 0.08 | J135: 0.6 | K135: 1.18 | L135: 1.3 | M135: 1.12 | N135: 2.07 | O135: 2.44 | P135: 1.17 | Q135: 1.51 | R135: 0.87 | S135: 1.14 | T135: 0.76 | U135: 0.68 | V135: 2.85 | W135: 5.08 | X135: 1.14 | Y135: 1.14 | Z135: 0.85 | AA135: 1.32 | AB135: 0.55 | AC135: 0.14 | AD135: 0.85 | AE135: 1.25 | AF135: 0.62 | AG135: 0.37 | AH135: 0.19 | AI135: 0.31 | AJ135: 0.16 | AK135: 1.88 | AL135: 0.14 | AM135: 0.09 | AN135: 0.26 | AO135: 0.29 | AP135: 0.01 | AQ135: 2.71 | AR135: 0.39 | AS135: 0.19 | AT135: 0.9
B136: 131 | C136: 0.086 | D136: 0.028 | E136: 0.086 | F136: 0.028 | G136: 1.48 | H136: 0.13 | I136: 0.08 | J136: 0.6 | K136: 1.18 | L136: 1.3 | M136: 1.12 | N136: 2.07 | O136: 2.44 | P136: 1.17 | Q136: 1.51 | R136: 0.87 | S136: 1.14 | T136: 0.76 | U136: 0.68 | V136: 2.85 | W136: 5.08 | X136: 1.14 | Y136: 1.14 | Z136: 0.85 | AA136: 1.32 | AB136: 0.55 | AC136: 0.14 | AD136: 0.85 | AE136: 1.25 | AF136: 0.62 | AG136: 0.37 | AH136: 0.19 | AI136: 0.31 | AJ136: 0.16 | AK136: 1.88 | AL136: 0.14 | AM136: 0.09 | AN136: 0.26 | AO136: 0.29 | AP136: 0.01 | AQ136: 2.71 | AR136: 0.39 | AS136: 0.19 | AT136: 0.9
B137: 132 | C137: 0.086 | D137: 0.028 | E137: 0.086 | F137: 0.028 | G137: 1.48 | H137: 0.13 | I137: 0.08 | J137: 0.6 | K137: 1.18 | L137: 1.3 | M137: 1.12 | N137: 2.07 | O137: 2.44 | P137: 1.17 | Q137: 1.51 | R137: 0.87 | S137: 1.14 | T137: 0.76 | U137: 0.68 | V137: 2.85 | W137: 5.08 | X137: 1.14 | Y137: 1.14 | Z137: 0.85 | AA137: 1.32 | AB137: 0.55 | AC137: 0.14 | AD137: 0.85 | AE137: 1.25 | AF137: 0.62 | AG137: 0.37 | AH137: 0.19 | AI137: 0.31 | AJ137: 0.16 | AK137: 1.88 | AL137: 0.14 | AM137: 0.09 | AN137: 0.26 | AO137: 0.29 | AP137: 0.01 | AQ137: 2.71 | AR137: 0.39 | AS137: 0.19 | AT137: 0.9
B138: 133 | C138: 0.086 | D138: 0.028 | E138: 0.086 | F138: 0.028 | G138: 1.48 | H138: 0.13 | I138: 0.08 | J138: 0.6 | K138: 1.18 | L138: 1.3 | M138: 1.12 | N138: 2.07 | O138: 2.44 | P138: 1.17 | Q138: 1.51 | R138: 0.87 | S138: 1.14 | T138: 0.76 | U138: 0.68 | V138: 2.85 | W138: 5.08 | X138: 1.14 | Y138: 1.14 | Z138: 0.85 | AA138: 1.32 | AB138: 0.55 | AC138: 0.14 | AD138: 0.85 | AE138: 1.25 | AF138: 0.62 | AG138: 0.37 | AH138: 0.19 | AI138: 0.31 | AJ138: 0.16 | AK138: 1.88 | AL138: 0.14 | AM138: 0.09 | AN138: 0.26 | AO138: 0.29 | AP138: 0.01 | AQ138: 2.71 | AR138: 0.39 | AS138: 0.19 | AT138: 0.9
B139: 134 | C139: 0.086 | D139: 0.028 | E139: 0.086 | F139: 0.028 | G139: 1.48 | H139: 0.13 | I139: 0.08 | J139: 0.6 | K139: 1.18 | L139: 1.3 | M139: 1.12 | N139: 2.07 | O139: 2.44 | P139: 1.17 | Q139: 1.51 | R139: 0.87 | S139: 1.14 | T139: 0.76 | U139: 0.68 | V139: 2.85 | W139: 5.08 | X139: 1.14 | Y139: 1.14 | Z139: 0.85 | AA139: 1.32 | AB139: 0.55 | AC139: 0.14 | AD139: 0.85 | AE139: 1.25 | AF139: 0.62 | AG139: 0.37 | AH139: 0.19 | AI139: 0.31 | AJ139: 0.16 | AK139: 1.88 | AL139: 0.14 | AM139: 0.09 | AN139: 0.26 | AO139: 0.29 | AP139: 0.01 | AQ139: 2.71 | AR139: 0.39 | AS139: 0.19 | AT139: 0.9
B140: 135 | C140: 0.086 | D140: 0.028 | E140: 0.086 | F140: 0.028 | G140: 1.48 | H140: 0.13 | I140: 0.08 | J140: 0.6 | K140: 1.18 | L140: 1.3 | M140: 1.12 | N140: 2.07 | O140: 2.44 | P140: 1.17 | Q140: 1.51 | R140: 0.87 | S140: 1.14 | T140: 0.76 | U140: 0.68 | V140: 2.85 | W140: 5.08 | X140: 1.14 | Y140: 1.14 | Z140: 0.85 | AA140: 1.32 | AB140: 0.55 | AC140: 0.14 | AD140: 0.85 | AE140: 1.25 | AF140: 0.62 | AG140: 0.37 | AH140: 0.19 | AI140: 0.31 | AJ140: 0.16 | AK140: 1.88 | AL140: 0.14 | AM140: 0.09 | AN140: 0.26 | AO140: 0.29 | AP140: 0.01 | AQ140: 2.71 | AR140: 0.39 | AS140: 0.19 | AT140: 0.9
B141: 136 | C141: 0.086 | D141: 0.028 | E141: 0.086 | F141: 0.028 | G141: 1.48 | H141: 0.13 | I141: 0.08 | J141: 0.6 | K141: 1.18 | L141: 1.3 | M141: 1.12 | N141: 2.07 | O141: 2.44 | P141: 1.17 | Q141: 1.51 | R141: 0.87 | S141: 1.14 | T141: 0.76 | U141: 0.68 | V141: 2.85 | W141: 5.08 | X141: 1.14 | Y141: 1.14 | Z141: 0.85 | AA141: 1.32 | AB141: 0.55 | AC141: 0.14 | AD141: 0.85 | AE141: 1.25 | AF141: 0.62 | AG141: 0.37 | AH141: 0.19 | AI141: 0.31 | AJ141: 0.16 | AK141: 1.88 | AL141: 0.14 | AM141: 0.09 | AN141: 0.26 | AO141: 0.29 | AP141: 0.01 | AQ141: 2.71 | AR141: 0.39 | AS141: 0.19 | AT141: 0.9
B142: 137 | C142: 0.086 | D142: 0.028 | E142: 0.086 | F142: 0.028 | G142: 1.48 | H142: 0.13 | I142: 0.08 | J142: 0.6 | K142: 1.18 | L142: 1.3 | M142: 1.12 | N142: 2.07 | O142: 2.44 | P142: 1.17 | Q142: 1.51 | R142: 0.87 | S142: 1.14 | T142: 0.76 | U142: 0.68 | V142: 2.85 | W142: 5.08 | X142: 1.14 | Y142: 1.14 | Z142: 0.85 | AA142: 1.32 | AB142: 0.55 | AC142: 0.14 | AD142: 0.85 | AE142: 1.25 | AF142: 0.62 | AG142: 0.37 | AH142: 0.19 | AI142: 0.31 | AJ142: 0.16 | AK142: 1.88 | AL142: 0.14 | AM142: 0.09 | AN142: 0.26 | AO142: 0.29 | AP142: 0.01 | AQ142: 2.71 | AR142: 0.39 | AS142: 0.19 | AT142: 0.9
B143: 138 | C143: 0.086 | D143: 0.028 | E143: 0.086 | F143: 0.028 | G143: 1.48 | H143: 0.13 | I143: 0.08 | J143: 0.6 | K143: 1.18 | L143: 1.3 | M143: 1.12 | N143: 2.07 | O143: 2.44 | P143: 1.17 | Q143: 1.51 | R143: 0.87 | S143: 1.14 | T143: 0.76 | U143: 0.68 | V143: 2.85 | W143: 5.08 | X143: 1.14 | Y143: 1.14 | Z143: 0.85 | AA143: 1.32 | AB143: 0.55 | AC143: 0.14 | AD143: 0.85 | AE143: 1.25 | AF143: 0.62 | AG143: 0.37 | AH143: 0.19 | AI143: 0.31 | AJ143: 0.16 | AK143: 1.88 | AL143: 0.14 | AM143: 0.09 | AN143: 0.26 | AO143: 0.29 | AP143: 0.01 | AQ143: 2.71 | AR143: 0.39 | AS143: 0.19 | AT143: 0.9
B144: 139 | C144: 0.086 | D144: 0.028 | E144: 0.086 | F144: 0.028 | G144: 1.48 | H144: 0.13 | I144: 0.08 | J144: 0.6 | K144: 1.18 | L144: 1.3 | M144: 1.12 | N144: 2.07 | O144: 2.44 | P144: 1.17 | Q144: 1.51 | R144: 0.87 | S144: 1.14 | T144: 0.76 | U144: 0.68 | V144: 2.85 | W144: 5.08 | X144: 1.14 | Y144: 1.14 | Z144: 0.85 | AA144: 1.32 | AB144: 0.55 | AC144: 0.14 | AD144: 0.85 | AE144: 1.25 | AF144: 0.62 | AG144: 0.37 | AH144: 0.19 | AI144: 0.31 | AJ144: 0.16 | AK144: 1.88 | AL144: 0.14 | AM144: 0.09 | AN144: 0.26 | AO144: 0.29 | AP144: 0.01 | AQ144: 2.71 | AR144: 0.39 | AS144: 0.19 | AT144: 0.9
B145: 140 | C145: 0.086 | D145: 0.028 | E145: 0.086 | F145: 0.028 | G145: 1.48 | H145: 0.13 | I145: 0.08 | J145: 0.6 | K145: 1.18 | L145: 1.3 | M145: 1.12 | N145: 2.07 | O145: 2.44 | P145: 1.17 | Q145: 1.51 | R145: 0.87 | S145: 1.14 | T145: 0.76 | U145: 0.68 | V145: 2.85 | W145: 5.08 | X145: 1.14 | Y145: 1.14 | Z145: 0.85 | AA145: 1.32 | AB145: 0.55 | AC145: 0.14 | AD145: 0.85 | AE145: 1.25 | AF145: 0.62 | AG145: 0.37 | AH145: 0.19 | AI145: 0.31 | AJ145: 0.16 | AK145: 1.88 | AL145: 0.14 | AM145: 0.09 | AN145: 0.26 | AO145: 0.29 | AP145: 0.01 | AQ145: 2.71 | AR145: 0.39 | AS145: 0.19 | AT145: 0.9
B146: 141 | C146: 0.086 | D146: 0.028 | E146: 0.086 | F146: 0.028 | G146: 1.48 | H146: 0.13 | I146: 0.08 | J146: 0.6 | K146: 1.18 | L146: 1.3 | M146: 1.12 | N146: 2.07 | O146: 2.44 | P146: 1.17 | Q146: 1.51 | R146: 0.87 | S146: 1.14 | T146: 0.76 | U146: 0.68 | V146: 2.85 | W146: 5.08 | X146: 1.14 | Y146: 1.14 | Z146: 0.85 | AA146: 1.32 | AB146: 0.55 | AC146: 0.14 | AD146: 0.85 | AE146: 1.25 | AF146: 0.62 | AG146: 0.37 | AH146: 0.19 | AI146: 0.31 | AJ146: 0.16 | AK146: 1.88 | AL146: 0.14 | AM146: 0.09 | AN146: 0.26 | AO146: 0.29 | AP146: 0.01 | AQ146: 2.71 | AR146: 0.39 | AS146: 0.19 | AT146: 0.9
B147: 142 | C147: 0.086 | D147: 0.028 | E147: 0.086 | F147: 0.028 | G147: 1.48 | H147: 0.13 | I147: 0.08 | J147: 0.6 | K147: 1.18 | L147: 1.3 | M147: 1.12 | N147: 2.07 | O147: 2.44 | P147: 1.17 | Q147: 1.51 | R147: 0.87 | S147: 1.14 | T147: 0.76 | U147: 0.68 | V147: 2.85 | W147: 5.08 | X147: 1.14 | Y147: 1.14 | Z147: 0.85 | AA147: 1.32 | AB147: 0.55 | AC147: 0.14 | AD147: 0.85 | AE147: 1.25 | AF147: 0.62 | AG147: 0.37 | AH147: 0.19 | AI147: 0.31 | AJ147: 0.16 | AK147: 1.88 | AL147: 0.14 | AM147: 0.09 | AN147: 0.26 | AO147: 0.29 | AP147: 0.01 | AQ147: 2.71 | AR147: 0.39 | AS147: 0.19 | AT147: 0.9
B148: 143 | C148: 0.086 | D148: 0.028 | E148: 0.086 | F148: 0.028 | G148: 1.48 | H148: 0.13 | I148: 0.08 | J148: 0.6 | K148: 1.18 | L148: 1.3 | M148: 1.12 | N148: 2.07 | O148: 2.44 | P148: 1.17 | Q148: 1.51 | R148: 0.87 | S148: 1.14 | T148: 0.76 | U148: 0.68 | V148: 2.85 | W148: 5.08 | X148: 1.14 | Y148: 1.14 | Z148: 0.85 | AA148: 1.32 | AB148: 0.55 | AC148: 0.14 | AD148: 0.85 | AE148: 1.25 | AF148: 0.62 | AG148: 0.37 | AH148: 0.19 | AI148: 0.31 | AJ148: 0.16 | AK148: 1.88 | AL148: 0.14 | AM148: 0.09 | AN148: 0.26 | AO148: 0.29 | AP148: 0.01 | AQ148: 2.71 | AR148: 0.39 | AS148: 0.19 | AT148: 0.9
B149: 144 | C149: 0.086 | D149: 0.028 | E149: 0.086 | F149: 0.028 | G149: 1.48 | H149: 0.13 | I149: 0.08 | J149: 0.6 | K149: 1.18 | L149: 1.3 | M149: 1.12 | N149: 2.07 | O149: 2.44 | P149: 1.17 | Q149: 1.51 | R149: 0.87 | S149: 1.14 | T149: 0.76 | U149: 0.68 | V149: 2.85 | W149: 5.08 | X149: 1.14 | Y149: 1.14 | Z149: 0.85 | AA149: 1.32 | AB149: 0.55 | AC149: 0.14 | AD149: 0.85 | AE149: 1.25 | AF149: 0.62 | AG149: 0.37 | AH149: 0.19 | AI149: 0.31 | AJ149: 0.16 | AK149: 1.88 | AL149: 0.14 | AM149: 0.09 | AN149: 0.26 | AO149: 0.29 | AP149: 0.01 | AQ149: 2.71 | AR149: 0.39 | AS149: 0.19 | AT149: 0.9
B150: 145 | C150: 0.086 | D150: 0.028 | E150: 0.086 | F150: 0.028 | G150: 1.48 | H150: 0.13 | I150: 0.08 | J150: 0.6 | K150: 1.18 | L150: 1.3 | M150: 1.12 | N150: 2.07 | O150: 2.44 | P150: 1.17 | Q150: 1.51 | R150: 0.87 | S150: 1.14 | T150: 0.76 | U150: 0.68 | V150: 2.85 | W150: 5.08 | X150: 1.14 | Y150: 1.14 | Z150: 0.85 | AA150: 1.32 | AB150: 0.55 | AC150: 0.14 | AD150: 0.85 | AE150: 1.25 | AF150: 0.62 | AG150: 0.37 | AH150: 0.19 | AI150: 0.31 | AJ150: 0.16 | AK150: 1.88 | AL150: 0.14 | AM150: 0.09 | AN150: 0.26 | AO150: 0.29 | AP150: 0.01 | AQ150: 2.71 | AR150: 0.39 | AS150: 0.19 | AT150: 0.9
B151: 146 | C151: 0.086 | D151: 0.028 | E151: 0.086 | F151: 0.028 | G151: 1.48 | H151: 0.13 | I151: 0.08 | J151: 0.6 | K151: 1.18 | L151: 1.3 | M151: 1.12 | N151: 2.07 | O151: 2.44 | P151: 1.17 | Q151: 1.51 | R151: 0.87 | S151: 1.14 | T151: 0.76 | U151: 0.68 | V151: 2.85 | W151: 5.08 | X151: 1.14 | Y151: 1.14 | Z151: 0.85 | AA151: 1.32 | AB151: 0.55 | AC151: 0.14 | AD151: 0.85 | AE151: 1.25 | AF151: 0.62 | AG151: 0.37 | AH151: 0.19 | AI151: 0.31 | AJ151: 0.16 | AK151: 1.88 | AL151: 0.14 | AM151: 0.09 | AN151: 0.26 | AO151: 0.29 | AP151: 0.01 | AQ151: 2.71 | AR151: 0.39 | AS151: 0.19 | AT151: 0.9
B152: 147 | C152: 0.086 | D152: 0.028 | E152: 0.086 | F152: 0.028 | G152: 1.48 | H152: 0.13 | I152: 0.08 | J152: 0.6 | K152: 1.18 | L152: 1.3 | M152: 1.12 | N152: 2.07 | O152: 2.44 | P152: 1.17 | Q152: 1.51 | R152: 0.87 | S152: 1.14 | T152: 0.76 | U152: 0.68 | V152: 2.85 | W152: 5.08 | X152: 1.14 | Y152: 1.14 | Z152: 0.85 | AA152: 1.32 | AB152: 0.55 | AC152: 0.14 | AD152: 0.85 | AE152: 1.25 | AF152: 0.62 | AG152: 0.37 | AH152: 0.19 | AI152: 0.31 | AJ152: 0.16 | AK152: 1.88 | AL152: 0.14 | AM152: 0.09 | AN152: 0.26 | AO152: 0.29 | AP152: 0.01 | AQ152: 2.71 | AR152: 0.39 | AS152: 0.19 | AT152: 0.9
B153: 148 | C153: 0.086 | D153: 0.028 | E153: 0.086 | F153: 0.028 | G153: 1.48 | H153: 0.13 | I153: 0.08 | J153: 0.6 | K153: 1.18 | L153: 1.3 | M153: 1.12 | N153: 2.07 | O153: 2.44 | P153: 1.17 | Q153: 1.51 | R153: 0.87 | S153: 1.14 | T153: 0.76 | U153: 0.68 | V153: 2.85 | W153: 5.08 | X153: 1.14 | Y153: 1.14 | Z153: 0.85 | AA153: 1.32 | AB153: 0.55 | AC153: 0.14 | AD153: 0.85 | AE153: 1.25 | AF153: 0.62 | AG153: 0.37 | AH153: 0.19 | AI153: 0.31 | AJ153: 0.16 | AK153: 1.88 | AL153: 0.14 | AM153: 0.09 | AN153: 0.26 | AO153: 0.29 | AP153: 0.01 | AQ153: 2.71 | AR153: 0.39 | AS153: 0.19 | AT153: 0.9
B154: 149 | C154: 0.086 | D154: 0.028 | E154: 0.086 | F154: 0.028 | G154: 1.48 | H154: 0.13 | I154: 0.08 | J154: 0.6 | K154: 1.18 | L154: 1.3 | M154: 1.12 | N154: 2.07 | O154: 2.44 | P154: 1.17 | Q154: 1.51 | R154: 0.87 | S154: 1.14 | T154: 0.76 | U154: 0.68 | V154: 2.85 | W154: 5.08 | X154: 1.14 | Y154: 1.14 | Z154: 0.85 | AA154: 1.32 | AB154: 0.55 | AC154: 0.14 | AD154: 0.85 | AE154: 1.25 | AF154: 0.62 | AG154: 0.37 | AH154: 0.19 | AI154: 0.31 | AJ154: 0.16 | AK154: 1.88 | AL154: 0.14 | AM154: 0.09 | AN154: 0.26 | AO154: 0.29 | AP154: 0.01 | AQ154: 2.71 | AR154: 0.39 | AS154: 0.19 | AT154: 0.9
B155: 150 | C155: 0.086 | D155: 0.028 | E155: 0.086 | F155: 0.028 | G155: 1.48 | H155: 0.13 | I155: 0.08 | J155: 0.6 | K155: 1.18 | L155: 1.3 | M155: 1.12 | N155: 2.07 | O155: 2.44 | P155: 1.17 | Q155: 1.51 | R155: 0.87 | S155: 1.14 | T155: 0.76 | U155: 0.68 | V155: 2.85 | W155: 5.08 | X155: 1.14 | Y155: 1.14 | Z155: 0.85 | AA155: 1.32 | AB155: 0.55 | AC155: 0.14 | AD155: 0.85 | AE155: 1.25 | AF155: 0.62 | AG155: 0.37 | AH155: 0.19 | AI155: 0.31 | AJ155: 0.16 | AK155: 1.88 | AL155: 0.14 | AM155: 0.09 | AN155: 0.26 | AO155: 0.29 | AP155: 0.01 | AQ155: 2.71 | AR155: 0.39 | AS155: 0.19 | AT155: 0.9
B156: 151 | C156: 0.086 | D156: 0.028 | E156: 0.086 | F156: 0.028 | G156: 1.48 | H156: 0.13 | I156: 0.08 | J156: 0.6 | K156: 1.18 | L156: 1.3 | M156: 1.12 | N156: 2.07 | O156: 2.44 | P156: 1.17 | Q156: 1.51 | R156: 0.87 | S156: 1.14 | T156: 0.76 | U156: 0.68 | V156: 2.85 | W156: 5.08 | X156: 1.14 | Y156: 1.14 | Z156: 0.85 | AA156: 1.32 | AB156: 0.55 | AC156: 0.14 | AD156: 0.85 | AE156: 1.25 | AF156: 0.62 | AG156: 0.37 | AH156: 0.19 | AI156: 0.31 | AJ156: 0.16 | AK156: 1.88 | AL156: 0.14 | AM156: 0.09 | AN156: 0.26 | AO156: 0.29 | AP156: 0.01 | AQ156: 2.71 | AR156: 0.39 | AS156: 0.19 | AT156: 0.9
B157: 152 | C157: 0.086 | D157: 0.028 | E157: 0.086 | F157: 0.028 | G157: 1.48 | H157: 0.13 | I157: 0.08 | J157: 0.6 | K157: 1.18 | L157: 1.3 | M157: 1.12 | N157: 2.07 | O157: 2.44 | P157: 1.17 | Q157: 1.51 | R157: 0.87 | S157: 1.14 | T157: 0.76 | U157: 0.68 | V157: 2.85 | W157: 5.08 | X157: 1.14 | Y157: 1.14 | Z157: 0.85 | AA157: 1.32 | AB157: 0.55 | AC157: 0.14 | AD157: 0.85 | AE157: 1.25 | AF157: 0.62 | AG157: 0.37 | AH157: 0.19 | AI157: 0.31 | AJ157: 0.16 | AK157: 1.88 | AL157: 0.14 | AM157: 0.09 | AN157: 0.26 | AO157: 0.29 | AP157: 0.01 | AQ157: 2.71 | AR157: 0.39 | AS157: 0.19 | AT157: 0.9
B158: 153 | C158: 0.086 | D158: 0.028 | E158: 0.086 | F158: 0.028 | G158: 1.48 | H158: 0.13 | I158: 0.08 | J158: 0.6 | K158: 1.18 | L158: 1.3 | M158: 1.12 | N158: 2.07 | O158: 2.44 | P158: 1.17 | Q158: 1.51 | R158: 0.87 | S158: 1.14 | T158: 0.76 | U158: 0.68 | V158: 2.85 | W158: 5.08 | X158: 1.14 | Y158: 1.14 | Z158: 0.85 | AA158: 1.32 | AB158: 0.55 | AC158: 0.14 | AD158: 0.85 | AE158: 1.25 | AF158: 0.62 | AG158: 0.37 | AH158: 0.19 | AI158: 0.31 | AJ158: 0.16 | AK158: 1.88 | AL158: 0.14 | AM158: 0.09 | AN158: 0.26 | AO158: 0.29 | AP158: 0.01 | AQ158: 2.71 | AR158: 0.39 | AS158: 0.19 | AT158: 0.9
B159: 154 | C159: 0.086 | D159: 0.028 | E159: 0.086 | F159: 0.028 | G159: 1.48 | H159: 0.13 | I159: 0.08 | J159: 0.6 | K159: 1.18 | L159: 1.3 | M159: 1.12 | N159: 2.07 | O159: 2.44 | P159: 1.17 | Q159: 1.51 | R159: 0.87 | S159: 1.14 | T159: 0.76 | U159: 0.68 | V159: 2.85 | W159: 5.08 | X159: 1.14 | Y159: 1.14 | Z159: 0.85 | AA159: 1.32 | AB159: 0.55 | AC159: 0.14 | AD159: 0.85 | AE159: 1.25 | AF159: 0.62 | AG159: 0.37 | AH159: 0.19 | AI159: 0.31 | AJ159: 0.16 | AK159: 1.88 | AL159: 0.14 | AM159: 0.09 | AN159: 0.26 | AO159: 0.29 | AP159: 0.01 | AQ159: 2.71 | AR159: 0.39 | AS159: 0.19 | AT159: 0.9
B160: 155 | C160: 0.086 | D160: 0.028 | E160: 0.086 | F160: 0.028 | G160: 1.48 | H160: 0.13 | I160: 0.08 | J160: 0.6 | K160: 1.18 | L160: 1.3 | M160: 1.12 | N160: 2.07 | O160: 2.44 | P160: 1.17 | Q160: 1.51 | R160: 0.87 | S160: 1.14 | T160: 0.76 | U160: 0.68 | V160: 2.85 | W160: 5.08 | X160: 1.14 | Y160: 1.14 | Z160: 0.85 | AA160: 1.32 | AB160: 0.55 | AC160: 0.14 | AD160: 0.85 | AE160: 1.25 | AF160: 0.62 | AG160: 0.37 | AH160: 0.19 | AI160: 0.31 | AJ160: 0.16 | AK160: 1.88 | AL160: 0.14 | AM160: 0.09 | AN160: 0.26 | AO160: 0.29 | AP160: 0.01 | AQ160: 2.71 | AR160: 0.39 | AS160: 0.19 | AT160: 0.9
B161: 156 | C161: 0.086 | D161: 0.028 | E161: 0.086 | F161: 0.028 | G161: 1.48 | H161: 0.13 | I161: 0.08 | J161: 0.6 | K161: 1.18 | L161: 1.3 | M161: 1.12 | N161: 2.07 | O161: 2.44 | P161: 1.17 | Q161: 1.51 | R161: 0.87 | S161: 1.14 | T161: 0.76 | U161: 0.68 | V161: 2.85 | W161: 5.08 | X161: 1.14 | Y161: 1.14 | Z161: 0.85 | AA161: 1.32 | AB161: 0.55 | AC161: 0.14 | AD161: 0.85 | AE161: 1.25 | AF161: 0.62 | AG161: 0.37 | AH161: 0.19 | AI161: 0.31 | AJ161: 0.16 | AK161: 1.88 | AL161: 0.14 | AM161: 0.09 | AN161: 0.26 | AO161: 0.29 | AP161: 0.01 | AQ161: 2.71 | AR161: 0.39 | AS161: 0.19 | AT161: 0.9
B162: 157 | C162: 0.086 | D162: 0.028 | E162: 0.086 | F162: 0.028 | G162: 1.48 | H162: 0.13 | I162: 0.08 | J162: 0.6 | K162: 1.18 | L162: 1.3 | M162: 1.12 | N162: 2.07 | O162: 2.44 | P162: 1.17 | Q162: 1.51 | R162: 0.87 | S162: 1.14 | T162: 0.76 | U162: 0.68 | V162: 2.85 | W162: 5.08 | X162: 1.14 | Y162: 1.14 | Z162: 0.85 | AA162: 1.32 | AB162: 0.55 | AC162: 0.14 | AD162: 0.85 | AE162: 1.25 | AF162: 0.62 | AG162: 0.37 | AH162: 0.19 | AI162: 0.31 | AJ162: 0.16 | AK162: 1.88 | AL162: 0.14 | AM162: 0.09 | AN162: 0.26 | AO162: 0.29 | AP162: 0.01 | AQ162: 2.71 | AR162: 0.39 | AS162: 0.19 | AT162: 0.9
B163: 158 | C163: 0.086 | D163: 0.028 | E163: 0.086 | F163: 0.028 | G163: 1.48 | H163: 0.13 | I163: 0.08 | J163: 0.6 | K163: 1.18 | L163: 1.3 | M163: 1.12 | N163: 2.07 | O163: 2.44 | P163: 1.17 | Q163: 1.51 | R163: 0.87 | S163: 1.14 | T163: 0.76 | U163: 0.68 | V163: 2.85 | W163: 5.08 | X163: 1.14 | Y163: 1.14 | Z163: 0.85 | AA163: 1.32 | AB163: 0.55 | AC163: 0.14 | AD163: 0.85 | AE163: 1.25 | AF163: 0.62 | AG163: 0.37 | AH163: 0.19 | AI163: 0.31 | AJ163: 0.16 | AK163: 1.88 | AL163: 0.14 | AM163: 0.09 | AN163: 0.26 | AO163: 0.29 | AP163: 0.01 | AQ163: 2.71 | AR163: 0.39 | AS163: 0.19 | AT163: 0.9
B164: 159 | C164: 0.086 | D164: 0.028 | E164: 0.086 | F164: 0.028 | G164: 1.48 | H164: 0.13 | I164: 0.08 | J164: 0.6 | K164: 1.18 | L164: 1.3 | M164: 1.12 | N164: 2.07 | O164: 2.44 | P164: 1.17 | Q164: 1.51 | R164: 0.87 | S164: 1.14 | T164: 0.76 | U164: 0.68 | V164: 2.85 | W164: 5.08 | X164: 1.14 | Y164: 1.14 | Z164: 0.85 | AA164: 1.32 | AB164: 0.55 | AC164: 0.14 | AD164: 0.85 | AE164: 1.25 | AF164: 0.62 | AG164: 0.37 | AH164: 0.19 | AI164: 0.31 | AJ164: 0.16 | AK164: 1.88 | AL164: 0.14 | AM164: 0.09 | AN164: 0.26 | AO164: 0.29 | AP164: 0.01 | AQ164: 2.71 | AR164: 0.39 | AS164: 0.19 | AT164: 0.9
B165: 160 | C165: 0.086 | D165: 0.028 | E165: 0.086 | F165: 0.028 | G165: 1.48 | H165: 0.13 | I165: 0.08 | J165: 0.6 | K165: 1.18 | L165: 1.3 | M165: 1.12 | N165: 2.07 | O165: 2.44 | P165: 1.17 | Q165: 1.51 | R165: 0.87 | S165: 1.14 | T165: 0.76 | U165: 0.68 | V165: 2.85 | W165: 5.08 | X165: 1.14 | Y165: 1.14 | Z165: 0.85 | AA165: 1.32 | AB165: 0.55 | AC165: 0.14 | AD165: 0.85 | AE165: 1.25 | AF165: 0.62 | AG165: 0.37 | AH165: 0.19 | AI165: 0.31 | AJ165: 0.16 | AK165: 1.88 | AL165: 0.14 | AM165: 0.09 | AN165: 0.26 | AO165: 0.29 | AP165: 0.01 | AQ165: 2.71 | AR165: 0.39 | AS165: 0.19 | AT165: 0.9
B166: 161 | C166: 0.086 | D166: 0.028 | E166: 0.086 | F166: 0.028 | G166: 1.48 | H166: 0.13 | I166: 0.08 | J166: 0.6 | K166: 1.18 | L166: 1.3 | M166: 1.12 | N166: 2.07 | O166: 2.44 | P166: 1.17 | Q166: 1.51 | R166: 0.87 | S166: 1.14 | T166: 0.76 | U166: 0.68 | V166: 2.85 | W166: 5.08 | X166: 1.14 | Y166: 1.14 | Z166: 0.85 | AA166: 1.32 | AB166: 0.55 | AC166: 0.14 | AD166: 0.85 | AE166: 1.25 | AF166: 0.62 | AG166: 0.37 | AH166: 0.19 | AI166: 0.31 | AJ166: 0.16 | AK166: 1.88 | AL166: 0.14 | AM166: 0.09 | AN166: 0.26 | AO166: 0.29 | AP166: 0.01 | AQ166: 2.71 | AR166: 0.39 | AS166: 0.19 | AT166: 0.9
B167: 162 | C167: 0.086 | D167: 0.028 | E167: 0.086 | F167: 0.028 | G167: 1.48 | H167: 0.13 | I167: 0.08 | J167: 0.6 | K167: 1.18 | L167: 1.3 | M167: 1.12 | N167: 2.07 | O167: 2.44 | P167: 1.17 | Q167: 1.51 | R167: 0.87 | S167: 1.14 | T167: 0.76 | U167: 0.68 | V167: 2.85 | W167: 5.08 | X167: 1.14 | Y167: 1.14 | Z167: 0.85 | AA167: 1.32 | AB167: 0.55 | AC167: 0.14 | AD167: 0.85 | AE167: 1.25 | AF167: 0.62 | AG167: 0.37 | AH167: 0.19 | AI167: 0.31 | AJ167: 0.16 | AK167: 1.88 | AL167: 0.14 | AM167: 0.09 | AN167: 0.26 | AO167: 0.29 | AP167: 0.01 | AQ167: 2.71 | AR167: 0.39 | AS167: 0.19 | AT167: 0.9
B168: 163 | C168: 0.086 | D168: 0.028 | E168: 0.086 | F168: 0.028 | G168: 1.48 | H168: 0.13 | I168: 0.08 | J168: 0.6 | K168: 1.18 | L168: 1.3 | M168: 1.12 | N168: 2.07 | O168: 2.44 | P168: 1.17 | Q168: 1.51 | R168: 0.87 | S168: 1.14 | T168: 0.76 | U168: 0.68 | V168: 2.85 | W168: 5.08 | X168: 1.14 | Y168: 1.14 | Z168: 0.85 | AA168: 1.32 | AB168: 0.55 | AC168: 0.14 | AD168: 0.85 | AE168: 1.25 | AF168: 0.62 | AG168: 0.37 | AH168: 0.19 | AI168: 0.31 | AJ168: 0.16 | AK168: 1.88 | AL168: 0.14 | AM168: 0.09 | AN168: 0.26 | AO168: 0.29 | AP168: 0.01 | AQ168: 2.71 | AR168: 0.39 | AS168: 0.19 | AT168: 0.9
B169: 164 | C169: 0.086 | D169: 0.028 | E169: 0.086 | F169: 0.028 | G169: 1.48 | H169: 0.13 | I169: 0.08 | J169: 0.6 | K169: 1.18 | L169: 1.3 | M169: 1.12 | N169: 2.07 | O169: 2.44 | P169: 1.17 | Q169: 1.51 | R169: 0.87 | S169: 1.14 | T169: 0.76 | U169: 0.68 | V169: 2.85 | W169: 5.08 | X169: 1.14 | Y169: 1.14 | Z169: 0.85 | AA169: 1.32 | AB169: 0.55 | AC169: 0.14 | AD169: 0.85 | AE169: 1.25 | AF169: 0.62 | AG169: 0.37 | AH169: 0.19 | AI169: 0.31 | AJ169: 0.16 | AK169: 1.88 | AL169: 0.14 | AM169: 0.09 | AN169: 0.26 | AO169: 0.29 | AP169: 0.01 | AQ169: 2.71 | AR169: 0.39 | AS169: 0.19 | AT169: 0.9
B170: 165 | C170: 0.086 | D170: 0.028 | E170: 0.086 | F170: 0.028 | G170: 1.48 | H170: 0.13 | I170: 0.08 | J170: 0.6 | K170: 1.18 | L170: 1.3 | M170: 1.12 | N170: 2.07 | O170: 2.44 | P170: 1.17 | Q170: 1.51 | R170: 0.87 | S170: 1.14 | T170: 0.76 | U170: 0.68 | V170: 2.85 | W170: 5.08 | X170: 1.14 | Y170: 1.14 | Z170: 0.85 | AA170: 1.32 | AB170: 0.55 | AC170: 0.14 | AD170: 0.85 | AE170: 1.25 | AF170: 0.62 | AG170: 0.37 | AH170: 0.19 | AI170: 0.31 | AJ170: 0.16 | AK170: 1.88 | AL170: 0.14 | AM170: 0.09 | AN170: 0.26 | AO170: 0.29 | AP170: 0.01 | AQ170: 2.71 | AR170: 0.39 | AS170: 0.19 | AT170: 0.9
B171: 166 | C171: 0.086 | D171: 0.028 | E171: 0.086 | F171: 0.028 | G171: 1.48 | H171: 0.13 | I171: 0.08 | J171: 0.6 | K171: 1.18 | L171: 1.3 | M171: 1.12 | N171: 2.07 | O171: 2.44 | P171: 1.17 | Q171: 1.51 | R171: 0.87 | S171: 1.14 | T171: 0.76 | U171: 0.68 | V171: 2.85 | W171: 5.08 | X171: 1.14 | Y171: 1.14 | Z171: 0.85 | AA171: 1.32 | AB171: 0.55 | AC171: 0.14 | AD171: 0.85 | AE171: 1.25 | AF171: 0.62 | AG171: 0.37 | AH171: 0.19 | AI171: 0.31 | AJ171: 0.16 | AK171: 1.88 | AL171: 0.14 | AM171: 0.09 | AN171: 0.26 | AO171: 0.29 | AP171: 0.01 | AQ171: 2.71 | AR171: 0.39 | AS171: 0.19 | AT171: 0.9
B172: 167 | C172: 0.086 | D172: 0.028 | E172: 0.086 | F172: 0.028 | G172: 1.48 | H172: 0.13 | I172: 0.08 | J172: 0.6 | K172: 1.18 | L172: 1.3 | M172: 1.12 | N172: 2.07 | O172: 2.44 | P172: 1.17 | Q172: 1.51 | R172: 0.87 | S172: 1.14 | T172: 0.76 | U172: 0.68 | V172: 2.85 | W172: 5.08 | X172: 1.14 | Y172: 1.14 | Z172: 0.85 | AA172: 1.32 | AB172: 0.55 | AC172: 0.14 | AD172: 0.85 | AE172: 1.25 | AF172: 0.62 | AG172: 0.37 | AH172: 0.19 | AI172: 0.31 | AJ172: 0.16 | AK172: 1.88 | AL172: 0.14 | AM172: 0.09 | AN172: 0.26 | AO172: 0.29 | AP172: 0.01 | AQ172: 2.71 | AR172: 0.39 | AS172: 0.19 | AT172: 0.9
B173: 168 | C173: 0.086 | D173: 0.028 | E173: 0.086 | F173: 0.028 | G173: 1.48 | H173: 0.13 | I173: 0.08 | J173: 0.6 | K173: 1.18 | L173: 1.3 | M173: 1.12 | N173: 2.07 | O173: 2.44 | P173: 1.17 | Q173: 1.51 | R173: 0.87 | S173: 1.14 | T173: 0.76 | U173: 0.68 | V173: 2.85 | W173: 5.08 | X173: 1.14 | Y173: 1.14 | Z173: 0.85 | AA173: 1.32 | AB173: 0.55 | AC173: 0.14 | AD173: 0.85 | AE173: 1.25 | AF173: 0.62 | AG173: 0.37 | AH173: 0.19 | AI173: 0.31 | AJ173: 0.16 | AK173: 1.88 | AL173: 0.14 | AM173: 0.09 | AN173: 0.26 | AO173: 0.29 | AP173: 0.01 | AQ173: 2.71 | AR173: 0.39 | AS173: 0.19 | AT173: 0.9
B174: 169 | C174: 0.086 | D174: 0.028 | E174: 0.086 | F174: 0.028 | G174: 1.48 | H174: 0.13 | I174: 0.08 | J174: 0.6 | K174: 1.18 | L174: 1.3 | M174: 1.12 | N174: 2.07 | O174: 2.44 | P174: 1.17 | Q174: 1.51 | R174: 0.87 | S174: 1.14 | T174: 0.76 | U174: 0.68 | V174: 2.85 | W174: 5.08 | X174: 1.14 | Y174: 1.14 | Z174: 0.85 | AA174: 1.32 | AB174: 0.55 | AC174: 0.14 | AD174: 0.85 | AE174: 1.25 | AF174: 0.62 | AG174: 0.37 | AH174: 0.19 | AI174: 0.31 | AJ174: 0.16 | AK174: 1.88 | AL174: 0.14 | AM174: 0.09 | AN174: 0.26 | AO174: 0.29 | AP174: 0.01 | AQ174: 2.71 | AR174: 0.39 | AS174: 0.19 | AT174: 0.9
B175: 170 | C175: 0.086 | D175: 0.028 | E175: 0.086 | F175: 0.028 | G175: 1.48 | H175: 0.13 | I175: 0.08 | J175: 0.6 | K175: 1.18 | L175: 1.3 | M175: 1.12 | N175: 2.07 | O175: 2.44 | P175: 1.17 | Q175: 1.51 | R175: 0.87 | S175: 1.14 | T175: 0.76 | U175: 0.68 | V175: 2.85 | W175: 5.08 | X175: 1.14 | Y175: 1.14 | Z175: 0.85 | AA175: 1.32 | AB175: 0.55 | AC175: 0.14 | AD175: 0.85 | AE175: 1.25 | AF175: 0.62 | AG175: 0.37 | AH175: 0.19 | AI175: 0.31 | AJ175: 0.16 | AK175: 1.88 | AL175: 0.14 | AM175: 0.09 | AN175: 0.26 | AO175: 0.29 | AP175: 0.01 | AQ175: 2.71 | AR175: 0.39 | AS175: 0.19 | AT175: 0.9
B176: 171 | C176: 0.086 | D176: 0.028 | E176: 0.086 | F176: 0.028 | G176: 1.48 | H176: 0.13 | I176: 0.08 | J176: 0.6 | K176: 1.18 | L176: 1.3 | M176: 1.12 | N176: 2.07 | O176: 2.44 | P176: 1.17 | Q176: 1.51 | R176: 0.87 | S176: 1.14 | T176: 0.76 | U176: 0.68 | V176: 2.85 | W176: 5.08 | X176: 1.14 | Y176: 1.14 | Z176: 0.85 | AA176: 1.32 | AB176: 0.55 | AC176: 0.14 | AD176: 0.85 | AE176: 1.25 | AF176: 0.62 | AG176: 0.37 | AH176: 0.19 | AI176: 0.31 | AJ176: 0.16 | AK176: 1.88 | AL176: 0.14 | AM176: 0.09 | AN176: 0.26 | AO176: 0.29 | AP176: 0.01 | AQ176: 2.71 | AR176: 0.39 | AS176: 0.19 | AT176: 0.9
B177: 172 | C177: 0.086 | D177: 0.028 | E177: 0.086 | F177: 0.028 | G177: 1.48 | H177: 0.13 | I177: 0.08 | J177: 0.6 | K177: 1.18 | L177: 1.3 | M177: 1.12 | N177: 2.07 | O177: 2.44 | P177: 1.17 | Q177: 1.51 | R177: 0.87 | S177: 1.14 | T177: 0.76 | U177: 0.68 | V177: 2.85 | W177: 5.08 | X177: 1.14 | Y177: 1.14 | Z177: 0.85 | AA177: 1.32 | AB177: 0.55 | AC177: 0.14 | AD177: 0.85 | AE177: 1.25 | AF177: 0.62 | AG177: 0.37 | AH177: 0.19 | AI177: 0.31 | AJ177: 0.16 | AK177: 1.88 | AL177: 0.14 | AM177: 0.09 | AN177: 0.26 | AO177: 0.29 | AP177: 0.01 | AQ177: 2.71 | AR177: 0.39 | AS177: 0.19 | AT177: 0.9
B178: 173 | C178: 0.086 | D178: 0.028 | E178: 0.086 | F178: 0.028 | G178: 1.48 | H178: 0.13 | I178: 0.08 | J178: 0.6 | K178: 1.18 | L178: 1.3 | M178: 1.12 | N178: 2.07 | O178: 2.44 | P178: 1.17 | Q178: 1.51 | R178: 0.87 | S178: 1.14 | T178: 0.76 | U178: 0.68 | V178: 2.85 | W178: 5.08 | X178: 1.14 | Y178: 1.14 | Z178: 0.85 | AA178: 1.32 | AB178: 0.55 | AC178: 0.14 | AD178: 0.85 | AE178: 1.25 | AF178: 0.62 | AG178: 0.37 | AH178: 0.19 | AI178: 0.31 | AJ178: 0.16 | AK178: 1.88 | AL178: 0.14 | AM178: 0.09 | AN178: 0.26 | AO178: 0.29 | AP178: 0.01 | AQ178: 2.71 | AR178: 0.39 | AS178: 0.19 | AT178: 0.9
B179: 174 | C179: 0.086 | D179: 0.028 | E179: 0.086 | F179: 0.028 | G179: 1.48 | H179: 0.13 | I179: 0.08 | J179: 0.6 | K179: 1.18 | L179: 1.3 | M179: 1.12 | N179: 2.07 | O179: 2.44 | P179: 1.17 | Q179: 1.51 | R179: 0.87 | S179: 1.14 | T179: 0.76 | U179: 0.68 | V179: 2.85 | W179: 5.08 | X179: 1.14 | Y179: 1.14 | Z179: 0.85 | AA179: 1.32 | AB179: 0.55 | AC179: 0.14 | AD179: 0.85 | AE179: 1.25 | AF179: 0.62 | AG179: 0.37 | AH179: 0.19 | AI179: 0.31 | AJ179: 0.16 | AK179: 1.88 | AL179: 0.14 | AM179: 0.09 | AN179: 0.26 | AO179: 0.29 | AP179: 0.01 | AQ179: 2.71 | AR179: 0.39 | AS179: 0.19 | AT179: 0.9
B180: 175 | C180: 0.086 | D180: 0.028 | E180: 0.086 | F180: 0.028 | G180: 1.48 | H180: 0.13 | I180: 0.08 | J180: 0.6 | K180: 1.18 | L180: 1.3 | M180: 1.12 | N180: 2.07 | O180: 2.44 | P180: 1.17 | Q180: 1.51 | R180: 0.87 | S180: 1.14 | T180: 0.76 | U180: 0.68 | V180: 2.85 | W180: 5.08 | X180: 1.14 | Y180: 1.14 | Z180: 0.85 | AA180: 1.32 | AB180: 0.55 | AC180: 0.14 | AD180: 0.85 | AE180: 1.25 | AF180: 0.62 | AG180: 0.37 | AH180: 0.19 | AI180: 0.31 | AJ180: 0.16 | AK180: 1.88 | AL180: 0.14 | AM180: 0.09 | AN180: 0.26 | AO180: 0.29 | AP180: 0.01 | AQ180: 2.71 | AR180: 0.39 | AS180: 0.19 | AT180: 0.9
B181: 176 | C181: 0.086 | D181: 0.028 | E181: 0.086 | F181: 0.028 | G181: 1.48 | H181: 0.13 | I181: 0.08 | J181: 0.6 | K181: 1.18 | L181: 1.3 | M181: 1.12 | N181: 2.07 | O181: 2.44 | P181: 1.17 | Q181: 1.51 | R181: 0.87 | S181: 1.14 | T181: 0.76 | U181: 0.68 | V181: 2.85 | W181: 5.08 | X181: 1.14 | Y181: 1.14 | Z181: 0.85 | AA181: 1.32 | AB181: 0.55 | AC181: 0.14 | AD181: 0.85 | AE181: 1.25 | AF181: 0.62 | AG181: 0.37 | AH181: 0.19 | AI181: 0.31 | AJ181: 0.16 | AK181: 1.88 | AL181: 0.14 | AM181: 0.09 | AN181: 0.26 | AO181: 0.29 | AP181: 0.01 | AQ181: 2.71 | AR181: 0.39 | AS181: 0.19 | AT181: 0.9
B182: 177 | C182: 0.086 | D182: 0.028 | E182: 0.086 | F182: 0.028 | G182: 1.48 | H182: 0.13 | I182: 0.08 | J182: 0.6 | K182: 1.18 | L182: 1.3 | M182: 1.12 | N182: 2.07 | O182: 2.44 | P182: 1.17 | Q182: 1.51 | R182: 0.87 | S182: 1.14 | T182: 0.76 | U182: 0.68 | V182: 2.85 | W182: 5.08 | X182: 1.14 | Y182: 1.14 | Z182: 0.85 | AA182: 1.32 | AB182: 0.55 | AC182: 0.14 | AD182: 0.85 | AE182: 1.25 | AF182: 0.62 | AG182: 0.37 | AH182: 0.19 | AI182: 0.31 | AJ182: 0.16 | AK182: 1.88 | AL182: 0.14 | AM182: 0.09 | AN182: 0.26 | AO182: 0.29 | AP182: 0.01 | AQ182: 2.71 | AR182: 0.39 | AS182: 0.19 | AT182: 0.9
B183: 178 | C183: 0.086 | D183: 0.028 | E183: 0.086 | F183: 0.028 | G183: 1.48 | H183: 0.13 | I183: 0.08 | J183: 0.6 | K183: 1.18 | L183: 1.3 | M183: 1.12 | N183: 2.07 | O183: 2.44 | P183: 1.17 | Q183: 1.51 | R183: 0.87 | S183: 1.14 | T183: 0.76 | U183: 0.68 | V183: 2.85 | W183: 5.08 | X183: 1.14 | Y183: 1.14 | Z183: 0.85 | AA183: 1.32 | AB183: 0.55 | AC183: 0.14 | AD183: 0.85 | AE183: 1.25 | AF183: 0.62 | AG183: 0.37 | AH183: 0.19 | AI183: 0.31 | AJ183: 0.16 | AK183: 1.88 | AL183: 0.14 | AM183: 0.09 | AN183: 0.26 | AO183: 0.29 | AP183: 0.01 | AQ183: 2.71 | AR183: 0.39 | AS183: 0.19 | AT183: 0.9
B184: 179 | C184: 0.086 | D184: 0.028 | E184: 0.086 | F184: 0.028 | G184: 1.48 | H184: 0.13 | I184: 0.08 | J184: 0.6 | K184: 1.18 | L184: 1.3 | M184: 1.12 | N184: 2.07 | O184: 2.44 | P184: 1.17 | Q184: 1.51 | R184: 0.87 | S184: 1.14 | T184: 0.76 | U184: 0.68 | V184: 2.85 | W184: 5.08 | X184: 1.14 | Y184: 1.14 | Z184: 0.85 | AA184: 1.32 | AB184: 0.55 | AC184: 0.14 | AD184: 0.85 | AE184: 1.25 | AF184: 0.62 | AG184: 0.37 | AH184: 0.19 | AI184: 0.31 | AJ184: 0.16 | AK184: 1.88 | AL184: 0.14 | AM184: 0.09 | AN184: 0.26 | AO184: 0.29 | AP184: 0.01 | AQ184: 2.71 | AR184: 0.39 | AS184: 0.19 | AT184: 0.9
B185: 180 | C185: 0.086 | D185: 0.028 | E185: 0.086 | F185: 0.028 | G185: 1.48 | H185: 0.13 | I185: 0.08 | J185: 0.6 | K185: 1.18 | L185: 1.3 | M185: 1.12 | N185: 2.07 | O185: 2.44 | P185: 1.17 | Q185: 1.51 | R185: 0.87 | S185: 1.14 | T185: 0.76 | U185: 0.68 | V185: 2.85 | W185: 5.08 | X185: 1.14 | Y185: 1.14 | Z185: 0.85 | AA185: 1.32 | AB185: 0.55 | AC185: 0.14 | AD185: 0.85 | AE185: 1.25 | AF185: 0.62 | AG185: 0.37 | AH185: 0.19 | AI185: 0.31 | AJ185: 0.16 | AK185: 1.88 | AL185: 0.14 | AM185: 0.09 | AN185: 0.26 | AO185: 0.29 | AP185: 0.01 | AQ185: 2.71 | AR185: 0.39 | AS185: 0.19 | AT185: 0.9
B186: 181 | C186: 0.086 | D186: 0.028 | E186: 0.086 | F186: 0.028 | G186: 1.48 | H186: 0.13 | I186: 0.08 | J186: 0.6 | K186: 1.18 | L186: 1.3 | M186: 1.12 | N186: 2.07 | O186: 2.44 | P186: 1.17 | Q186: 1.51 | R186: 0.87 | S186: 1.14 | T186: 0.76 | U186: 0.68 | V186: 2.85 | W186: 5.08 | X186: 1.14 | Y186: 1.14 | Z186: 0.85 | AA186: 1.32 | AB186: 0.55 | AC186: 0.14 | AD186: 0.85 | AE186: 1.25 | AF186: 0.62 | AG186: 0.37 | AH186: 0.19 | AI186: 0.31 | AJ186: 0.16 | AK186: 1.88 | AL186: 0.14 | AM186: 0.09 | AN186: 0.26 | AO186: 0.29 | AP186: 0.01 | AQ186: 2.71 | AR186: 0.39 | AS186: 0.19 | AT186: 0.9
B187: 182 | C187: 0.086 | D187: 0.028 | E187: 0.086 | F187: 0.028 | G187: 1.48 | H187: 0.13 | I187: 0.08 | J187: 0.6 | K187: 1.18 | L187: 1.3 | M187: 1.12 | N187: 2.07 | O187: 2.44 | P187: 1.17 | Q187: 1.51 | R187: 0.87 | S187: 1.14 | T187: 0.76 | U187: 0.68 | V187: 2.85 | W187: 5.08 | X187: 1.14 | Y187: 1.14 | Z187: 0.85 | AA187: 1.32 | AB187: 0.55 | AC187: 0.14 | AD187: 0.85 | AE187: 1.25 | AF187: 0.62 | AG187: 0.37 | AH187: 0.19 | AI187: 0.31 | AJ187: 0.16 | AK187: 1.88 | AL187: 0.14 | AM187: 0.09 | AN187: 0.26 | AO187: 0.29 | AP187: 0.01 | AQ187: 2.71 | AR187: 0.39 | AS187: 0.19 | AT187: 0.9
B188: 183 | C188: 0.086 | D188: 0.028 | E188: 0.086 | F188: 0.028 | G188: 1.48 | H188: 0.13 | I188: 0.08 | J188: 0.6 | K188: 1.18 | L188: 1.3 | M188: 1.12 | N188: 2.07 | O188: 2.44 | P188: 1.17 | Q188: 1.51 | R188: 0.87 | S188: 1.14 | T188: 0.76 | U188: 0.68 | V188: 2.85 | W188: 5.08 | X188: 1.14 | Y188: 1.14 | Z188: 0.85 | AA188: 1.32 | AB188: 0.55 | AC188: 0.14 | AD188: 0.85 | AE188: 1.25 | AF188: 0.62 | AG188: 0.37 | AH188: 0.19 | AI188: 0.31 | AJ188: 0.16 | AK188: 1.88 | AL188: 0.14 | AM188: 0.09 | AN188: 0.26 | AO188: 0.29 | AP188: 0.01 | AQ188: 2.71 | AR188: 0.39 | AS188: 0.19 | AT188: 0.9
B189: 184 | C189: 0.086 | D189: 0.028 | E189: 0.086 | F189: 0.028 | G189: 1.48 | H189: 0.13 | I189: 0.08 | J189: 0.6 | K189: 1.18 | L189: 1.3 | M189: 1.12 | N189: 2.07 | O189: 2.44 | P189: 1.17 | Q189: 1.51 | R189: 0.87 | S189: 1.14 | T189: 0.76 | U189: 0.68 | V189: 2.85 | W189: 5.08 | X189: 1.14 | Y189: 1.14 | Z189: 0.85 | AA189: 1.32 | AB189: 0.55 | AC189: 0.14 | AD189: 0.85 | AE189: 1.25 | AF189: 0.62 | AG189: 0.37 | AH189: 0.19 | AI189: 0.31 | AJ189: 0.16 | AK189: 1.88 | AL189: 0.14 | AM189: 0.09 | AN189: 0.26 | AO189: 0.29 | AP189: 0.01 | AQ189: 2.71 | AR189: 0.39 | AS189: 0.19 | AT189: 0.9
B190: 185 | C190: 0.086 | D190: 0.028 | E190: 0.086 | F190: 0.028 | G190: 1.48 | H190: 0.13 | I190: 0.08 | J190: 0.6 | K190: 1.18 | L190: 1.3 | M190: 1.12 | N190: 2.07 | O190: 2.44 | P190: 1.17 | Q190: 1.51 | R190: 0.87 | S190: 1.14 | T190: 0.76 | U190: 0.68 | V190: 2.85 | W190: 5.08 | X190: 1.14 | Y190: 1.14 | Z190: 0.85 | AA190: 1.32 | AB190: 0.55 | AC190: 0.14 | AD190: 0.85 | AE190: 1.25 | AF190: 0.62 | AG190: 0.37 | AH190: 0.19 | AI190: 0.31 | AJ190: 0.16 | AK190: 1.88 | AL190: 0.14 | AM190: 0.09 | AN190: 0.26 | AO190: 0.29 | AP190: 0.01 | AQ190: 2.71 | AR190: 0.39 | AS190: 0.19 | AT190: 0.9
B191: 186 | C191: 0.086 | D191: 0.028 | E191: 0.086 | F191: 0.028 | G191: 1.48 | H191: 0.13 | I191: 0.08 | J191: 0.6 | K191: 1.18 | L191: 1.3 | M191: 1.12 | N191: 2.07 | O191: 2.44 | P191: 1.17 | Q191: 1.51 | R191: 0.87 | S191: 1.14 | T191: 0.76 | U191: 0.68 | V191: 2.85 | W191: 5.08 | X191: 1.14 | Y191: 1.14 | Z191: 0.85 | AA191: 1.32 | AB191: 0.55 | AC191: 0.14 | AD191: 0.85 | AE191: 1.25 | AF191: 0.62 | AG191: 0.37 | AH191: 0.19 | AI191: 0.31 | AJ191: 0.16 | AK191: 1.88 | AL191: 0.14 | AM191: 0.09 | AN191: 0.26 | AO191: 0.29 | AP191: 0.01 | AQ191: 2.71 | AR191: 0.39 | AS191: 0.19 | AT191: 0.9
B192: 187 | C192: 0.086 | D192: 0.028 | E192: 0.086 | F192: 0.028 | G192: 1.48 | H192: 0.13 | I192: 0.08 | J192: 0.6 | K192: 1.18 | L192: 1.3 | M192: 1.12 | N192: 2.07 | O192: 2.44 | P192: 1.17 | Q192: 1.51 | R192: 0.87 | S192: 1.14 | T192: 0.76 | U192: 0.68 | V192: 2.85 | W192: 5.08 | X192: 1.14 | Y192: 1.14 | Z192: 0.85 | AA192: 1.32 | AB192: 0.55 | AC192: 0.14 | AD192: 0.85 | AE192: 1.25 | AF192: 0.62 | AG192: 0.37 | AH192: 0.19 | AI192: 0.31 | AJ192: 0.16 | AK192: 1.88 | AL192: 0.14 | AM192: 0.09 | AN192: 0.26 | AO192: 0.29 | AP192: 0.01 | AQ192: 2.71 | AR192: 0.39 | AS192: 0.19 | AT192: 0.9
B193: 188 | C193: 0.086 | D193: 0.028 | E193: 0.086 | F193: 0.028 | G193: 1.48 | H193: 0.13 | I193: 0.08 | J193: 0.6 | K193: 1.18 | L193: 1.3 | M193: 1.12 | N193: 2.07 | O193: 2.44 | P193: 1.17 | Q193: 1.51 | R193: 0.87 | S193: 1.14 | T193: 0.76 | U193: 0.68 | V193: 2.85 | W193: 5.08 | X193: 1.14 | Y193: 1.14 | Z193: 0.85 | AA193: 1.32 | AB193: 0.55 | AC193: 0.14 | AD193: 0.85 | AE193: 1.25 | AF193: 0.62 | AG193: 0.37 | AH193: 0.19 | AI193: 0.31 | AJ193: 0.16 | AK193: 1.88 | AL193: 0.14 | AM193: 0.09 | AN193: 0.26 | AO193: 0.29 | AP193: 0.01 | AQ193: 2.71 | AR193: 0.39 | AS193: 0.19 | AT193: 0.9
B194: 189 | C194: 0.086 | D194: 0.028 | E194: 0.086 | F194: 0.028 | G194: 1.48 | H194: 0.13 | I194: 0.08 | J194: 0.6 | K194: 1.18 | L194: 1.3 | M194: 1.12 | N194: 2.07 | O194: 2.44 | P194: 1.17 | Q194: 1.51 | R194: 0.87 | S194: 1.14 | T194: 0.76 | U194: 0.68 | V194: 2.85 | W194: 5.08 | X194: 1.14 | Y194: 1.14 | Z194: 0.85 | AA194: 1.32 | AB194: 0.55 | AC194: 0.14 | AD194: 0.85 | AE194: 1.25 | AF194: 0.62 | AG194: 0.37 | AH194: 0.19 | AI194: 0.31 | AJ194: 0.16 | AK194: 1.88 | AL194: 0.14 | AM194: 0.09 | AN194: 0.26 | AO194: 0.29 | AP194: 0.01 | AQ194: 2.71 | AR194: 0.39 | AS194: 0.19 | AT194: 0.9
B195: 190 | C195: 0.086 | D195: 0.028 | E195: 0.086 | F195: 0.028 | G195: 1.48 | H195: 0.13 | I195: 0.08 | J195: 0.6 | K195: 1.18 | L195: 1.3 | M195: 1.12 | N195: 2.07 | O195: 2.44 | P195: 1.17 | Q195: 1.51 | R195: 0.87 | S195: 1.14 | T195: 0.76 | U195: 0.68 | V195: 2.85 | W195: 5.08 | X195: 1.14 | Y195: 1.14 | Z195: 0.85 | AA195: 1.32 | AB195: 0.55 | AC195: 0.14 | AD195: 0.85 | AE195: 1.25 | AF195: 0.62 | AG195: 0.37 | AH195: 0.19 | AI195: 0.31 | AJ195: 0.16 | AK195: 1.88 | AL195: 0.14 | AM195: 0.09 | AN195: 0.26 | AO195: 0.29 | AP195: 0.01 | AQ195: 2.71 | AR195: 0.39 | AS195: 0.19 | AT195: 0.9
B196: 191 | C196: 0.086 | D196: 0.028 | E196: 0.086 | F196: 0.028 | G196: 1.48 | H196: 0.13 | I196: 0.08 | J196: 0.6 | K196: 1.18 | L196: 1.3 | M196: 1.12 | N196: 2.07 | O196: 2.44 | P196: 1.17 | Q196: 1.51 | R196: 0.87 | S196: 1.14 | T196: 0.76 | U196: 0.68 | V196: 2.85 | W196: 5.08 | X196: 1.14 | Y196: 1.14 | Z196: 0.85 | AA196: 1.32 | AB196: 0.55 | AC196: 0.14 | AD196: 0.85 | AE196: 1.25 | AF196: 0.62 | AG196: 0.37 | AH196: 0.19 | AI196: 0.31 | AJ196: 0.16 | AK196: 1.88 | AL196: 0.14 | AM196: 0.09 | AN196: 0.26 | AO196: 0.29 | AP196: 0.01 | AQ196: 2.71 | AR196: 0.39 | AS196: 0.19 | AT196: 0.9
B197: 192 | C197: 0.086 | D197: 0.028 | E197: 0.086 | F197: 0.028 | G197: 1.48 | H197: 0.13 | I197: 0.08 | J197: 0.6 | K197: 1.18 | L197: 1.3 | M197: 1.12 | N197: 2.07 | O197: 2.44 | P197: 1.17 | Q197: 1.51 | R197: 0.87 | S197: 1.14 | T197: 0.76 | U197: 0.68 | V197: 2.85 | W197: 5.08 | X197: 1.14 | Y197: 1.14 | Z197: 0.85 | AA197: 1.32 | AB197: 0.55 | AC197: 0.14 | AD197: 0.85 | AE197: 1.25 | AF197: 0.62 | AG197: 0.37 | AH197: 0.19 | AI197: 0.31 | AJ197: 0.16 | AK197: 1.88 | AL197: 0.14 | AM197: 0.09 | AN197: 0.26 | AO197: 0.29 | AP197: 0.01 | AQ197: 2.71 | AR197: 0.39 | AS197: 0.19 | AT197: 0.9
B198: 193 | C198: 0.086 | D198: 0.028 | E198: 0.086 | F198: 0.028 | G198: 1.48 | H198: 0.13 | I198: 0.08 | J198: 0.6 | K198: 1.18 | L198: 1.3 | M198: 1.12 | N198: 2.07 | O198: 2.44 | P198: 1.17 | Q198: 1.51 | R198: 0.87 | S198: 1.14 | T198: 0.76 | U198: 0.68 | V198: 2.85 | W198: 5.08 | X198: 1.14 | Y198: 1.14 | Z198: 0.85 | AA198: 1.32 | AB198: 0.55 | AC198: 0.14 | AD198: 0.85 | AE198: 1.25 | AF198: 0.62 | AG198: 0.37 | AH198: 0.19 | AI198: 0.31 | AJ198: 0.16 | AK198: 1.88 | AL198: 0.14 | AM198: 0.09 | AN198: 0.26 | AO198: 0.29 | AP198: 0.01 | AQ198: 2.71 | AR198: 0.39 | AS198: 0.19 | AT198: 0.9
B199: 194 | C199: 0.086 | D199: 0.028 | E199: 0.086 | F199: 0.028 | G199: 1.48 | H199: 0.13 | I199: 0.08 | J199: 0.6 | K199: 1.18 | L199: 1.3 | M199: 1.12 | N199: 2.07 | O199: 2.44 | P199: 1.17 | Q199: 1.51 | R199: 0.87 | S199: 1.14 | T199: 0.76 | U199: 0.68 | V199: 2.85 | W199: 5.08 | X199: 1.14 | Y199: 1.14 | Z199: 0.85 | AA199: 1.32 | AB199: 0.55 | AC199: 0.14 | AD199: 0.85 | AE199: 1.25 | AF199: 0.62 | AG199: 0.37 | AH199: 0.19 | AI199: 0.31 | AJ199: 0.16 | AK199: 1.88 | AL199: 0.14 | AM199: 0.09 | AN199: 0.26 | AO199: 0.29 | AP199: 0.01 | AQ199: 2.71 | AR199: 0.39 | AS199: 0.19 | AT199: 0.9
B200: 195 | C200: 0.086 | D200: 0.028 | E200: 0.086 | F200: 0.028 | G200: 1.48 | H200: 0.13 | I200: 0.08 | J200: 0.6 | K200: 1.18 | L200: 1.3 | M200: 1.12 | N200: 2.07 | O200: 2.44 | P200: 1.17 | Q200: 1.51 | R200: 0.87 | S200: 1.14 | T200: 0.76 | U200: 0.68 | V200: 2.85 | W200: 5.08 | X200: 1.14 | Y200: 1.14 | Z200: 0.85 | AA200: 1.32 | AB200: 0.55 | AC200: 0.14 | AD200: 0.85 | AE200: 1.25 | AF200: 0.62 | AG200: 0.37 | AH200: 0.19 | AI200: 0.31 | AJ200: 0.16 | AK200: 1.88 | AL200: 0.14 | AM200: 0.09 | AN200: 0.26 | AO200: 0.29 | AP200: 0.01 | AQ200: 2.71 | AR200: 0.39 | AS200: 0.19 | AT200: 0.9
B201: 196 | C201: 0.086 | D201: 0.028 | E201: 0.086 | F201: 0.028 | G201: 1.48 | H201: 0.13 | I201: 0.08 | J201: 0.6 | K201: 1.18 | L201: 1.3 | M201: 1.12 | N201: 2.07 | O201: 2.44 | P201: 1.17 | Q201: 1.51 | R201: 0.87 | S201: 1.14 | T201: 0.76 | U201: 0.68 | V201: 2.85 | W201: 5.08 | X201: 1.14 | Y201: 1.14 | Z201: 0.85 | AA201: 1.32 | AB201: 0.55 | AC201: 0.14 | AD201: 0.85 | AE201: 1.25 | AF201: 0.62 | AG201: 0.37 | AH201: 0.19 | AI201: 0.31 | AJ201: 0.16 | AK201: 1.88 | AL201: 0.14 | AM201: 0.09 | AN201: 0.26 | AO201: 0.29 | AP201: 0.01 | AQ201: 2.71 | AR201: 0.39 | AS201: 0.19 | AT201: 0.9
B202: 197 | C202: 0.086 | D202: 0.028 | E202: 0.086 | F202: 0.028 | G202: 1.48 | H202: 0.13 | I202: 0.08 | J202: 0.6 | K202: 1.18 | L202: 1.3 | M202: 1.12 | N202: 2.07 | O202: 2.44 | P202: 1.17 | Q202: 1.51 | R202: 0.87 | S202: 1.14 | T202: 0.76 | U202: 0.68 | V202: 2.85 | W202: 5.08 | X202: 1.14 | Y202: 1.14 | Z202: 0.85 | AA202: 1.32 | AB202: 0.55 | AC202: 0.14 | AD202: 0.85 | AE202: 1.25 | AF202: 0.62 | AG202: 0.37 | AH202: 0.19 | AI202: 0.31 | AJ202: 0.16 | AK202: 1.88 | AL202: 0.14 | AM202: 0.09 | AN202: 0.26 | AO202: 0.29 | AP202: 0.01 | AQ202: 2.71 | AR202: 0.39 | AS202: 0.19 | AT202: 0.9
... 923 more rows

Sheet Примечание (hidden)
B3: Адрес контейнерной площадки | C3: Координаты | E3: Примечание
B4: М.О., г.о. Чехов, д. Чепелево, ул. Ореховая | C4: 55.178763 | D4: 37.48964 | E4: Построили своими силами 01.04.2022
B5: М.О., г.о. Чехов, д. Чепелево (кладбище) | C5: 55.191497 | D5: 37.494014 | E5: Приняли в хозяйственное ведение МБУ "Экология и природопользование" от МКУ "Ритуал-Чехов" на основании Постановления Администрации г.о. Чехов (еще на подписании) 12.04.2022
B6: М.О., г.о. Чехов, ул. Шараповская | C6: 55.176707 | D6: 37.412834 | E6: Демонтировали КП по ул. Шараповская от 04.04.2022 г. (ул. Шараповская, ул. Радужная, ул.Тихая, ул. Жасминовая, ул. Ясная, ул. Раздольная, ул. Арматурная, ул. Отрадная, ул. Еловая) Прикрепили к КП по адресу: ул. Гагарина.д. 25
B7: М. О., г. о. Чехов, п.Новый Быт, ул.Новая, д.28, д. 43 | C7: 55.057450 | D7: 37.605059 | E7: В ноябре 2021 года состоялось собрание жителей, МП ЖКХ и Администрации, было решено демонтировать КП по адресу Новый Быт, ул. Новая, дом 43 и до строительства в 2022 году новой КП (при условии финансирования) закрепить отходообразователей за КП по адресу ул. Молодежная, д.1 (Закрепили по указанию руководства МП ЖКХ за КП по ул. Молодежная, д.1 25.04.2022 года)
B8: 142322, Московская обл, г.о. городской округ Чехов, г Чехов, с Новый Быт, ул Молодежная, д. 1 | C8: 55.062229 | D8: 37.605952 | E8: На основании письма МП "ЖКХ ЧР" от 21.06.2022 г. №1891 ликвидировать КП по адресу Новый Быт, ул. Новая, дом 43 и Молодежная, д.1 и до строительства новой КП закрепить отходообразователей за КП по адресам: ул. Нати, д.1, ул. Нати, д.5, ул. Новая, д.34, ул. Новая, д. 40
B9: Московская обл, г.о. городской округ Чехов, д. Хлевино (у кладбища) | C9: 55.170864 | D9: 37.334906 | E9: Приняли в хозяйственное ведение МБУ "Экология и природопользование" от МКУ "Ритуал-Чехов" на основании Постановления Администрации г.о. Чехов от 13.07.2022 № 1319/14-04 есть письмо от МКУ "Ритуал-Чехов" № 280 от 20.06.2022
